﻿Directorate,Service,Division,Responsible Unit,Expense Type,Payment Date,Trans No,Net Amount,Supplier Name
Adults Services,General Fund/Council Fund,Homelessness,Supporting People Services,SP - Block-Gross - Domestic Violence,23/09/2016,3749587,"25,722.58",HESTIA HOUSING & SUPPORT
Adults Services,General Fund/Council Fund,Homelessness,Supporting People Services,SP - Block-Gross - Learning Disabilities,23/09/2016,3749586,"40,768.62",Outward Housing
Adults Services,General Fund/Council Fund,Homelessness,Supporting People Services,SP - Block-Gross - Learning Disabilities,28/09/2016,3752370,"50,388.14",Look Ahead Care & Support Ltd
Adults Services,General Fund/Council Fund,Homelessness,Supporting People Services,SP - Block-Gross - Mental Health,23/09/2016,3749585,"6,651.25",Providence Row Housing Association
Adults Services,General Fund/Council Fund,Homelessness,Supporting People Services,SP - Block-Gross - Mental Health,23/09/2016,3749587,"57,064.19",HESTIA HOUSING & SUPPORT
Adults Services,General Fund/Council Fund,Homelessness,Supporting People Services,SP - Block-Gross - Mental Health,28/09/2016,3752370,"207,772.91",Look Ahead Care & Support Ltd
Adults Services,General Fund/Council Fund,Homelessness,Supporting People Services,SP - Block-Gross - Old People-Supp Needs,23/09/2016,3749590,606.67,CIRCLE SUPPORT CONSORTIUM
Adults Services,General Fund/Council Fund,Homelessness,Supporting People Services,SP - Block-Gross - Single Homeless,23/09/2016,3749584,"75,781.05",Salvation Army
Adults Services,General Fund/Council Fund,Homelessness,Supporting People Services,SP - Block-Gross - Single Homeless,23/09/2016,3749585,"147,492.66",Providence Row Housing Association
Adults Services,General Fund/Council Fund,Homelessness,Supporting People Services,SP - Block-Gross - Single Homeless,28/09/2016,3752370,"143,530.83",Look Ahead Care & Support Ltd
Adults Services,General Fund/Council Fund,Homelessness,Supporting People Services,SP - Block-Gross - Y People Risk/Care Lev,23/09/2016,3749588,"12,166.67",Kipper Project
Adults Services,General Fund/Council Fund,Homelessness,Supporting People Services,SP - Block-Gross - Y People Risk/Care Lev,28/09/2016,3752370,"62,943.49",Look Ahead Care & Support Ltd
Adults Services,General Fund/Council Fund,Homelessness,Supporting People Services,Social Care - Homecare,07/09/2016,3733929,910.78,SANCTUARY HOME CARE LIMITED
Adults Services,General Fund/Council Fund,Homelessness,Supporting People Services,Social Care - Homecare,16/09/2016,3739885,910.78,SANCTUARY HOME CARE LIMITED
Adults Services,General Fund/Council Fund,Homelessness,Supporting People Services,Social Care - Homecare,30/09/2016,3755140,902.72,SANCTUARY HOME CARE LIMITED
Adults Services,General Fund/Council Fund,Homelessness,Supporting People Services,Social Care - Direct Payments,09/09/2016,3735395,"-27,654.00",DAVID HOWARD LTD CLIENT ACCOUNT
Adults Services,Adult Social Care,Physical Support - adults (18-64),Learning Dis Commissioning,Social Care - Residential Care,07/09/2016,3721095,"3,534.03",Scope
Adults Services,Adult Social Care,Support with Memory and Cognition - adults (18-64),Generic Care Packages NE Team -SS,Social Care - Residential Care,30/09/2016,3755076,"2,267.14",Methodist Homes
Adults Services,Adult Social Care,Support with Memory and Cognition - adults (18-64),Generic Care Packages NE Team -PS,Social Care - Nursing Care,02/09/2016,3731595,"3,981.77",LIFE STYLE CARE (2011) PLC
Adults Services,Adult Social Care,Support with Memory and Cognition - adults (18-64),Generic Care Packages NE Team -PS,Social Care - Nursing Care,07/09/2016,3733108,"3,321.43",Craven Park Nursing (GSG Nursing Homes Ltd)
Adults Services,Adult Social Care,Support with Memory and Cognition - adults (18-64),Generic Care Packages NE Team -PS,Social Care - Nursing Care,09/09/2016,3735359,"1,430.00",St Georges Nursing Home
Adults Services,Adult Social Care,Support with Memory and Cognition - adults (18-64),Generic Care Packages NE Team -PS,Social Care - Nursing Care,09/09/2016,3735360,"3,410.00",St Georges Nursing Home
Adults Services,Adult Social Care,Support with Memory and Cognition - adults (18-64),Generic Care Packages NE Team -PS,Social Care - Nursing Care,23/09/2016,3749371,"3,485.29",BARCHESTER HEALTHCARE
Adults Services,Adult Social Care,Support with Memory and Cognition - adults (18-64),Generic Care Packages NE Team -PS,Social Care - Nursing Care,30/09/2016,3749372,-562.15,BARCHESTER HEALTHCARE
Adults Services,Adult Social Care,Support with Memory and Cognition - adults (18-64),Generic Care Packages NE Team -PS,Social Care - Nursing Care,28/09/2016,3752315,"3,853.33",LIFE STYLE CARE (2011) PLC
Adults Services,Adult Social Care,Support with Memory and Cognition - adults (18-64),Generic Care Packages NE Team -PS,Social Care - Nursing Care,28/09/2016,3752442,"-1,180.63",SANCTUARY CARE LTD
Adults Services,Adult Social Care,Support with Memory and Cognition - adults (18-64),Generic Care Packages NE Team -PS,Social Care - Nursing Care,28/09/2016,3752455,-669.65,SANCTUARY CARE LTD
Adults Services,Adult Social Care,Support with Memory and Cognition - adults (18-64),Generic Care Packages NE Team -PS,Social Care - Nursing Care,28/09/2016,3752510,"1,944.63",LIFE STYLE CARE (2011) PLC
Adults Services,Adult Social Care,Support with Memory and Cognition - adults (18-64),Generic Care Packages NE Team -PS,Social Care - Nursing Care,28/09/2016,3752518,-669.65,SANCTUARY CARE LTD
Adults Services,Adult Social Care,Support with Memory and Cognition - adults (18-64),Generic Care Packages NE Team -PS,Social Care - Nursing Care,28/09/2016,3752530,"2,504.57",CAMBRIDGE NURSING HOME
Adults Services,Adult Social Care,Support with Memory and Cognition - adults (18-64),Generic Care Packages NE Team -PS,Social Care - Nursing Care,28/09/2016,3752544,"2,222.30",BARCHESTER HEALTHCARE LTD
Adults Services,Adult Social Care,Support with Memory and Cognition - adults (18-64),Generic Care Packages NE Team -PS,Social Care - Nursing Care,28/09/2016,3752550,"4,748.57",SANCTUARY CARE LTD
Adults Services,Adult Social Care,Support with Memory and Cognition - adults (18-64),Generic Care Packages NE Team -PS,Social Care - Nursing Care,28/09/2016,3752573,"3,385.72",SANCTUARY CARE LTD
Adults Services,Adult Social Care,Support with Memory and Cognition - adults (18-64),Generic Care Packages NE Team -PS,Social Care - Nursing Care,28/09/2016,3752574,"3,385.72",SANCTUARY CARE LTD
Adults Services,Adult Social Care,Support with Memory and Cognition - adults (18-64),Generic Care Packages NE Team -PS,Social Care - Nursing Care,28/09/2016,3752578,"3,385.72",SANCTUARY CARE LTD
Adults Services,Adult Social Care,Support with Memory and Cognition - adults (18-64),Generic Care Packages NE Team -PS,Social Care - Nursing Care,28/09/2016,3752582,"3,330.00",SANCTUARY CARE LTD
Adults Services,Adult Social Care,Support with Memory and Cognition - adults (18-64),Generic Care Packages NE Team -PS,Social Care - Nursing Care,28/09/2016,3752585,"3,330.00",SANCTUARY CARE LTD
Adults Services,Adult Social Care,Support with Memory and Cognition - adults (18-64),Generic Care Packages NE Team -PS,Social Care - Nursing Care,28/09/2016,3752587,"3,330.00",SANCTUARY CARE LTD
Adults Services,Adult Social Care,Support with Memory and Cognition - adults (18-64),Generic Care Packages NE Team -PS,Social Care - Nursing Care,28/09/2016,3752600,"3,385.72",SANCTUARY CARE LTD
Adults Services,Adult Social Care,Support with Memory and Cognition - adults (18-64),Generic Care Packages NE Team -PS,Social Care - Nursing Care,28/09/2016,3752647,"1,467.15",LIFE STYLE CARE (2011) PLC
Adults Services,Adult Social Care,Support with Memory and Cognition - adults (18-64),Generic Care Packages NE Team -PS,Social Care - Nursing Care,30/09/2016,3754590,"3,214.29",Craven Park Nursing (GSG Nursing Homes Ltd)
Adults Services,Adult Social Care,Support with Memory and Cognition - adults (18-64),Generic Care Packages NE Team -PS,Social Care - Nursing Care,30/09/2016,3754775,"3,685.50",LEONARD CHESHIRE FOUNDATION
Adults Services,Adult Social Care,Support with Memory and Cognition - adults (18-64),Generic Care Packages NE Team -PS,Social Care - Nursing Care,30/09/2016,3754777,-669.65,SANCTUARY CARE LTD
Adults Services,Adult Social Care,Support with Memory and Cognition - adults (18-64),Generic Care Packages NE Team -PS,Social Care - Nursing Care,30/09/2016,3754788,"3,330.00",SANCTUARY CARE LTD
Adults Services,Adult Social Care,Support with Memory and Cognition - adults (18-64),Generic Care Packages NE Team -PS,Social Care - Residential Care,28/09/2016,3731644,"-1,223.30",ANCHOR TRUST HOMES ACCOUNT
Adults Services,Adult Social Care,Support with Memory and Cognition - adults (18-64),Generic Care Packages NE Team -PS,Social Care - Residential Care,02/09/2016,3731657,"2,291.43",JEWISH CARE
Adults Services,Adult Social Care,Support with Memory and Cognition - adults (18-64),Generic Care Packages NE Team -PS,Social Care - Residential Care,07/09/2016,3732969,"3,628.37",DEARY-ST IVES LODGE
Adults Services,Adult Social Care,Support with Memory and Cognition - adults (18-64),Generic Care Packages NE Team -PS,Social Care - Residential Care,21/09/2016,3733525,"6,399.99",HEALTH & HOME LTD (ALEXANDER HOUSE)
Adults Services,Adult Social Care,Support with Memory and Cognition - adults (18-64),Generic Care Packages NE Team -PS,Social Care - Residential Care,07/09/2016,3733527,"6,193.54",HEALTH & HOME LTD (ALEXANDER HOUSE)
Adults Services,Adult Social Care,Support with Memory and Cognition - adults (18-64),Generic Care Packages NE Team -PS,Social Care - Residential Care,30/09/2016,3735654,"6,193.55",HEALTH & HOME LTD (ALEXANDER HOUSE)
Adults Services,Adult Social Care,Support with Memory and Cognition - adults (18-64),Generic Care Packages NE Team -PS,Social Care - Residential Care,30/09/2016,3735655,"6,399.99",HEALTH & HOME LTD (ALEXANDER HOUSE)
Adults Services,Adult Social Care,Support with Memory and Cognition - adults (18-64),Generic Care Packages NE Team -PS,Social Care - Residential Care,30/09/2016,3735656,"6,399.99",HEALTH & HOME LTD (ALEXANDER HOUSE)
Adults Services,Adult Social Care,Support with Memory and Cognition - adults (18-64),Generic Care Packages NE Team -PS,Social Care - Residential Care,14/09/2016,3737246,"2,319.24",Bennetts Castlle Care Home
Adults Services,Adult Social Care,Support with Memory and Cognition - adults (18-64),Generic Care Packages NE Team -PS,Social Care - Residential Care,30/09/2016,3737448,"2,186.61",MAGICARE LTD
Adults Services,Adult Social Care,Support with Memory and Cognition - adults (18-64),Generic Care Packages NE Team -PS,Social Care - Residential Care,16/09/2016,3739726,"10,256.42",SANCTUARY CARE LTD
Adults Services,Adult Social Care,Support with Memory and Cognition - adults (18-64),Generic Care Packages NE Team -PS,Social Care - Residential Care,28/09/2016,3748473,"-3,747.10",CARE FIRST CARE HOMES LTD
Adults Services,Adult Social Care,Support with Memory and Cognition - adults (18-64),Generic Care Packages NE Team -PS,Social Care - Residential Care,23/09/2016,3750988,"1,317.60",Romford Care Centre
Adults Services,Adult Social Care,Support with Memory and Cognition - adults (18-64),Generic Care Packages NE Team -PS,Social Care - Residential Care,28/09/2016,3752168,"3,511.33",DEARY-ST IVES LODGE
Adults Services,Adult Social Care,Support with Memory and Cognition - adults (18-64),Generic Care Packages NE Team -PS,Social Care - Residential Care,30/09/2016,3752196,"9,600.00",CHRISTCHURCH COURT
Adults Services,Adult Social Care,Support with Memory and Cognition - adults (18-64),Generic Care Packages NE Team -PS,Social Care - Residential Care,28/09/2016,3752429,"3,889.25",East Thames Group Ltd
Adults Services,Adult Social Care,Support with Memory and Cognition - adults (18-64),Generic Care Packages NE Team -PS,Social Care - Residential Care,28/09/2016,3752443,"2,400.00",GATEWAY HOUSING ASSOCIATION
Adults Services,Adult Social Care,Support with Memory and Cognition - adults (18-64),Generic Care Packages NE Team -PS,Social Care - Residential Care,28/09/2016,3752450,"2,007.73",ANCHOR TRUST HOMES ACCOUNT
Adults Services,Adult Social Care,Support with Memory and Cognition - adults (18-64),Generic Care Packages NE Team -PS,Social Care - Residential Care,28/09/2016,3752482,"2,400.00",GATEWAY HOUSING ASSOCIATION
Adults Services,Adult Social Care,Support with Memory and Cognition - adults (18-64),Generic Care Packages NE Team -PS,Social Care - Residential Care,28/09/2016,3752492,"2,357.15",GATEWAY HOUSING ASSOCIATION
Adults Services,Adult Social Care,Support with Memory and Cognition - adults (18-64),Generic Care Packages NE Team -PS,Social Care - Residential Care,28/09/2016,3752502,-650.87,SANCTUARY CARE LTD
Adults Services,Adult Social Care,Support with Memory and Cognition - adults (18-64),Generic Care Packages NE Team -PS,Social Care - Residential Care,28/09/2016,3752503,"2,007.73",ANCHOR TRUST HOMES ACCOUNT
Adults Services,Adult Social Care,Support with Memory and Cognition - adults (18-64),Generic Care Packages NE Team -PS,Social Care - Residential Care,28/09/2016,3752553,"2,610.00",SANCTUARY CARE LTD
Adults Services,Adult Social Care,Support with Memory and Cognition - adults (18-64),Generic Care Packages NE Team -PS,Social Care - Residential Care,28/09/2016,3752556,"3,707.15",SANCTUARY CARE LTD
Adults Services,Adult Social Care,Support with Memory and Cognition - adults (18-64),Generic Care Packages NE Team -PS,Social Care - Residential Care,28/09/2016,3752568,"2,550.00",EXCELCARE HOLDING PLC
Adults Services,Adult Social Care,Support with Memory and Cognition - adults (18-64),Generic Care Packages NE Team -PS,Social Care - Residential Care,28/09/2016,3752590,"2,610.00",SANCTUARY CARE LTD
Adults Services,Adult Social Care,Support with Memory and Cognition - adults (18-64),Generic Care Packages NE Team -PS,Social Care - Residential Care,28/09/2016,3752595,"2,610.00",SANCTUARY CARE LTD
Adults Services,Adult Social Care,Support with Memory and Cognition - adults (18-64),Generic Care Packages NE Team -PS,Social Care - Residential Care,28/09/2016,3752598,"2,610.00",SANCTUARY CARE LTD
Adults Services,Adult Social Care,Support with Memory and Cognition - adults (18-64),Generic Care Packages NE Team -PS,Social Care - Residential Care,28/09/2016,3752604,"2,507.15",EXCELCARE HOLDING PLC
Adults Services,Adult Social Care,Support with Memory and Cognition - adults (18-64),Generic Care Packages NE Team -PS,Social Care - Residential Care,28/09/2016,3752618,"2,507.15",EXCELCARE HOLDING PLC
Adults Services,Adult Social Care,Support with Memory and Cognition - adults (18-64),Generic Care Packages NE Team -PS,Social Care - Residential Care,28/09/2016,3752622,"2,507.15",EXCELCARE HOLDING PLC
Adults Services,Adult Social Care,Support with Memory and Cognition - adults (18-64),Generic Care Packages NE Team -PS,Social Care - Residential Care,28/09/2016,3752623,"2,294.15",CARE FIRST CARE HOMES LTD
Adults Services,Adult Social Care,Support with Memory and Cognition - adults (18-64),Generic Care Packages NE Team -PS,Social Care - Residential Care,28/09/2016,3752628,"2,357.15",GATEWAY HOUSING ASSOCIATION
Adults Services,Adult Social Care,Support with Memory and Cognition - adults (18-64),Generic Care Packages NE Team -PS,Social Care - Residential Care,28/09/2016,3752631,"2,813.57",THE LODGE
Adults Services,Adult Social Care,Support with Memory and Cognition - adults (18-64),Generic Care Packages NE Team -PS,Social Care - Residential Care,28/09/2016,3752662,"2,400.00",GATEWAY HOUSING ASSOCIATION
Adults Services,Adult Social Care,Support with Memory and Cognition - adults (18-64),Generic Care Packages NE Team -PS,Social Care - Residential Care,28/09/2016,3752664,"3,707.15",SANCTUARY CARE LTD
Adults Services,Adult Social Care,Support with Memory and Cognition - adults (18-64),Generic Care Packages NE Team -PS,Social Care - Residential Care,28/09/2016,3752734,"3,428.57",East Thames Group Ltd
Adults Services,Adult Social Care,Support with Memory and Cognition - adults (18-64),Generic Care Packages NE Team -PS,Social Care - Residential Care,28/09/2016,3752765,"2,244.43",Bennetts Castlle Care Home
Adults Services,Adult Social Care,Support with Memory and Cognition - adults (18-64),Generic Care Packages NE Team -PS,Social Care - Residential Care,30/09/2016,3752821,"2,217.51",JEWISH CARE
Adults Services,Adult Social Care,Support with Memory and Cognition - adults (18-64),Generic Care Packages NE Team -PS,Social Care - Residential Care,30/09/2016,3752936,"1,591.29",SANCTUARY CARE LTD
Adults Services,Adult Social Care,Support with Memory and Cognition - adults (18-64),Generic Care Packages NE Team -PS,Social Care - Residential Care,30/09/2016,3753003,"6,193.55",HEALTH & HOME LTD (ALEXANDER HOUSE)
Adults Services,Adult Social Care,Support with Memory and Cognition - adults (18-64),Generic Care Packages NE Team -PS,Social Care - Residential Care,30/09/2016,3754769,"2,382.77",CAMBRIDGE NURSING HOME
Adults Services,Adult Social Care,Support with Memory and Cognition - adults (18-64),Generic Care Packages NE Team -PS,Social Care - Residential Care,30/09/2016,3754782,"2,995.75",LEONARD CHESHIRE FOUNDATION
Adults Services,Adult Social Care,Support with Memory and Cognition - adults (18-64),Generic Care Packages NE Team -PS,Social Care - Residential Care,30/09/2016,3754784,"6,915.47",ASHTEAD HOUSE LTD
Adults Services,Adult Social Care,Support with Memory and Cognition - adults (18-64),Generic Care Packages NE Team -PS,Social Care - Residential Care,30/09/2016,3754789,"1,105.00",EXCELCARE HOLDING PLC
Adults Services,Adult Social Care,Support with Memory and Cognition - adults (18-64),Generic Care Packages NE Team -PS,Social Care - Residential Care,30/09/2016,3754799,"-1,037.13",East Thames Group Ltd
Adults Services,Adult Social Care,Support with Memory and Cognition - adults (18-64),Generic Care Packages NE Team -PS,Social Care - Day Care,28/09/2016,3733695,789.18,Peabody Trust
Adults Services,Adult Social Care,Support with Memory and Cognition - adults (18-64),Generic Care Packages NE Team -PS,Social Care - Day Care,30/09/2016,3752177,866.68,HEADWAY EAST LONDON
Adults Services,Adult Social Care,Support with Memory and Cognition - adults (18-64),Generic Care Packages NE Team -PS,Social Care - Day Care,30/09/2016,3752179,686.80,HEADWAY EAST LONDON
Adults Services,Adult Social Care,Support with Memory and Cognition - adults (18-64),Generic Care Packages NE Team -PS,Social Care - Day Care,30/09/2016,3752190,564.48,HEADWAY EAST LONDON
Adults Services,Adult Social Care,Support with Memory and Cognition - adults (18-64),Generic Care Packages NE Team -PS,Social Care - Homecare,02/09/2016,3731585,594.78,Carewatch Newham Ltd
Adults Services,Adult Social Care,Support with Memory and Cognition - adults (18-64),Generic Care Packages NE Team -PS,Social Care - Homecare,02/09/2016,3731630,611.15,FOCUS CARE LINK LTD
Adults Services,Adult Social Care,Support with Memory and Cognition - adults (18-64),Generic Care Packages NE Team -PS,Social Care - Homecare,02/09/2016,3731773,620.62,SANCTUARY HOME CARE LIMITED
Adults Services,Adult Social Care,Support with Memory and Cognition - adults (18-64),Generic Care Packages NE Team -PS,Social Care - Homecare,02/09/2016,3731783,677.04,SANCTUARY HOME CARE LIMITED
Adults Services,Adult Social Care,Support with Memory and Cognition - adults (18-64),Generic Care Packages NE Team -PS,Social Care - Homecare,02/09/2016,3731802,564.20,SANCTUARY HOME CARE LIMITED
Adults Services,Adult Social Care,Support with Memory and Cognition - adults (18-64),Generic Care Packages NE Team -PS,Social Care - Homecare,07/09/2016,3733068,"1,239.64",ATHLONE CARE LTD
Adults Services,Adult Social Care,Support with Memory and Cognition - adults (18-64),Generic Care Packages NE Team -PS,Social Care - Homecare,07/09/2016,3733077,690.20,ATHLONE CARE LTD
Adults Services,Adult Social Care,Support with Memory and Cognition - adults (18-64),Generic Care Packages NE Team -PS,Social Care - Homecare,07/09/2016,3733088,542.30,ATHLONE CARE LTD
Adults Services,Adult Social Care,Support with Memory and Cognition - adults (18-64),Generic Care Packages NE Team -PS,Social Care - Homecare,07/09/2016,3733128,601.86,Carewatch Newham Ltd
Adults Services,Adult Social Care,Support with Memory and Cognition - adults (18-64),Generic Care Packages NE Team -PS,Social Care - Homecare,07/09/2016,3733139,877.73,Carewatch Newham Ltd
Adults Services,Adult Social Care,Support with Memory and Cognition - adults (18-64),Generic Care Packages NE Team -PS,Social Care - Homecare,07/09/2016,3733237,503.63,Mantra Recruitment
Adults Services,Adult Social Care,Support with Memory and Cognition - adults (18-64),Generic Care Packages NE Team -PS,Social Care - Homecare,07/09/2016,3733396,864.66,FOCUS CARE LINK LTD
Adults Services,Adult Social Care,Support with Memory and Cognition - adults (18-64),Generic Care Packages NE Team -PS,Social Care - Homecare,07/09/2016,3733403,845.04,FOCUS CARE LINK LTD
Adults Services,Adult Social Care,Support with Memory and Cognition - adults (18-64),Generic Care Packages NE Team -PS,Social Care - Homecare,07/09/2016,3733487,"1,215.92",MiHOMECARE LIMITED
Adults Services,Adult Social Care,Support with Memory and Cognition - adults (18-64),Generic Care Packages NE Team -PS,Social Care - Homecare,07/09/2016,3733499,509.98,MiHOMECARE LIMITED
Adults Services,Adult Social Care,Support with Memory and Cognition - adults (18-64),Generic Care Packages NE Team -PS,Social Care - Homecare,07/09/2016,3733559,"1,691.20",St Hilda's East Community Centre
Adults Services,Adult Social Care,Support with Memory and Cognition - adults (18-64),Generic Care Packages NE Team -PS,Social Care - Homecare,07/09/2016,3733582,626.65,St Hilda's East Community Centre
Adults Services,Adult Social Care,Support with Memory and Cognition - adults (18-64),Generic Care Packages NE Team -PS,Social Care - Homecare,07/09/2016,3733616,"1,691.20",St Hilda's East Community Centre
Adults Services,Adult Social Care,Support with Memory and Cognition - adults (18-64),Generic Care Packages NE Team -PS,Social Care - Homecare,07/09/2016,3733639,626.65,St Hilda's East Community Centre
Adults Services,Adult Social Care,Support with Memory and Cognition - adults (18-64),Generic Care Packages NE Team -PS,Social Care - Homecare,07/09/2016,3733673,626.65,St Hilda's East Community Centre
Adults Services,Adult Social Care,Support with Memory and Cognition - adults (18-64),Generic Care Packages NE Team -PS,Social Care - Homecare,07/09/2016,3733869,531.96,SANCTUARY HOME CARE LIMITED
Adults Services,Adult Social Care,Support with Memory and Cognition - adults (18-64),Generic Care Packages NE Team -PS,Social Care - Homecare,07/09/2016,3733872,564.20,SANCTUARY HOME CARE LIMITED
Adults Services,Adult Social Care,Support with Memory and Cognition - adults (18-64),Generic Care Packages NE Team -PS,Social Care - Homecare,07/09/2016,3733944,531.96,SANCTUARY HOME CARE LIMITED
Adults Services,Adult Social Care,Support with Memory and Cognition - adults (18-64),Generic Care Packages NE Team -PS,Social Care - Homecare,07/09/2016,3733948,564.20,SANCTUARY HOME CARE LIMITED
Adults Services,Adult Social Care,Support with Memory and Cognition - adults (18-64),Generic Care Packages NE Team -PS,Social Care - Homecare,07/09/2016,3733985,594.00,Soma Healthcare Ltd
Adults Services,Adult Social Care,Support with Memory and Cognition - adults (18-64),Generic Care Packages NE Team -PS,Social Care - Homecare,07/09/2016,3734018,534.60,Soma Healthcare Ltd
Adults Services,Adult Social Care,Support with Memory and Cognition - adults (18-64),Generic Care Packages NE Team -PS,Social Care - Homecare,07/09/2016,3734033,"1,436.74",Soma Healthcare Ltd
Adults Services,Adult Social Care,Support with Memory and Cognition - adults (18-64),Generic Care Packages NE Team -PS,Social Care - Homecare,07/09/2016,3734059,809.33,Soma Healthcare Ltd
Adults Services,Adult Social Care,Support with Memory and Cognition - adults (18-64),Generic Care Packages NE Team -PS,Social Care - Homecare,07/09/2016,3734063,"1,039.50",Soma Healthcare Ltd
Adults Services,Adult Social Care,Support with Memory and Cognition - adults (18-64),Generic Care Packages NE Team -PS,Social Care - Homecare,07/09/2016,3734076,846.45,Soma Healthcare Ltd
Adults Services,Adult Social Care,Support with Memory and Cognition - adults (18-64),Generic Care Packages NE Team -PS,Social Care - Homecare,07/09/2016,3734080,556.88,Soma Healthcare Ltd
Adults Services,Adult Social Care,Support with Memory and Cognition - adults (18-64),Generic Care Packages NE Team -PS,Social Care - Homecare,07/09/2016,3734098,"1,811.70",Soma Healthcare Ltd
Adults Services,Adult Social Care,Support with Memory and Cognition - adults (18-64),Generic Care Packages NE Team -PS,Social Care - Homecare,07/09/2016,3734130,709.28,SANCTUARY HOME CARE LIMITED
Adults Services,Adult Social Care,Support with Memory and Cognition - adults (18-64),Generic Care Packages NE Team -PS,Social Care - Homecare,09/09/2016,3735482,561.64,MiHOMECARE LIMITED
Adults Services,Adult Social Care,Support with Memory and Cognition - adults (18-64),Generic Care Packages NE Team -PS,Social Care - Homecare,09/09/2016,3735494,"2,073.45",MiHOMECARE LIMITED
Adults Services,Adult Social Care,Support with Memory and Cognition - adults (18-64),Generic Care Packages NE Team -PS,Social Care - Homecare,09/09/2016,3735551,"1,214.85",APASENTH
Adults Services,Adult Social Care,Support with Memory and Cognition - adults (18-64),Generic Care Packages NE Team -PS,Social Care - Homecare,09/09/2016,3735659,"1,691.20",St Hilda's East Community Centre
Adults Services,Adult Social Care,Support with Memory and Cognition - adults (18-64),Generic Care Packages NE Team -PS,Social Care - Homecare,14/09/2016,3737154,542.30,ATHLONE CARE LTD
Adults Services,Adult Social Care,Support with Memory and Cognition - adults (18-64),Generic Care Packages NE Team -PS,Social Care - Homecare,14/09/2016,3737272,644.35,REDSPOT HOMECARE (CONTRACTS) LTD
Adults Services,Adult Social Care,Support with Memory and Cognition - adults (18-64),Generic Care Packages NE Team -PS,Social Care - Homecare,14/09/2016,3737395,"1,223.31",MiHOMECARE LIMITED
Adults Services,Adult Social Care,Support with Memory and Cognition - adults (18-64),Generic Care Packages NE Team -PS,Social Care - Homecare,14/09/2016,3737408,509.98,MiHOMECARE LIMITED
Adults Services,Adult Social Care,Support with Memory and Cognition - adults (18-64),Generic Care Packages NE Team -PS,Social Care - Homecare,14/09/2016,3737426,517.30,MiHOMECARE LIMITED
Adults Services,Adult Social Care,Support with Memory and Cognition - adults (18-64),Generic Care Packages NE Team -PS,Social Care - Homecare,14/09/2016,3737435,509.91,MiHOMECARE LIMITED
Adults Services,Adult Social Care,Support with Memory and Cognition - adults (18-64),Generic Care Packages NE Team -PS,Social Care - Homecare,14/09/2016,3737471,"1,019.33",SANCTUARY HOME CARE LIMITED
Adults Services,Adult Social Care,Support with Memory and Cognition - adults (18-64),Generic Care Packages NE Team -PS,Social Care - Homecare,16/09/2016,3739697,"1,019.29",Excelcare (Home Care Division) LTD
Adults Services,Adult Social Care,Support with Memory and Cognition - adults (18-64),Generic Care Packages NE Team -PS,Social Care - Homecare,16/09/2016,3739772,"1,123.54",MiHOMECARE LIMITED
Adults Services,Adult Social Care,Support with Memory and Cognition - adults (18-64),Generic Care Packages NE Team -PS,Social Care - Homecare,21/09/2016,3747615,"1,239.64",ATHLONE CARE LTD
Adults Services,Adult Social Care,Support with Memory and Cognition - adults (18-64),Generic Care Packages NE Team -PS,Social Care - Homecare,21/09/2016,3747623,683.16,ATHLONE CARE LTD
Adults Services,Adult Social Care,Support with Memory and Cognition - adults (18-64),Generic Care Packages NE Team -PS,Social Care - Homecare,21/09/2016,3747635,542.30,ATHLONE CARE LTD
Adults Services,Adult Social Care,Support with Memory and Cognition - adults (18-64),Generic Care Packages NE Team -PS,Social Care - Homecare,21/09/2016,3747670,594.78,Carewatch Newham Ltd
Adults Services,Adult Social Care,Support with Memory and Cognition - adults (18-64),Generic Care Packages NE Team -PS,Social Care - Homecare,21/09/2016,3747672,501.70,Carewatch Newham Ltd
Adults Services,Adult Social Care,Support with Memory and Cognition - adults (18-64),Generic Care Packages NE Team -PS,Social Care - Homecare,21/09/2016,3747683,601.86,Carewatch Newham Ltd
Adults Services,Adult Social Care,Support with Memory and Cognition - adults (18-64),Generic Care Packages NE Team -PS,Social Care - Homecare,21/09/2016,3747838,587.30,FOCUS CARE LINK LTD
Adults Services,Adult Social Care,Support with Memory and Cognition - adults (18-64),Generic Care Packages NE Team -PS,Social Care - Homecare,21/09/2016,3748519,576.42,MiHOMECARE LIMITED
Adults Services,Adult Social Care,Support with Memory and Cognition - adults (18-64),Generic Care Packages NE Team -PS,Social Care - Homecare,21/09/2016,3748525,"2,080.84",MiHOMECARE LIMITED
Adults Services,Adult Social Care,Support with Memory and Cognition - adults (18-64),Generic Care Packages NE Team -PS,Social Care - Homecare,21/09/2016,3748544,517.36,MiHOMECARE LIMITED
Adults Services,Adult Social Care,Support with Memory and Cognition - adults (18-64),Generic Care Packages NE Team -PS,Social Care - Homecare,21/09/2016,3748551,554.25,MiHOMECARE LIMITED
Adults Services,Adult Social Care,Support with Memory and Cognition - adults (18-64),Generic Care Packages NE Team -PS,Social Care - Homecare,21/09/2016,3748585,677.05,SANCTUARY HOME CARE LIMITED
Adults Services,Adult Social Care,Support with Memory and Cognition - adults (18-64),Generic Care Packages NE Team -PS,Social Care - Homecare,21/09/2016,3748623,653.40,Soma Healthcare Ltd
Adults Services,Adult Social Care,Support with Memory and Cognition - adults (18-64),Generic Care Packages NE Team -PS,Social Care - Homecare,21/09/2016,3748633,623.70,Soma Healthcare Ltd
Adults Services,Adult Social Care,Support with Memory and Cognition - adults (18-64),Generic Care Packages NE Team -PS,Social Care - Homecare,21/09/2016,3748668,556.88,Soma Healthcare Ltd
Adults Services,Adult Social Care,Support with Memory and Cognition - adults (18-64),Generic Care Packages NE Team -PS,Social Care - Homecare,21/09/2016,3748682,"1,433.03",Soma Healthcare Ltd
Adults Services,Adult Social Care,Support with Memory and Cognition - adults (18-64),Generic Care Packages NE Team -PS,Social Care - Homecare,21/09/2016,3748708,809.33,Soma Healthcare Ltd
Adults Services,Adult Social Care,Support with Memory and Cognition - adults (18-64),Generic Care Packages NE Team -PS,Social Care - Homecare,21/09/2016,3748713,"1,024.65",Soma Healthcare Ltd
Adults Services,Adult Social Care,Support with Memory and Cognition - adults (18-64),Generic Care Packages NE Team -PS,Social Care - Homecare,21/09/2016,3748727,787.05,Soma Healthcare Ltd
Adults Services,Adult Social Care,Support with Memory and Cognition - adults (18-64),Generic Care Packages NE Team -PS,Social Care - Homecare,21/09/2016,3748733,542.03,Soma Healthcare Ltd
Adults Services,Adult Social Care,Support with Memory and Cognition - adults (18-64),Generic Care Packages NE Team -PS,Social Care - Homecare,21/09/2016,3748749,"1,811.70",Soma Healthcare Ltd
Adults Services,Adult Social Care,Support with Memory and Cognition - adults (18-64),Generic Care Packages NE Team -PS,Social Care - Homecare,23/09/2016,3749450,997.90,Excelcare (Home Care Division) LTD
Adults Services,Adult Social Care,Support with Memory and Cognition - adults (18-64),Generic Care Packages NE Team -PS,Social Care - Homecare,23/09/2016,3749552,860.58,FOCUS CARE LINK LTD
Adults Services,Adult Social Care,Support with Memory and Cognition - adults (18-64),Generic Care Packages NE Team -PS,Social Care - Homecare,23/09/2016,3749559,847.61,FOCUS CARE LINK LTD
Adults Services,Adult Social Care,Support with Memory and Cognition - adults (18-64),Generic Care Packages NE Team -PS,Social Care - Homecare,23/09/2016,3750829,"1,132.50",SEVACARE UK LTD
Adults Services,Adult Social Care,Support with Memory and Cognition - adults (18-64),Generic Care Packages NE Team -PS,Social Care - Homecare,23/09/2016,3750844,"1,166.48",SEVACARE UK LTD
Adults Services,Adult Social Care,Support with Memory and Cognition - adults (18-64),Generic Care Packages NE Team -PS,Social Care - Homecare,23/09/2016,3750879,599.46,Excelcare (Home Care Division) LTD
Adults Services,Adult Social Care,Support with Memory and Cognition - adults (18-64),Generic Care Packages NE Team -PS,Social Care - Homecare,23/09/2016,3750881,521.80,Excelcare (Home Care Division) LTD
Adults Services,Adult Social Care,Support with Memory and Cognition - adults (18-64),Generic Care Packages NE Team -PS,Social Care - Homecare,23/09/2016,3750890,"1,974.14",Excelcare (Home Care Division) LTD
Adults Services,Adult Social Care,Support with Memory and Cognition - adults (18-64),Generic Care Packages NE Team -PS,Social Care - Homecare,23/09/2016,3750895,571.20,Excelcare (Home Care Division) LTD
Adults Services,Adult Social Care,Support with Memory and Cognition - adults (18-64),Generic Care Packages NE Team -PS,Social Care - Homecare,23/09/2016,3750905,888.44,Excelcare (Home Care Division) LTD
Adults Services,Adult Social Care,Support with Memory and Cognition - adults (18-64),Generic Care Packages NE Team -PS,Social Care - Homecare,23/09/2016,3751027,"1,691.20",St Hilda's East Community Centre
Adults Services,Adult Social Care,Support with Memory and Cognition - adults (18-64),Generic Care Packages NE Team -PS,Social Care - Homecare,23/09/2016,3751044,626.65,St Hilda's East Community Centre
Adults Services,Adult Social Care,Support with Memory and Cognition - adults (18-64),Generic Care Packages NE Team -PS,Social Care - Homecare,28/09/2016,3752244,594.78,Carewatch Newham Ltd
Adults Services,Adult Social Care,Support with Memory and Cognition - adults (18-64),Generic Care Packages NE Team -PS,Social Care - Homecare,28/09/2016,3752256,601.86,Carewatch Newham Ltd
Adults Services,Adult Social Care,Support with Memory and Cognition - adults (18-64),Generic Care Packages NE Team -PS,Social Care - Homecare,28/09/2016,3752352,611.15,FOCUS CARE LINK LTD
Adults Services,Adult Social Care,Support with Memory and Cognition - adults (18-64),Generic Care Packages NE Team -PS,Social Care - Homecare,28/09/2016,3752373,868.88,FOCUS CARE LINK LTD
Adults Services,Adult Social Care,Support with Memory and Cognition - adults (18-64),Generic Care Packages NE Team -PS,Social Care - Homecare,28/09/2016,3752382,845.04,FOCUS CARE LINK LTD
Adults Services,Adult Social Care,Support with Memory and Cognition - adults (18-64),Generic Care Packages NE Team -PS,Social Care - Homecare,28/09/2016,3752830,736.40,REDSPOT HOMECARE (CONTRACTS) LTD
Adults Services,Adult Social Care,Support with Memory and Cognition - adults (18-64),Generic Care Packages NE Team -PS,Social Care - Homecare,28/09/2016,3752854,"2,209.20",REDSPOT HOMECARE (CONTRACTS) LTD
Adults Services,Adult Social Care,Support with Memory and Cognition - adults (18-64),Generic Care Packages NE Team -PS,Social Care - Homecare,28/09/2016,3752868,"1,960.80",COMMUNITY CARE CONSORTIUM
Adults Services,Adult Social Care,Support with Memory and Cognition - adults (18-64),Generic Care Packages NE Team -PS,Social Care - Homecare,28/09/2016,3752971,931.14,MiHOMECARE LIMITED
Adults Services,Adult Social Care,Support with Memory and Cognition - adults (18-64),Generic Care Packages NE Team -PS,Social Care - Homecare,28/09/2016,3752984,"2,054.97",MiHOMECARE LIMITED
Adults Services,Adult Social Care,Support with Memory and Cognition - adults (18-64),Generic Care Packages NE Team -PS,Social Care - Homecare,28/09/2016,3753065,550.97,SANCTUARY HOME CARE LIMITED
Adults Services,Adult Social Care,Support with Memory and Cognition - adults (18-64),Generic Care Packages NE Team -PS,Social Care - Homecare,28/09/2016,3753152,531.96,SANCTUARY HOME CARE LIMITED
Adults Services,Adult Social Care,Support with Memory and Cognition - adults (18-64),Generic Care Packages NE Team -PS,Social Care - Homecare,28/09/2016,3753184,677.04,SANCTUARY HOME CARE LIMITED
Adults Services,Adult Social Care,Support with Memory and Cognition - adults (18-64),Generic Care Packages NE Team -PS,Social Care - Homecare,30/09/2016,3754834,641.55,Oasis Care & Training Agency
Adults Services,Adult Social Care,Support with Memory and Cognition - adults (18-64),Generic Care Packages NE Team -PS,Social Care - Homecare,30/09/2016,3754873,830.50,SEVACARE UK LTD
Adults Services,Adult Social Care,Support with Memory and Cognition - adults (18-64),Generic Care Packages NE Team -PS,Social Care - Homecare,30/09/2016,3754874,543.60,SEVACARE UK LTD
Adults Services,Adult Social Care,Support with Memory and Cognition - adults (18-64),Generic Care Packages NE Team -PS,Social Care - Homecare,30/09/2016,3754881,596.45,SEVACARE UK LTD
Adults Services,Adult Social Care,Support with Memory and Cognition - adults (18-64),Generic Care Packages NE Team -PS,Social Care - Homecare,30/09/2016,3754892,736.40,REDSPOT HOMECARE (CONTRACTS) LTD
Adults Services,Adult Social Care,Support with Memory and Cognition - adults (18-64),Generic Care Packages NE Team -PS,Social Care - Homecare,30/09/2016,3754918,"2,209.20",REDSPOT HOMECARE (CONTRACTS) LTD
Adults Services,Adult Social Care,Support with Memory and Cognition - adults (18-64),Generic Care Packages NE Team -PS,Social Care - Homecare,30/09/2016,3754937,"1,960.80",COMMUNITY CARE CONSORTIUM
Adults Services,Adult Social Care,Support with Memory and Cognition - adults (18-64),Generic Care Packages NE Team -PS,Social Care - Homecare,30/09/2016,3755029,"1,138.33",MiHOMECARE LIMITED
Adults Services,Adult Social Care,Support with Memory and Cognition - adults (18-64),Generic Care Packages NE Team -PS,Social Care - Homecare,30/09/2016,3755037,580.17,MiHOMECARE LIMITED
Adults Services,Adult Social Care,Support with Memory and Cognition - adults (18-64),Generic Care Packages NE Team -PS,Social Care - Homecare,30/09/2016,3755047,509.98,MiHOMECARE LIMITED
Adults Services,Adult Social Care,Support with Memory and Cognition - adults (18-64),Generic Care Packages NE Team -PS,Social Care - Homecare,30/09/2016,3755066,517.30,MiHOMECARE LIMITED
Adults Services,Adult Social Care,Support with Memory and Cognition - adults (18-64),Generic Care Packages NE Team -PS,Social Care - Homecare,30/09/2016,3755094,644.83,SANCTUARY HOME CARE LIMITED
Adults Services,Adult Social Care,Support with Memory and Cognition - adults (18-64),Generic Care Packages NE Team -PS,Social Care - Homecare,30/09/2016,3755129,523.90,SANCTUARY HOME CARE LIMITED
Adults Services,Adult Social Care,Support with Memory and Cognition - adults (18-64),Generic Care Packages NE Team -PS,Social Care - Homecare,30/09/2016,3755144,620.62,SANCTUARY HOME CARE LIMITED
Adults Services,Adult Social Care,Support with Memory and Cognition - adults (18-64),Generic Care Packages NE Team -PS,Social Care - Prevention & Support,07/09/2016,3733412,"1,808.00",CITY VIEW HOTEL LTD
Adults Services,Adult Social Care,Support with Memory and Cognition - adults (18-64),Generic Care Packages NE Team -PS,Social Care - Prevention & Support,07/09/2016,3733413,"1,750.00",CITY VIEW HOTEL LTD
Adults Services,Adult Social Care,Support with Memory and Cognition - adults (18-64),Generic Care Packages NE Team -PS,Social Care - Prevention & Support,07/09/2016,3733414,"1,808.00",CITY VIEW HOTEL LTD
Adults Services,Adult Social Care,Support with Memory and Cognition - adults (18-64),Generic Care Packages NE Team -PS,Social Care - Prevention & Support,07/09/2016,3733415,"1,808.00",CITY VIEW HOTEL LTD
Adults Services,Adult Social Care,Support with Memory and Cognition - adults (18-64),Generic Care Packages NE Team -PS,Social Care - Prevention & Support,09/09/2016,3735662,"3,795.00",THE NATIONAL SOCIETY FOR EPILEPSY
Adults Services,Adult Social Care,Support with Memory and Cognition - adults (18-64),Generic Care Packages NE Team -PS,Social Care - Prevention & Support,28/09/2016,3752198,"2,142.86",Sign Health
Adults Services,Adult Social Care,Support with Memory and Cognition - adults (18-64),Generic Care Packages NE Team -PS,Social Care - Direct Payments,02/09/2016,3731648,-750.00,DAVID HOWARD LTD CLIENT ACCOUNT
Adults Services,Adult Social Care,Support with Memory and Cognition - adults (18-64),Generic Care Packages NE Team -PS,Social Care - Direct Payments,09/09/2016,3735397,-725.89,DAVID HOWARD LTD CLIENT ACCOUNT
Adults Services,Adult Social Care,Support with Memory and Cognition - adults (18-64),Generic Care Packages NE Team -PS,Social Care - Direct Payments,09/09/2016,3735399,"1,152.75",DAVID HOWARD LTD CLIENT ACCOUNT
Adults Services,Adult Social Care,Support with Memory and Cognition - adults (18-64),Generic Care Packages NE Team -PS,Social Care - Direct Payments,14/09/2016,3737238,-905.24,DAVID HOWARD LTD CLIENT ACCOUNT
Adults Services,Adult Social Care,Support with Memory and Cognition - adults (18-64),Generic Care Packages NE Team -PS,Social Care - Direct Payments,14/09/2016,3737241,759.65,DAVID HOWARD LTD CLIENT ACCOUNT
Adults Services,Adult Social Care,Support with Memory and Cognition - adults (18-64),Generic Care Packages NE Team -PS,Social Care - Direct Payments,21/09/2016,3747896,"-1,861.19",DAVID HOWARD LTD CLIENT ACCOUNT
Adults Services,Adult Social Care,Support with Memory and Cognition - adults (18-64),Generic Care Packages NE Team -PS,Social Care - Direct Payments,21/09/2016,3747898,"2,491.78",D D PAYROLL SERVICES
Adults Services,Adult Social Care,Support with Memory and Cognition - adults (18-64),Generic Care Packages NE Team -PS,Social Care - Direct Payments,21/09/2016,3747901,891.38,D D PAYROLL SERVICES
Adults Services,Adult Social Care,Support with Memory and Cognition - adults (18-64),Generic Care Packages NE Team -PS,Social Care - Direct Payments,21/09/2016,3747906,904.14,DAVID HOWARD LTD CLIENT ACCOUNT
Adults Services,Adult Social Care,Support with Memory and Cognition - adults (18-64),Generic Care Packages NE Team -PS,Social Care - Direct Payments,21/09/2016,3747927,748.65,DAVID HOWARD LTD CLIENT ACCOUNT
Adults Services,Adult Social Care,Support with Memory and Cognition - adults (18-64),Generic Care Packages NE Team -PS,Social Care - Direct Payments,21/09/2016,3747941,"3,630.68",DAVID HOWARD LTD CLIENT ACCOUNT
Adults Services,Adult Social Care,Support with Memory and Cognition - adults (18-64),Generic Care Packages NE Team -PS,Social Care - Direct Payments,21/09/2016,3748028,"1,875.85",DAVID HOWARD LTD CLIENT ACCOUNT
Adults Services,Adult Social Care,Support with Memory and Cognition - adults (18-64),Generic Care Packages NE Team -PS,Social Care - Direct Payments,21/09/2016,3748041,"1,360.24",D D PAYROLL SERVICES
Adults Services,Adult Social Care,Support with Memory and Cognition - adults (18-64),Generic Care Packages NE Team -PS,Social Care - Direct Payments,21/09/2016,3748078,831.24,DAVID HOWARD LTD CLIENT ACCOUNT
Adults Services,Adult Social Care,Support with Memory and Cognition - adults (18-64),Generic Care Packages NE Team -PS,Social Care - Direct Payments,21/09/2016,3748141,510.75,DAVID HOWARD LTD CLIENT ACCOUNT
Adults Services,Adult Social Care,Support with Memory and Cognition - adults (18-64),Generic Care Packages NE Team -PS,Social Care - Direct Payments,21/09/2016,3748146,"1,140.62",DAVID HOWARD LTD CLIENT ACCOUNT
Adults Services,Adult Social Care,Support with Memory and Cognition - adults (18-64),Generic Care Packages NE Team -PS,Social Care - Direct Payments,21/09/2016,3748147,"1,002.32",DAVID HOWARD LTD CLIENT ACCOUNT
Adults Services,Adult Social Care,Support with Memory and Cognition - adults (18-64),Generic Care Packages NE Team -PS,Social Care - Direct Payments,21/09/2016,3748149,"1,189.51",DAVID HOWARD LTD CLIENT ACCOUNT
Adults Services,Adult Social Care,Support with Memory and Cognition - adults (18-64),Generic Care Packages NE Team -PS,Social Care - Direct Payments,21/09/2016,3748163,519.74,DAVID HOWARD LTD CLIENT ACCOUNT
Adults Services,Adult Social Care,Support with Memory and Cognition - adults (18-64),Generic Care Packages NE Team -PS,Social Care - Direct Payments,21/09/2016,3748173,"1,426.04",D D PAYROLL SERVICES
Adults Services,Adult Social Care,Support with Memory and Cognition - adults (18-64),Generic Care Packages NE Team -PS,Social Care - Direct Payments,21/09/2016,3748195,"1,554.47",D D PAYROLL SERVICES
Adults Services,Adult Social Care,Support with Memory and Cognition - adults (18-64),Generic Care Packages NE Team -PS,Social Care - Direct Payments,21/09/2016,3748201,659.90,DAVID HOWARD LTD CLIENT ACCOUNT
Adults Services,Adult Social Care,Support with Memory and Cognition - adults (18-64),Generic Care Packages NE Team -PS,Social Care - Direct Payments,21/09/2016,3748221,814.90,D D PAYROLL SERVICES
Adults Services,Adult Social Care,Support with Memory and Cognition - adults (18-64),Generic Care Packages NE Team -PS,Social Care - Direct Payments,21/09/2016,3748224,672.83,DAVID HOWARD LTD CLIENT ACCOUNT
Adults Services,Adult Social Care,Support with Memory and Cognition - adults (18-64),Generic Care Packages NE Team -PS,Social Care - Direct Payments,21/09/2016,3748267,"1,287.25",DAVID HOWARD LTD CLIENT ACCOUNT
Adults Services,Adult Social Care,Support with Memory and Cognition - adults (18-64),Generic Care Packages NE Team -PS,Social Care - Direct Payments,21/09/2016,3748367,500.65,DAVID HOWARD LTD CLIENT ACCOUNT
Adults Services,Adult Social Care,Support with Memory and Cognition - adults (18-64),Generic Care Packages NE Team -PS,Social Care - Direct Payments,21/09/2016,3748374,"1,275.65",D D PAYROLL SERVICES
Adults Services,Adult Social Care,Support with Memory and Cognition - adults (18-64),Generic Care Packages NE Team -PS,Social Care - Direct Payments,21/09/2016,3748392,813.09,D D PAYROLL SERVICES
Adults Services,Adult Social Care,Support with Memory and Cognition - adults (18-64),Generic Care Packages NE Team -PS,Social Care - Direct Payments,21/09/2016,3748418,591.57,DAVID HOWARD LTD CLIENT ACCOUNT
Adults Services,Adult Social Care,Support with Memory and Cognition - adults (18-64),Generic Care Packages NE Team -PS,Social Care - Direct Payments,21/09/2016,3748429,542.90,DAVID HOWARD LTD CLIENT ACCOUNT
Adults Services,Adult Social Care,Support with Memory and Cognition - adults (18-64),Generic Care Packages NE Team -PS,Social Care - Direct Payments,21/09/2016,3748447,"1,239.42",DAVID HOWARD LTD CLIENT ACCOUNT
Adults Services,Adult Social Care,Support with Memory and Cognition - adults (18-64),Generic Care Packages NE Team -PS,Social Care - Direct Payments,28/09/2016,3752393,"1,453.28",D D PAYROLL SERVICES
Adults Services,Adult Social Care,Support with Memory and Cognition - adults (18-64),Generic Care Packages NE Team -PS,Social Care - Direct Payments,28/09/2016,3752395,"2,996.99",DAVID HOWARD LTD CLIENT ACCOUNT
Adults Services,Adult Social Care,Support with Memory and Cognition - adults (18-64),Generic Care Packages NE Team -PS,Social Care - Direct Payments,28/09/2016,3752411,"-1,406.40",D D PAYROLL SERVICES
Adults Services,Adult Social Care,Support with Memory and Cognition - adults (18-64),Generic Care Packages NE Team -PS,Social Care - Direct Payments,28/09/2016,3752420,"5,318.07",D D PAYROLL SERVICES
Adults Services,Adult Social Care,Support with Memory and Cognition - adults (18-64),Generic Care Packages NE Team -PS,Social Care - Home Care (Short Term),02/09/2016,3731682,"1,056.77",MiHOMECARE LIMITED
Adults Services,Adult Social Care,Support with Memory and Cognition - adults (18-64),Generic Care Packages NE Team -PS,Social Care - Home Care (Short Term),07/09/2016,3733092,563.32,ATHLONE CARE LTD
Adults Services,Adult Social Care,Support with Memory and Cognition - adults (18-64),Generic Care Packages NE Team -PS,Social Care - Home Care (Short Term),07/09/2016,3733461,936.20,SEVACARE UK LTD
Adults Services,Adult Social Care,Support with Memory and Cognition - adults (18-64),Generic Care Packages NE Team -PS,Social Care - Home Care (Short Term),07/09/2016,3733784,660.92,SANCTUARY HOME CARE LIMITED
Adults Services,Adult Social Care,Support with Memory and Cognition - adults (18-64),Generic Care Packages NE Team -PS,Social Care - Home Care (Short Term),07/09/2016,3733856,531.96,SANCTUARY HOME CARE LIMITED
Adults Services,Adult Social Care,Support with Memory and Cognition - adults (18-64),Generic Care Packages NE Team -PS,Social Care - Home Care (Short Term),07/09/2016,3733911,531.96,SANCTUARY HOME CARE LIMITED
Adults Services,Adult Social Care,Support with Memory and Cognition - adults (18-64),Generic Care Packages NE Team -PS,Social Care - Home Care (Short Term),07/09/2016,3733969,531.96,SANCTUARY HOME CARE LIMITED
Adults Services,Adult Social Care,Support with Memory and Cognition - adults (18-64),Generic Care Packages NE Team -PS,Social Care - Home Care (Short Term),07/09/2016,3734015,512.33,Soma Healthcare Ltd
Adults Services,Adult Social Care,Support with Memory and Cognition - adults (18-64),Generic Care Packages NE Team -PS,Social Care - Home Care (Short Term),09/09/2016,3735710,660.92,SANCTUARY HOME CARE LIMITED
Adults Services,Adult Social Care,Support with Memory and Cognition - adults (18-64),Generic Care Packages NE Team -PS,Social Care - Home Care (Short Term),14/09/2016,3737263,505.85,SEVACARE UK LTD
Adults Services,Adult Social Care,Support with Memory and Cognition - adults (18-64),Generic Care Packages NE Team -PS,Social Care - Home Care (Short Term),16/09/2016,3739879,"1,805.44",SANCTUARY HOME CARE LIMITED
Adults Services,Adult Social Care,Support with Memory and Cognition - adults (18-64),Generic Care Packages NE Team -PS,Social Care - Home Care (Short Term),21/09/2016,3747638,"1,183.00",ATHLONE CARE LTD
Adults Services,Adult Social Care,Support with Memory and Cognition - adults (18-64),Generic Care Packages NE Team -PS,Social Care - Home Care (Short Term),21/09/2016,3747845,882.77,FOCUS CARE LINK LTD
Adults Services,Adult Social Care,Support with Memory and Cognition - adults (18-64),Generic Care Packages NE Team -PS,Social Care - Home Care (Short Term),28/09/2016,3752243,781.16,Carewatch Newham Ltd
Adults Services,Adult Social Care,Support with Memory and Cognition - adults (18-64),Generic Care Packages NE Team -PS,Social Care - Home Care (Short Term),28/09/2016,3752283,623.46,Carewatch Newham Ltd
Adults Services,Adult Social Care,Support with Memory and Cognition - adults (18-64),Generic Care Packages NE Team -PS,Social Care - Home Care (Short Term),28/09/2016,3752359,950.67,FOCUS CARE LINK LTD
Adults Services,Adult Social Care,Support with Memory and Cognition - adults (18-64),Generic Care Packages NE Team -PS,Social Care - Home Care (Short Term),28/09/2016,3752792,520.95,SEVACARE UK LTD
Adults Services,Adult Social Care,Support with Memory and Cognition - adults (18-64),Generic Care Packages NE Team -PS,Social Care - Home Care (Short Term),30/09/2016,3755164,660.92,SANCTUARY HOME CARE LIMITED
Adults Services,Adult Social Care,Support with Memory and Cognition - adults (18-64),Generic Care Packages NE Team -PS,Social Care - Home Care (Short Term),30/09/2016,3755209,531.96,SANCTUARY HOME CARE LIMITED
Adults Services,Adult Social Care,Support with Memory and Cognition - adults (18-64),Generic Care Packages NE Team -PS,Social Care - Supported Living,28/09/2016,3752200,"3,409.20",Sign Health
Adults Services,Adult Social Care,Support with Memory and Cognition - adults (18-64),Generic Care Packages NE Team -SP,Social Care - Residential Care,28/09/2016,3752542,"2,357.15",GATEWAY HOUSING ASSOCIATION
Adults Services,Adult Social Care,Support with Memory and Cognition - adults (18-64),Generic Care Packages NE Team -SP,Social Care - Direct Payments,21/09/2016,3748324,871.10,DAVID HOWARD LTD CLIENT ACCOUNT
Adults Services,Adult Social Care,Support with Memory and Cognition - adults (18-64),Generic Care Packages NE Team-SMC,Social Care - Residential Care,07/09/2016,3733505,"3,179.71",Leona Enterprises Ltd
Adults Services,Adult Social Care,Support with Memory and Cognition - adults (18-64),Generic Care Packages NE Team-SMC,Social Care - Residential Care,28/09/2016,3752469,"3,927.90",East Thames Group Ltd
Adults Services,Adult Social Care,Support with Memory and Cognition - adults (18-64),Generic Care Packages NE Team-SMC,Social Care - Residential Care,28/09/2016,3752485,"2,400.00",GATEWAY HOUSING ASSOCIATION
Adults Services,Adult Social Care,Support with Memory and Cognition - adults (18-64),Generic Care Packages NE Team-SMC,Social Care - Residential Care,28/09/2016,3752486,"2,400.00",GATEWAY HOUSING ASSOCIATION
Adults Services,Adult Social Care,Support with Memory and Cognition - adults (18-64),Generic Care Packages NE Team-SMC,Social Care - Residential Care,28/09/2016,3752500,"-1,086.47",BUPA CARE HOMES LTD
Adults Services,Adult Social Care,Support with Memory and Cognition - adults (18-64),Generic Care Packages NE Team-SMC,Social Care - Residential Care,28/09/2016,3752508,"2,400.00",GATEWAY HOUSING ASSOCIATION
Adults Services,Adult Social Care,Support with Memory and Cognition - adults (18-64),Generic Care Packages NE Team-SMC,Social Care - Residential Care,28/09/2016,3752529,"2,666.45",THE CEDARS
Adults Services,Adult Social Care,Support with Memory and Cognition - adults (18-64),Generic Care Packages NE Team-SMC,Social Care - Residential Care,28/09/2016,3752596,"2,610.00",SANCTUARY CARE LTD
Adults Services,Adult Social Care,Support with Memory and Cognition - adults (18-64),Generic Care Packages NE Team-SMC,Social Care - Residential Care,28/09/2016,3752643,"2,160.00",BUPA CARE HOMES LTD
Adults Services,Adult Social Care,Support with Memory and Cognition - adults (18-64),Generic Care Packages NE Team-SMC,Social Care - Residential Care,28/09/2016,3752694,"2,276.19",SHANTI HEALTHCARE LTD
Adults Services,Adult Social Care,Support with Memory and Cognition - adults (18-64),Generic Care Packages NE Team-SMC,Social Care - Residential Care,28/09/2016,3752716,"3,428.57",CARMEN LODGE
Adults Services,Adult Social Care,Support with Memory and Cognition - adults (18-64),Generic Care Packages NE Team-SMC,Social Care - Residential Care,28/09/2016,3752725,"3,428.57",SHANTI HEALTHCARE LTD
Adults Services,Adult Social Care,Support with Memory and Cognition - adults (18-64),Generic Care Packages NE Team-SMC,Social Care - Residential Care,28/09/2016,3752741,"3,385.89",East Thames Group Ltd
Adults Services,Adult Social Care,Support with Memory and Cognition - adults (18-64),Generic Care Packages NE Team-SMC,Social Care - Residential Care,28/09/2016,3752752,"2,400.00",EXCELCARE HOLDING PLC
Adults Services,Adult Social Care,Support with Memory and Cognition - adults (18-64),Generic Care Packages NE Team-SMC,Social Care - Residential Care,30/09/2016,3752817,"1,721.14",ASTON GRANGE NURSING HOME
Adults Services,Adult Social Care,Support with Memory and Cognition - adults (18-64),Generic Care Packages NE Team-SMC,Social Care - Homecare,07/09/2016,3733735,507.86,SANCTUARY HOME CARE LIMITED
Adults Services,Adult Social Care,Support with Memory and Cognition - adults (18-64),Generic Care Packages NE Team-SMC,Social Care - Homecare,09/09/2016,3735519,672.56,MiHOMECARE LIMITED
Adults Services,Adult Social Care,Support with Memory and Cognition - adults (18-64),Generic Care Packages NE Team-SMC,Social Care - Homecare,09/09/2016,3735717,620.62,SANCTUARY HOME CARE LIMITED
Adults Services,Adult Social Care,Support with Memory and Cognition - adults (18-64),Generic Care Packages NE Team-SMC,Social Care - Homecare,14/09/2016,3737425,672.56,MiHOMECARE LIMITED
Adults Services,Adult Social Care,Support with Memory and Cognition - adults (18-64),Generic Care Packages NE Team-SMC,Social Care - Homecare,14/09/2016,3737434,672.56,MiHOMECARE LIMITED
Adults Services,Adult Social Care,Support with Memory and Cognition - adults (18-64),Generic Care Packages NE Team-SMC,Social Care - Homecare,30/09/2016,3755065,679.95,MiHOMECARE LIMITED
Adults Services,Adult Social Care,Support with Memory and Cognition - adults (18-64),Generic Care Packages NE Team-SMC,Social Care - Prevention & Support,23/09/2016,3749099,862.00,Look Ahead Care & Support Ltd
Adults Services,Adult Social Care,Support with Memory and Cognition - adults (18-64),Generic Care Packages NE Team-SMC,Social Care - Home Care (Short Term),02/09/2016,3731811,515.84,SANCTUARY HOME CARE LIMITED
Adults Services,Adult Social Care,Support with Memory and Cognition - adults (18-64),Generic Care Packages NE Team-SMC,Social Care - Home Care (Short Term),09/09/2016,3735764,515.84,SANCTUARY HOME CARE LIMITED
Adults Services,Adult Social Care,Support with Memory and Cognition - adults (18-64),Generic Care Packages NE Team-SMC,Social Care - Home Care (Short Term),16/09/2016,3739881,"1,805.44",SANCTUARY HOME CARE LIMITED
Adults Services,Adult Social Care,Support with Memory and Cognition - adults (18-64),Generic Care Packages NE Team-SMC,Social Care - Home Care (Short Term),16/09/2016,3739886,"1,805.44",SANCTUARY HOME CARE LIMITED
Adults Services,Adult Social Care,Support with Memory and Cognition - adults (18-64),Generic Care Packages NE Team-SMC,Social Care - Home Care (Short Term),30/09/2016,3755155,"1,547.52",SANCTUARY HOME CARE LIMITED
Adults Services,Adult Social Care,Support with Memory and Cognition - adults (18-64),Generic Care Packages NE Team-SMC,Social Care - Home Care (Short Term),30/09/2016,3755178,515.84,SANCTUARY HOME CARE LIMITED
Adults Services,Adult Social Care,Support with Memory and Cognition - adults (18-64),Generic Care Packages NE Team-SMC,Social Care - Supported Living,28/09/2016,3752698,"1,014.98",Providence Row Housing Association
Adults Services,Adult Social Care,Support with Memory and Cognition - adults (18-64),Generic Care Packages NE Team-SMC,Social Care - Supported Living,30/09/2016,3754804,"-61,711.14",Providence Row Housing Association
Adults Services,Adult Social Care,Support with Memory and Cognition - adults (18-64),Generic Care Packages NE Team -SM,Social Care - Homecare,28/09/2016,3753229,789.00,Soma Healthcare Ltd
Adults Services,Adult Social Care,Support with Memory and Cognition - adults (18-64),Generic Care Packages NE Team -SI,Social Care - Homecare,05/09/2016,3730471,676.17,POSITIVE CARE LINK
Adults Services,Adult Social Care,Support with Memory and Cognition - adults (18-64),Generic Care Packages NE Team -SI,Social Care - Homecare,26/09/2016,3733729,676.17,POSITIVE CARE LINK
Adults Services,Adult Social Care,Support with Memory and Cognition - adults (18-64),Generic Care Packages NE Team -SI,Social Care - Homecare,30/09/2016,3754852,966.40,SEVACARE UK LTD
Adults Services,Adult Social Care,Support with Memory and Cognition - adults (18-64),Generic Care Packages NE Team -SI,Social Care - Direct Payments,21/09/2016,3747894,"1,171.76",DAVID HOWARD LTD CLIENT ACCOUNT
Adults Services,Adult Social Care,Support with Memory and Cognition - adults (18-64),Generic Care Packages NE Team -SI,Social Care - Direct Payments,21/09/2016,3747940,"2,173.37",DAVID HOWARD LTD CLIENT ACCOUNT
Adults Services,Adult Social Care,Support with Memory and Cognition - adults (18-64),Generic Care Packages NW Team -PS,Social Care - Nursing Care,07/09/2016,3733110,"1,740.10",Samkar Ltd
Adults Services,Adult Social Care,Support with Memory and Cognition - adults (18-64),Generic Care Packages NW Team -PS,Social Care - Nursing Care,07/09/2016,3733111,"4,872.44",Samkar Ltd
Adults Services,Adult Social Care,Support with Memory and Cognition - adults (18-64),Generic Care Packages NW Team -PS,Social Care - Nursing Care,07/09/2016,3733112,"4,872.44",Samkar Ltd
Adults Services,Adult Social Care,Support with Memory and Cognition - adults (18-64),Generic Care Packages NW Team -PS,Social Care - Nursing Care,07/09/2016,3733113,"4,689.92",Samkar Ltd
Adults Services,Adult Social Care,Support with Memory and Cognition - adults (18-64),Generic Care Packages NW Team -PS,Social Care - Nursing Care,07/09/2016,3733114,"4,689.92",Samkar Ltd
Adults Services,Adult Social Care,Support with Memory and Cognition - adults (18-64),Generic Care Packages NW Team -PS,Social Care - Nursing Care,07/09/2016,3733115,"4,689.92",Samkar Ltd
Adults Services,Adult Social Care,Support with Memory and Cognition - adults (18-64),Generic Care Packages NW Team -PS,Social Care - Nursing Care,07/09/2016,3733116,"4,689.92",Samkar Ltd
Adults Services,Adult Social Care,Support with Memory and Cognition - adults (18-64),Generic Care Packages NW Team -PS,Social Care - Nursing Care,07/09/2016,3733118,502.50,Samkar Ltd
Adults Services,Adult Social Care,Support with Memory and Cognition - adults (18-64),Generic Care Packages NW Team -PS,Social Care - Nursing Care,07/09/2016,3733119,"4,350.37",Samkar Ltd
Adults Services,Adult Social Care,Support with Memory and Cognition - adults (18-64),Generic Care Packages NW Team -PS,Social Care - Nursing Care,14/09/2016,3737196,"2,188.20",Bennetts Castlle Care Home
Adults Services,Adult Social Care,Support with Memory and Cognition - adults (18-64),Generic Care Packages NW Team -PS,Social Care - Nursing Care,14/09/2016,3737245,"2,188.20",Bennetts Castlle Care Home
Adults Services,Adult Social Care,Support with Memory and Cognition - adults (18-64),Generic Care Packages NW Team -PS,Social Care - Nursing Care,30/09/2016,3752313,"5,128.71",LIFE STYLE CARE (2011) PLC
Adults Services,Adult Social Care,Support with Memory and Cognition - adults (18-64),Generic Care Packages NW Team -PS,Social Care - Nursing Care,28/09/2016,3752437,"1,942.10",DERHAM HOUSE
Adults Services,Adult Social Care,Support with Memory and Cognition - adults (18-64),Generic Care Packages NW Team -PS,Social Care - Nursing Care,28/09/2016,3752438,"2,673.20",TREES PARK (EAST HAM) LIMITED
Adults Services,Adult Social Care,Support with Memory and Cognition - adults (18-64),Generic Care Packages NW Team -PS,Social Care - Nursing Care,28/09/2016,3752444,-669.65,SANCTUARY CARE LTD
Adults Services,Adult Social Care,Support with Memory and Cognition - adults (18-64),Generic Care Packages NW Team -PS,Social Care - Nursing Care,28/09/2016,3752465,"2,330.35",HORNCHURCH VCT LTD
Adults Services,Adult Social Care,Support with Memory and Cognition - adults (18-64),Generic Care Packages NW Team -PS,Social Care - Nursing Care,28/09/2016,3752467,-669.65,SANCTUARY CARE LTD
Adults Services,Adult Social Care,Support with Memory and Cognition - adults (18-64),Generic Care Packages NW Team -PS,Social Care - Nursing Care,28/09/2016,3752498,-669.65,SANCTUARY CARE LTD
Adults Services,Adult Social Care,Support with Memory and Cognition - adults (18-64),Generic Care Packages NW Team -PS,Social Care - Nursing Care,28/09/2016,3752569,"3,330.00",SANCTUARY CARE LTD
Adults Services,Adult Social Care,Support with Memory and Cognition - adults (18-64),Generic Care Packages NW Team -PS,Social Care - Nursing Care,28/09/2016,3752572,"3,385.72",SANCTUARY CARE LTD
Adults Services,Adult Social Care,Support with Memory and Cognition - adults (18-64),Generic Care Packages NW Team -PS,Social Care - Nursing Care,28/09/2016,3752576,"3,385.72",SANCTUARY CARE LTD
Adults Services,Adult Social Care,Support with Memory and Cognition - adults (18-64),Generic Care Packages NW Team -PS,Social Care - Nursing Care,28/09/2016,3752581,"3,330.00",SANCTUARY CARE LTD
Adults Services,Adult Social Care,Support with Memory and Cognition - adults (18-64),Generic Care Packages NW Team -PS,Social Care - Nursing Care,28/09/2016,3752758,"4,950.00",SANCTUARY CARE LTD
Adults Services,Adult Social Care,Support with Memory and Cognition - adults (18-64),Generic Care Packages NW Team -PS,Social Care - Nursing Care,28/09/2016,3752764,"2,117.61",Bennetts Castlle Care Home
Adults Services,Adult Social Care,Support with Memory and Cognition - adults (18-64),Generic Care Packages NW Team -PS,Social Care - Nursing Care,30/09/2016,3754450,"3,723.33",BARCHESTER HEALTHCARE
Adults Services,Adult Social Care,Support with Memory and Cognition - adults (18-64),Generic Care Packages NW Team -PS,Social Care - Nursing Care,30/09/2016,3754454,"3,723.33",BARCHESTER HEALTHCARE
Adults Services,Adult Social Care,Support with Memory and Cognition - adults (18-64),Generic Care Packages NW Team -PS,Social Care - Nursing Care,30/09/2016,3754458,"3,603.22",BARCHESTER HEALTHCARE
Adults Services,Adult Social Care,Support with Memory and Cognition - adults (18-64),Generic Care Packages NW Team -PS,Social Care - Nursing Care,30/09/2016,3754640,"1,823.31",LIFE STYLE CARE (2011) PLC
Adults Services,Adult Social Care,Support with Memory and Cognition - adults (18-64),Generic Care Packages NW Team -PS,Social Care - Nursing Care,30/09/2016,3754785,"4,447.56",SANCTUARY CARE LTD
Adults Services,Adult Social Care,Support with Memory and Cognition - adults (18-64),Generic Care Packages NW Team -PS,Social Care - Nursing Care,30/09/2016,3754798,"31,554.43",SANCTUARY CARE LTD
Adults Services,Adult Social Care,Support with Memory and Cognition - adults (18-64),Generic Care Packages NW Team -PS,Social Care - Residential Care,14/09/2016,3727695,"3,365.71",Federation of Jewish Services
Adults Services,Adult Social Care,Support with Memory and Cognition - adults (18-64),Generic Care Packages NW Team -PS,Social Care - Residential Care,02/09/2016,3727733,"3,764.29",OULTON PARK CARE CENTRE
Adults Services,Adult Social Care,Support with Memory and Cognition - adults (18-64),Generic Care Packages NW Team -PS,Social Care - Residential Care,05/09/2016,3727787,"1,137.00",Forest Drive Residential Home Ltd
Adults Services,Adult Social Care,Support with Memory and Cognition - adults (18-64),Generic Care Packages NW Team -PS,Social Care - Residential Care,02/09/2016,3731655,-597.49,JEWISH CARE
Adults Services,Adult Social Care,Support with Memory and Cognition - adults (18-64),Generic Care Packages NW Team -PS,Social Care - Residential Care,28/09/2016,3733433,"7,523.54",ANCHOR TRUST HOMES ACCOUNT
Adults Services,Adult Social Care,Support with Memory and Cognition - adults (18-64),Generic Care Packages NW Team -PS,Social Care - Residential Care,28/09/2016,3733435,"-7,523.54",ANCHOR TRUST HOMES ACCOUNT
Adults Services,Adult Social Care,Support with Memory and Cognition - adults (18-64),Generic Care Packages NW Team -PS,Social Care - Residential Care,28/09/2016,3733471,"2,258.57",ROSE COURT
Adults Services,Adult Social Care,Support with Memory and Cognition - adults (18-64),Generic Care Packages NW Team -PS,Social Care - Residential Care,07/09/2016,3733474,"2,400.00",Dalton Court Care Home
Adults Services,Adult Social Care,Support with Memory and Cognition - adults (18-64),Generic Care Packages NW Team -PS,Social Care - Residential Care,12/09/2016,3733475,"3,542.86",Dalton Court Care Home
Adults Services,Adult Social Care,Support with Memory and Cognition - adults (18-64),Generic Care Packages NW Team -PS,Social Care - Residential Care,09/09/2016,3735359,"1,980.00",St Georges Nursing Home
Adults Services,Adult Social Care,Support with Memory and Cognition - adults (18-64),Generic Care Packages NW Team -PS,Social Care - Residential Care,30/09/2016,3735651,"3,800.91",HEALTH & HOME LTD (ALEXANDER HOUSE)
Adults Services,Adult Social Care,Support with Memory and Cognition - adults (18-64),Generic Care Packages NW Team -PS,Social Care - Residential Care,30/09/2016,3735652,"3,927.61",HEALTH & HOME LTD (ALEXANDER HOUSE)
Adults Services,Adult Social Care,Support with Memory and Cognition - adults (18-64),Generic Care Packages NW Team -PS,Social Care - Residential Care,30/09/2016,3735653,"3,927.61",HEALTH & HOME LTD (ALEXANDER HOUSE)
Adults Services,Adult Social Care,Support with Memory and Cognition - adults (18-64),Generic Care Packages NW Team -PS,Social Care - Residential Care,28/09/2016,3737209,"1,643.48",ROBERTA HOUSE & ELIZABETH HOUSE
Adults Services,Adult Social Care,Support with Memory and Cognition - adults (18-64),Generic Care Packages NW Team -PS,Social Care - Residential Care,28/09/2016,3737210,"-1,643.48",ROBERTA HOUSE & ELIZABETH HOUSE
Adults Services,Adult Social Care,Support with Memory and Cognition - adults (18-64),Generic Care Packages NW Team -PS,Social Care - Residential Care,14/09/2016,3737455,"1,990.16",RUNWOOD HOMES PLC
Adults Services,Adult Social Care,Support with Memory and Cognition - adults (18-64),Generic Care Packages NW Team -PS,Social Care - Residential Care,16/09/2016,3739655,"1,695.29",BARCHESTER HEALTHCARE
Adults Services,Adult Social Care,Support with Memory and Cognition - adults (18-64),Generic Care Packages NW Team -PS,Social Care - Residential Care,23/09/2016,3749370,"1,746.19",BARCHESTER HEALTHCARE
Adults Services,Adult Social Care,Support with Memory and Cognition - adults (18-64),Generic Care Packages NW Team -PS,Social Care - Residential Care,30/09/2016,3752172,"1,689.81",BARCHESTER HEALTHCARE
Adults Services,Adult Social Care,Support with Memory and Cognition - adults (18-64),Generic Care Packages NW Team -PS,Social Care - Residential Care,28/09/2016,3752174,"3,214.29",PARK VIEW CARE HOME
Adults Services,Adult Social Care,Support with Memory and Cognition - adults (18-64),Generic Care Packages NW Team -PS,Social Care - Residential Care,28/09/2016,3752428,"1,999.62",R&G SPARKES LTD
Adults Services,Adult Social Care,Support with Memory and Cognition - adults (18-64),Generic Care Packages NW Team -PS,Social Care - Residential Care,28/09/2016,3752430,"1,391.87",ROYAL ALFRED SEAFARERS SOCIETY
Adults Services,Adult Social Care,Support with Memory and Cognition - adults (18-64),Generic Care Packages NW Team -PS,Social Care - Residential Care,28/09/2016,3752432,"-23,581.99",Norwood Ravenswood Services LTD
Adults Services,Adult Social Care,Support with Memory and Cognition - adults (18-64),Generic Care Packages NW Team -PS,Social Care - Residential Care,28/09/2016,3752446,"2,357.15",GATEWAY HOUSING ASSOCIATION
Adults Services,Adult Social Care,Support with Memory and Cognition - adults (18-64),Generic Care Packages NW Team -PS,Social Care - Residential Care,28/09/2016,3752449,"2,342.35",ANCHOR TRUST HOMES ACCOUNT
Adults Services,Adult Social Care,Support with Memory and Cognition - adults (18-64),Generic Care Packages NW Team -PS,Social Care - Residential Care,28/09/2016,3752451,"2,164.28",SUMMERDALE COURT CARE CENTRE
Adults Services,Adult Social Care,Support with Memory and Cognition - adults (18-64),Generic Care Packages NW Team -PS,Social Care - Residential Care,28/09/2016,3752456,"3,991.92",JOHN GROOMS
Adults Services,Adult Social Care,Support with Memory and Cognition - adults (18-64),Generic Care Packages NW Team -PS,Social Care - Residential Care,28/09/2016,3752457,"2,400.00",GATEWAY HOUSING ASSOCIATION
Adults Services,Adult Social Care,Support with Memory and Cognition - adults (18-64),Generic Care Packages NW Team -PS,Social Care - Residential Care,28/09/2016,3752458,"1,207.25",ANCHOR TRUST HOMES ACCOUNT
Adults Services,Adult Social Care,Support with Memory and Cognition - adults (18-64),Generic Care Packages NW Team -PS,Social Care - Residential Care,28/09/2016,3752459,"2,007.73",ANCHOR TRUST HOMES ACCOUNT
Adults Services,Adult Social Care,Support with Memory and Cognition - adults (18-64),Generic Care Packages NW Team -PS,Social Care - Residential Care,28/09/2016,3752460,632.48,ANCHOR TRUST HOMES ACCOUNT
Adults Services,Adult Social Care,Support with Memory and Cognition - adults (18-64),Generic Care Packages NW Team -PS,Social Care - Residential Care,28/09/2016,3752481,"2,400.00",GATEWAY HOUSING ASSOCIATION
Adults Services,Adult Social Care,Support with Memory and Cognition - adults (18-64),Generic Care Packages NW Team -PS,Social Care - Residential Care,28/09/2016,3752484,"2,357.15",GATEWAY HOUSING ASSOCIATION
Adults Services,Adult Social Care,Support with Memory and Cognition - adults (18-64),Generic Care Packages NW Team -PS,Social Care - Residential Care,28/09/2016,3752487,"2,357.15",GATEWAY HOUSING ASSOCIATION
Adults Services,Adult Social Care,Support with Memory and Cognition - adults (18-64),Generic Care Packages NW Team -PS,Social Care - Residential Care,28/09/2016,3752489,"2,357.15",GATEWAY HOUSING ASSOCIATION
Adults Services,Adult Social Care,Support with Memory and Cognition - adults (18-64),Generic Care Packages NW Team -PS,Social Care - Residential Care,28/09/2016,3752490,"2,357.15",GATEWAY HOUSING ASSOCIATION
Adults Services,Adult Social Care,Support with Memory and Cognition - adults (18-64),Generic Care Packages NW Team -PS,Social Care - Residential Care,28/09/2016,3752491,"2,357.15",GATEWAY HOUSING ASSOCIATION
Adults Services,Adult Social Care,Support with Memory and Cognition - adults (18-64),Generic Care Packages NW Team -PS,Social Care - Residential Care,28/09/2016,3752494,"2,357.15",GATEWAY HOUSING ASSOCIATION
Adults Services,Adult Social Care,Support with Memory and Cognition - adults (18-64),Generic Care Packages NW Team -PS,Social Care - Residential Care,28/09/2016,3752499,"2,164.28",SUMMERDALE COURT CARE CENTRE
Adults Services,Adult Social Care,Support with Memory and Cognition - adults (18-64),Generic Care Packages NW Team -PS,Social Care - Residential Care,28/09/2016,3752504,-794.23,CARE FIRST CARE HOMES LTD
Adults Services,Adult Social Care,Support with Memory and Cognition - adults (18-64),Generic Care Packages NW Team -PS,Social Care - Residential Care,28/09/2016,3752514,"1,957.50",ANCHOR TRUST HOMES ACCOUNT
Adults Services,Adult Social Care,Support with Memory and Cognition - adults (18-64),Generic Care Packages NW Team -PS,Social Care - Residential Care,28/09/2016,3752519,"2,400.00",GATEWAY HOUSING ASSOCIATION
Adults Services,Adult Social Care,Support with Memory and Cognition - adults (18-64),Generic Care Packages NW Team -PS,Social Care - Residential Care,28/09/2016,3752523,"1,873.83",ANCHOR TRUST HOMES ACCOUNT
Adults Services,Adult Social Care,Support with Memory and Cognition - adults (18-64),Generic Care Packages NW Team -PS,Social Care - Residential Care,28/09/2016,3752524,"2,378.65",ANCHOR TRUST HOMES ACCOUNT
Adults Services,Adult Social Care,Support with Memory and Cognition - adults (18-64),Generic Care Packages NW Team -PS,Social Care - Residential Care,28/09/2016,3752527,"2,357.15",GATEWAY HOUSING ASSOCIATION
Adults Services,Adult Social Care,Support with Memory and Cognition - adults (18-64),Generic Care Packages NW Team -PS,Social Care - Residential Care,28/09/2016,3752533,"2,357.15",GATEWAY HOUSING ASSOCIATION
Adults Services,Adult Social Care,Support with Memory and Cognition - adults (18-64),Generic Care Packages NW Team -PS,Social Care - Residential Care,30/09/2016,3752540,808.15,ALTON HOUSE
Adults Services,Adult Social Care,Support with Memory and Cognition - adults (18-64),Generic Care Packages NW Team -PS,Social Care - Residential Care,28/09/2016,3752548,"2,400.00",GATEWAY HOUSING ASSOCIATION
Adults Services,Adult Social Care,Support with Memory and Cognition - adults (18-64),Generic Care Packages NW Team -PS,Social Care - Residential Care,28/09/2016,3752591,"2,610.00",SANCTUARY CARE LTD
Adults Services,Adult Social Care,Support with Memory and Cognition - adults (18-64),Generic Care Packages NW Team -PS,Social Care - Residential Care,28/09/2016,3752599,"2,610.00",SANCTUARY CARE LTD
Adults Services,Adult Social Care,Support with Memory and Cognition - adults (18-64),Generic Care Packages NW Team -PS,Social Care - Residential Care,28/09/2016,3752605,"2,507.15",EXCELCARE HOLDING PLC
Adults Services,Adult Social Care,Support with Memory and Cognition - adults (18-64),Generic Care Packages NW Team -PS,Social Care - Residential Care,28/09/2016,3752607,"2,550.00",EXCELCARE HOLDING PLC
Adults Services,Adult Social Care,Support with Memory and Cognition - adults (18-64),Generic Care Packages NW Team -PS,Social Care - Residential Care,28/09/2016,3752608,"2,507.15",EXCELCARE HOLDING PLC
Adults Services,Adult Social Care,Support with Memory and Cognition - adults (18-64),Generic Care Packages NW Team -PS,Social Care - Residential Care,28/09/2016,3752609,"2,507.15",EXCELCARE HOLDING PLC
Adults Services,Adult Social Care,Support with Memory and Cognition - adults (18-64),Generic Care Packages NW Team -PS,Social Care - Residential Care,28/09/2016,3752615,"2,851.63",HOMELANDS
Adults Services,Adult Social Care,Support with Memory and Cognition - adults (18-64),Generic Care Packages NW Team -PS,Social Care - Residential Care,28/09/2016,3752616,"2,550.00",EXCELCARE HOLDING PLC
Adults Services,Adult Social Care,Support with Memory and Cognition - adults (18-64),Generic Care Packages NW Team -PS,Social Care - Residential Care,28/09/2016,3752633,"3,790.03",SANCTUARY CARE LTD
Adults Services,Adult Social Care,Support with Memory and Cognition - adults (18-64),Generic Care Packages NW Team -PS,Social Care - Residential Care,28/09/2016,3752634,"2,378.65",ANCHOR TRUST HOMES ACCOUNT
Adults Services,Adult Social Care,Support with Memory and Cognition - adults (18-64),Generic Care Packages NW Team -PS,Social Care - Residential Care,28/09/2016,3752635,"1,238.00",ANCHOR TRUST HOMES ACCOUNT
Adults Services,Adult Social Care,Support with Memory and Cognition - adults (18-64),Generic Care Packages NW Team -PS,Social Care - Residential Care,28/09/2016,3752636,"2,357.15",GATEWAY HOUSING ASSOCIATION
Adults Services,Adult Social Care,Support with Memory and Cognition - adults (18-64),Generic Care Packages NW Team -PS,Social Care - Residential Care,28/09/2016,3752640,"42,138.68",Norwood Ravenswood Services LTD
Adults Services,Adult Social Care,Support with Memory and Cognition - adults (18-64),Generic Care Packages NW Team -PS,Social Care - Residential Care,28/09/2016,3752644,"2,095.72",CARE FIRST CARE HOMES LTD
Adults Services,Adult Social Care,Support with Memory and Cognition - adults (18-64),Generic Care Packages NW Team -PS,Social Care - Residential Care,28/09/2016,3752653,"2,610.00",SANCTUARY CARE LTD
Adults Services,Adult Social Care,Support with Memory and Cognition - adults (18-64),Generic Care Packages NW Team -PS,Social Care - Residential Care,28/09/2016,3752658,"3,439.20",ROBERTA HOUSE & ELIZABETH HOUSE
Adults Services,Adult Social Care,Support with Memory and Cognition - adults (18-64),Generic Care Packages NW Team -PS,Social Care - Residential Care,28/09/2016,3752659,-560.15,ANCHOR TRUST HOMES ACCOUNT
Adults Services,Adult Social Care,Support with Memory and Cognition - adults (18-64),Generic Care Packages NW Team -PS,Social Care - Residential Care,28/09/2016,3752750,"3,900.00",APPROACH LODGE LTD
Adults Services,Adult Social Care,Support with Memory and Cognition - adults (18-64),Generic Care Packages NW Team -PS,Social Care - Residential Care,28/09/2016,3752938,"1,697.06",ETON HOUSE
Adults Services,Adult Social Care,Support with Memory and Cognition - adults (18-64),Generic Care Packages NW Team -PS,Social Care - Residential Care,30/09/2016,3753002,"3,800.91",HEALTH & HOME LTD (ALEXANDER HOUSE)
Adults Services,Adult Social Care,Support with Memory and Cognition - adults (18-64),Generic Care Packages NW Team -PS,Social Care - Residential Care,30/09/2016,3754466,"3,214.29",PARK VIEW CARE HOME
Adults Services,Adult Social Care,Support with Memory and Cognition - adults (18-64),Generic Care Packages NW Team -PS,Social Care - Residential Care,30/09/2016,3754470,"3,511.94",FAIRMOUNT RESIDENTIAL HOME
Adults Services,Adult Social Care,Support with Memory and Cognition - adults (18-64),Generic Care Packages NW Team -PS,Social Care - Residential Care,30/09/2016,3754471,"3,398.66",FAIRMOUNT RESIDENTIAL HOME
Adults Services,Adult Social Care,Support with Memory and Cognition - adults (18-64),Generic Care Packages NW Team -PS,Social Care - Residential Care,30/09/2016,3754591,"3,511.94",FAIRMOUNT RESIDENTIAL HOME
Adults Services,Adult Social Care,Support with Memory and Cognition - adults (18-64),Generic Care Packages NW Team -PS,Social Care - Residential Care,30/09/2016,3754772,"2,509.25",ROBERTA HOUSE & ELIZABETH HOUSE
Adults Services,Adult Social Care,Support with Memory and Cognition - adults (18-64),Generic Care Packages NW Team -PS,Social Care - Residential Care,30/09/2016,3754773,"2,690.57",ROBERTA HOUSE & ELIZABETH HOUSE
Adults Services,Adult Social Care,Support with Memory and Cognition - adults (18-64),Generic Care Packages NW Team -PS,Social Care - Residential Care,30/09/2016,3754783,"8,405.62",High View Care Services
Adults Services,Adult Social Care,Support with Memory and Cognition - adults (18-64),Generic Care Packages NW Team -PS,Social Care - Residential Care,30/09/2016,3754792,"3,248.18",ST MUNGO ASSOCIATION
Adults Services,Adult Social Care,Support with Memory and Cognition - adults (18-64),Generic Care Packages NW Team -PS,Social Care - Residential Care,30/09/2016,3754794,"2,545.85",ROBERTA HOUSE & ELIZABETH HOUSE
Adults Services,Adult Social Care,Support with Memory and Cognition - adults (18-64),Generic Care Packages NW Team -PS,Social Care - Residential Care,30/09/2016,3754795,"1,748.40",PARK HOMES (UK) LTD
Adults Services,Adult Social Care,Support with Memory and Cognition - adults (18-64),Generic Care Packages NW Team -PS,Social Care - Residential Care,30/09/2016,3755073,"1,925.57",AVANTE CARE & SUPPORT
Adults Services,Adult Social Care,Support with Memory and Cognition - adults (18-64),Generic Care Packages NW Team -PS,Social Care - Respite Care,02/09/2016,3731560,997.00,BARCHESTER HEALTHCARE
Adults Services,Adult Social Care,Support with Memory and Cognition - adults (18-64),Generic Care Packages NW Team -PS,Social Care - Respite Care,07/09/2016,3732970,997.00,BARCHESTER HEALTHCARE
Adults Services,Adult Social Care,Support with Memory and Cognition - adults (18-64),Generic Care Packages NW Team -PS,Social Care - Respite Care,16/09/2016,3739656,997.00,BARCHESTER HEALTHCARE
Adults Services,Adult Social Care,Support with Memory and Cognition - adults (18-64),Generic Care Packages NW Team -PS,Social Care - Day Care,02/09/2016,3731744,517.42,Peabody Trust
Adults Services,Adult Social Care,Support with Memory and Cognition - adults (18-64),Generic Care Packages NW Team -PS,Social Care - Day Care,28/09/2016,3733713,789.18,Peabody Trust
Adults Services,Adult Social Care,Support with Memory and Cognition - adults (18-64),Generic Care Packages NW Team -PS,Social Care - Day Care,30/09/2016,3752181,686.80,HEADWAY EAST LONDON
Adults Services,Adult Social Care,Support with Memory and Cognition - adults (18-64),Generic Care Packages NW Team -PS,Social Care - Day Care,30/09/2016,3752184,"1,011.12",HEADWAY EAST LONDON
Adults Services,Adult Social Care,Support with Memory and Cognition - adults (18-64),Generic Care Packages NW Team -PS,Social Care - Day Care,28/09/2016,3753019,"1,649.21",Norwood Ravenswood Services LTD
Adults Services,Adult Social Care,Support with Memory and Cognition - adults (18-64),Generic Care Packages NW Team -PS,Social Care - Day Care,30/09/2016,3753023,"1,596.01",Norwood Ravenswood Services LTD
Adults Services,Adult Social Care,Support with Memory and Cognition - adults (18-64),Generic Care Packages NW Team -PS,Social Care - Homecare,02/09/2016,3731580,501.62,Carewatch Newham Ltd
Adults Services,Adult Social Care,Support with Memory and Cognition - adults (18-64),Generic Care Packages NW Team -PS,Social Care - Homecare,02/09/2016,3731772,601.27,SANCTUARY HOME CARE LIMITED
Adults Services,Adult Social Care,Support with Memory and Cognition - adults (18-64),Generic Care Packages NW Team -PS,Social Care - Homecare,02/09/2016,3731778,523.90,SANCTUARY HOME CARE LIMITED
Adults Services,Adult Social Care,Support with Memory and Cognition - adults (18-64),Generic Care Packages NW Team -PS,Social Care - Homecare,02/09/2016,3731857,523.90,SANCTUARY HOME CARE LIMITED
Adults Services,Adult Social Care,Support with Memory and Cognition - adults (18-64),Generic Care Packages NW Team -PS,Social Care - Homecare,02/09/2016,3731864,"1,217.06",SANCTUARY HOME CARE LIMITED
Adults Services,Adult Social Care,Support with Memory and Cognition - adults (18-64),Generic Care Packages NW Team -PS,Social Care - Homecare,02/09/2016,3731876,548.08,SANCTUARY HOME CARE LIMITED
Adults Services,Adult Social Care,Support with Memory and Cognition - adults (18-64),Generic Care Packages NW Team -PS,Social Care - Homecare,02/09/2016,3731904,540.02,SANCTUARY HOME CARE LIMITED
Adults Services,Adult Social Care,Support with Memory and Cognition - adults (18-64),Generic Care Packages NW Team -PS,Social Care - Homecare,07/09/2016,3733091,926.26,ATHLONE CARE LTD
Adults Services,Adult Social Care,Support with Memory and Cognition - adults (18-64),Generic Care Packages NW Team -PS,Social Care - Homecare,07/09/2016,3733126,971.44,Carewatch Newham Ltd
Adults Services,Adult Social Care,Support with Memory and Cognition - adults (18-64),Generic Care Packages NW Team -PS,Social Care - Homecare,07/09/2016,3733141,902.86,Carewatch Newham Ltd
Adults Services,Adult Social Care,Support with Memory and Cognition - adults (18-64),Generic Care Packages NW Team -PS,Social Care - Homecare,07/09/2016,3733146,652.06,Carewatch Newham Ltd
Adults Services,Adult Social Care,Support with Memory and Cognition - adults (18-64),Generic Care Packages NW Team -PS,Social Care - Homecare,07/09/2016,3733386,"1,327.92",FOCUS CARE LINK LTD
Adults Services,Adult Social Care,Support with Memory and Cognition - adults (18-64),Generic Care Packages NW Team -PS,Social Care - Homecare,07/09/2016,3733480,890.63,MiHOMECARE LIMITED
Adults Services,Adult Social Care,Support with Memory and Cognition - adults (18-64),Generic Care Packages NW Team -PS,Social Care - Homecare,07/09/2016,3733494,864.77,MiHOMECARE LIMITED
Adults Services,Adult Social Care,Support with Memory and Cognition - adults (18-64),Generic Care Packages NW Team -PS,Social Care - Homecare,07/09/2016,3733555,951.30,St Hilda's East Community Centre
Adults Services,Adult Social Care,Support with Memory and Cognition - adults (18-64),Generic Care Packages NW Team -PS,Social Care - Homecare,07/09/2016,3733579,"1,283.50",St Hilda's East Community Centre
Adults Services,Adult Social Care,Support with Memory and Cognition - adults (18-64),Generic Care Packages NW Team -PS,Social Care - Homecare,07/09/2016,3733612,800.30,St Hilda's East Community Centre
Adults Services,Adult Social Care,Support with Memory and Cognition - adults (18-64),Generic Care Packages NW Team -PS,Social Care - Homecare,07/09/2016,3733636,"1,283.50",St Hilda's East Community Centre
Adults Services,Adult Social Care,Support with Memory and Cognition - adults (18-64),Generic Care Packages NW Team -PS,Social Care - Homecare,07/09/2016,3733671,"1,283.50",St Hilda's East Community Centre
Adults Services,Adult Social Care,Support with Memory and Cognition - adults (18-64),Generic Care Packages NW Team -PS,Social Care - Homecare,07/09/2016,3733744,"1,217.06",SANCTUARY HOME CARE LIMITED
Adults Services,Adult Social Care,Support with Memory and Cognition - adults (18-64),Generic Care Packages NW Team -PS,Social Care - Homecare,07/09/2016,3733771,822.12,SANCTUARY HOME CARE LIMITED
Adults Services,Adult Social Care,Support with Memory and Cognition - adults (18-64),Generic Care Packages NW Team -PS,Social Care - Homecare,07/09/2016,3733785,"1,394.38",SANCTUARY HOME CARE LIMITED
Adults Services,Adult Social Care,Support with Memory and Cognition - adults (18-64),Generic Care Packages NW Team -PS,Social Care - Homecare,07/09/2016,3733804,548.08,SANCTUARY HOME CARE LIMITED
Adults Services,Adult Social Care,Support with Memory and Cognition - adults (18-64),Generic Care Packages NW Team -PS,Social Care - Homecare,07/09/2016,3733826,540.02,SANCTUARY HOME CARE LIMITED
Adults Services,Adult Social Care,Support with Memory and Cognition - adults (18-64),Generic Care Packages NW Team -PS,Social Care - Homecare,07/09/2016,3733829,596.44,SANCTUARY HOME CARE LIMITED
Adults Services,Adult Social Care,Support with Memory and Cognition - adults (18-64),Generic Care Packages NW Team -PS,Social Care - Homecare,07/09/2016,3733841,"1,571.70",SANCTUARY HOME CARE LIMITED
Adults Services,Adult Social Care,Support with Memory and Cognition - adults (18-64),Generic Care Packages NW Team -PS,Social Care - Homecare,07/09/2016,3733857,677.04,SANCTUARY HOME CARE LIMITED
Adults Services,Adult Social Care,Support with Memory and Cognition - adults (18-64),Generic Care Packages NW Team -PS,Social Care - Homecare,07/09/2016,3733889,"1,579.76",SANCTUARY HOME CARE LIMITED
Adults Services,Adult Social Care,Support with Memory and Cognition - adults (18-64),Generic Care Packages NW Team -PS,Social Care - Homecare,07/09/2016,3733915,677.04,SANCTUARY HOME CARE LIMITED
Adults Services,Adult Social Care,Support with Memory and Cognition - adults (18-64),Generic Care Packages NW Team -PS,Social Care - Homecare,07/09/2016,3733932,601.27,SANCTUARY HOME CARE LIMITED
Adults Services,Adult Social Care,Support with Memory and Cognition - adults (18-64),Generic Care Packages NW Team -PS,Social Care - Homecare,07/09/2016,3733973,677.04,SANCTUARY HOME CARE LIMITED
Adults Services,Adult Social Care,Support with Memory and Cognition - adults (18-64),Generic Care Packages NW Team -PS,Social Care - Homecare,07/09/2016,3733982,623.70,Soma Healthcare Ltd
Adults Services,Adult Social Care,Support with Memory and Cognition - adults (18-64),Generic Care Packages NW Team -PS,Social Care - Homecare,07/09/2016,3733991,772.20,Soma Healthcare Ltd
Adults Services,Adult Social Care,Support with Memory and Cognition - adults (18-64),Generic Care Packages NW Team -PS,Social Care - Homecare,07/09/2016,3734003,512.33,Soma Healthcare Ltd
Adults Services,Adult Social Care,Support with Memory and Cognition - adults (18-64),Generic Care Packages NW Team -PS,Social Care - Homecare,07/09/2016,3734029,"1,692.90",Soma Healthcare Ltd
Adults Services,Adult Social Care,Support with Memory and Cognition - adults (18-64),Generic Care Packages NW Team -PS,Social Care - Homecare,07/09/2016,3734053,512.30,Soma Healthcare Ltd
Adults Services,Adult Social Care,Support with Memory and Cognition - adults (18-64),Generic Care Packages NW Team -PS,Social Care - Homecare,07/09/2016,3734054,"1,856.25",Soma Healthcare Ltd
Adults Services,Adult Social Care,Support with Memory and Cognition - adults (18-64),Generic Care Packages NW Team -PS,Social Care - Homecare,09/09/2016,3735459,"4,718.53",MiHOMECARE LIMITED
Adults Services,Adult Social Care,Support with Memory and Cognition - adults (18-64),Generic Care Packages NW Team -PS,Social Care - Homecare,09/09/2016,3735477,535.83,MiHOMECARE LIMITED
Adults Services,Adult Social Care,Support with Memory and Cognition - adults (18-64),Generic Care Packages NW Team -PS,Social Care - Homecare,09/09/2016,3735521,"1,130.67",MiHOMECARE LIMITED
Adults Services,Adult Social Care,Support with Memory and Cognition - adults (18-64),Generic Care Packages NW Team -PS,Social Care - Homecare,09/09/2016,3735525,982.87,MiHOMECARE LIMITED
Adults Services,Adult Social Care,Support with Memory and Cognition - adults (18-64),Generic Care Packages NW Team -PS,Social Care - Homecare,09/09/2016,3735529,"4,849.43",MiHOMECARE LIMITED
Adults Services,Adult Social Care,Support with Memory and Cognition - adults (18-64),Generic Care Packages NW Team -PS,Social Care - Homecare,09/09/2016,3735548,"1,495.20",APASENTH
Adults Services,Adult Social Care,Support with Memory and Cognition - adults (18-64),Generic Care Packages NW Team -PS,Social Care - Homecare,09/09/2016,3735553,914.48,APASENTH
Adults Services,Adult Social Care,Support with Memory and Cognition - adults (18-64),Generic Care Packages NW Team -PS,Social Care - Homecare,09/09/2016,3735568,527.33,APASENTH
Adults Services,Adult Social Care,Support with Memory and Cognition - adults (18-64),Generic Care Packages NW Team -PS,Social Care - Homecare,09/09/2016,3735675,507.78,SANCTUARY HOME CARE LIMITED
Adults Services,Adult Social Care,Support with Memory and Cognition - adults (18-64),Generic Care Packages NW Team -PS,Social Care - Homecare,09/09/2016,3735697,822.12,SANCTUARY HOME CARE LIMITED
Adults Services,Adult Social Care,Support with Memory and Cognition - adults (18-64),Generic Care Packages NW Team -PS,Social Care - Homecare,09/09/2016,3735718,523.90,SANCTUARY HOME CARE LIMITED
Adults Services,Adult Social Care,Support with Memory and Cognition - adults (18-64),Generic Care Packages NW Team -PS,Social Care - Homecare,09/09/2016,3735727,"1,209.00",SANCTUARY HOME CARE LIMITED
Adults Services,Adult Social Care,Support with Memory and Cognition - adults (18-64),Generic Care Packages NW Team -PS,Social Care - Homecare,09/09/2016,3735776,527.93,SANCTUARY HOME CARE LIMITED
Adults Services,Adult Social Care,Support with Memory and Cognition - adults (18-64),Generic Care Packages NW Team -PS,Social Care - Homecare,09/09/2016,3735779,596.44,SANCTUARY HOME CARE LIMITED
Adults Services,Adult Social Care,Support with Memory and Cognition - adults (18-64),Generic Care Packages NW Team -PS,Social Care - Homecare,09/09/2016,3735792,"1,579.76",SANCTUARY HOME CARE LIMITED
Adults Services,Adult Social Care,Support with Memory and Cognition - adults (18-64),Generic Care Packages NW Team -PS,Social Care - Homecare,14/09/2016,3737097,548.25,Mantra Recruitment
Adults Services,Adult Social Care,Support with Memory and Cognition - adults (18-64),Generic Care Packages NW Team -PS,Social Care - Homecare,14/09/2016,3737260,"1,121.18",SEVACARE UK LTD
Adults Services,Adult Social Care,Support with Memory and Cognition - adults (18-64),Generic Care Packages NW Team -PS,Social Care - Homecare,14/09/2016,3737380,923.89,MiHOMECARE LIMITED
Adults Services,Adult Social Care,Support with Memory and Cognition - adults (18-64),Generic Care Packages NW Team -PS,Social Care - Homecare,14/09/2016,3737402,739.14,MiHOMECARE LIMITED
Adults Services,Adult Social Care,Support with Memory and Cognition - adults (18-64),Generic Care Packages NW Team -PS,Social Care - Homecare,14/09/2016,3737420,554.32,MiHOMECARE LIMITED
Adults Services,Adult Social Care,Support with Memory and Cognition - adults (18-64),Generic Care Packages NW Team -PS,Social Care - Homecare,14/09/2016,3737427,"1,138.06",MiHOMECARE LIMITED
Adults Services,Adult Social Care,Support with Memory and Cognition - adults (18-64),Generic Care Packages NW Team -PS,Social Care - Homecare,14/09/2016,3737431,827.68,MiHOMECARE LIMITED
Adults Services,Adult Social Care,Support with Memory and Cognition - adults (18-64),Generic Care Packages NW Team -PS,Social Care - Homecare,14/09/2016,3737436,813.06,MiHOMECARE LIMITED
Adults Services,Adult Social Care,Support with Memory and Cognition - adults (18-64),Generic Care Packages NW Team -PS,Social Care - Homecare,14/09/2016,3737466,515.12,SANCTUARY HOME CARE LIMITED
Adults Services,Adult Social Care,Support with Memory and Cognition - adults (18-64),Generic Care Packages NW Team -PS,Social Care - Homecare,14/09/2016,3737470,"1,422.00",SANCTUARY HOME CARE LIMITED
Adults Services,Adult Social Care,Support with Memory and Cognition - adults (18-64),Generic Care Packages NW Team -PS,Social Care - Homecare,16/09/2016,3739696,705.45,Excelcare (Home Care Division) LTD
Adults Services,Adult Social Care,Support with Memory and Cognition - adults (18-64),Generic Care Packages NW Team -PS,Social Care - Homecare,16/09/2016,3739706,719.66,Excelcare (Home Care Division) LTD
Adults Services,Adult Social Care,Support with Memory and Cognition - adults (18-64),Generic Care Packages NW Team -PS,Social Care - Homecare,16/09/2016,3739778,635.61,MiHOMECARE LIMITED
Adults Services,Adult Social Care,Support with Memory and Cognition - adults (18-64),Generic Care Packages NW Team -PS,Social Care - Homecare,16/09/2016,3739783,739.14,MiHOMECARE LIMITED
Adults Services,Adult Social Care,Support with Memory and Cognition - adults (18-64),Generic Care Packages NW Team -PS,Social Care - Homecare,16/09/2016,3739806,"1,138.06",MiHOMECARE LIMITED
Adults Services,Adult Social Care,Support with Memory and Cognition - adults (18-64),Generic Care Packages NW Team -PS,Social Care - Homecare,21/09/2016,3747587,548.25,Mantra Recruitment
Adults Services,Adult Social Care,Support with Memory and Cognition - adults (18-64),Generic Care Packages NW Team -PS,Social Care - Homecare,21/09/2016,3747637,873.40,ATHLONE CARE LTD
Adults Services,Adult Social Care,Support with Memory and Cognition - adults (18-64),Generic Care Packages NW Team -PS,Social Care - Homecare,21/09/2016,3747666,501.62,Carewatch Newham Ltd
Adults Services,Adult Social Care,Support with Memory and Cognition - adults (18-64),Generic Care Packages NW Team -PS,Social Care - Homecare,21/09/2016,3747681,"1,003.10",Carewatch Newham Ltd
Adults Services,Adult Social Care,Support with Memory and Cognition - adults (18-64),Generic Care Packages NW Team -PS,Social Care - Homecare,21/09/2016,3747694,902.86,Carewatch Newham Ltd
Adults Services,Adult Social Care,Support with Memory and Cognition - adults (18-64),Generic Care Packages NW Team -PS,Social Care - Homecare,21/09/2016,3747757,"2,265.80",Excelcare (Home Care Division) LTD
Adults Services,Adult Social Care,Support with Memory and Cognition - adults (18-64),Generic Care Packages NW Team -PS,Social Care - Homecare,21/09/2016,3748504,983.22,MiHOMECARE LIMITED
Adults Services,Adult Social Care,Support with Memory and Cognition - adults (18-64),Generic Care Packages NW Team -PS,Social Care - Homecare,21/09/2016,3748505,"1,082.85",MiHOMECARE LIMITED
Adults Services,Adult Social Care,Support with Memory and Cognition - adults (18-64),Generic Care Packages NW Team -PS,Social Care - Homecare,21/09/2016,3748511,916.64,MiHOMECARE LIMITED
Adults Services,Adult Social Care,Support with Memory and Cognition - adults (18-64),Generic Care Packages NW Team -PS,Social Care - Homecare,21/09/2016,3748512,"1,086.54",MiHOMECARE LIMITED
Adults Services,Adult Social Care,Support with Memory and Cognition - adults (18-64),Generic Care Packages NW Team -PS,Social Care - Homecare,21/09/2016,3748517,909.25,MiHOMECARE LIMITED
Adults Services,Adult Social Care,Support with Memory and Cognition - adults (18-64),Generic Care Packages NW Team -PS,Social Care - Homecare,21/09/2016,3748526,"1,086.54",MiHOMECARE LIMITED
Adults Services,Adult Social Care,Support with Memory and Cognition - adults (18-64),Generic Care Packages NW Team -PS,Social Care - Homecare,21/09/2016,3748528,"5,081.99",MiHOMECARE LIMITED
Adults Services,Adult Social Care,Support with Memory and Cognition - adults (18-64),Generic Care Packages NW Team -PS,Social Care - Homecare,21/09/2016,3748543,931.28,MiHOMECARE LIMITED
Adults Services,Adult Social Care,Support with Memory and Cognition - adults (18-64),Generic Care Packages NW Team -PS,Social Care - Homecare,21/09/2016,3748548,916.64,MiHOMECARE LIMITED
Adults Services,Adult Social Care,Support with Memory and Cognition - adults (18-64),Generic Care Packages NW Team -PS,Social Care - Homecare,21/09/2016,3748607,765.70,SANCTUARY HOME CARE LIMITED
Adults Services,Adult Social Care,Support with Memory and Cognition - adults (18-64),Generic Care Packages NW Team -PS,Social Care - Homecare,21/09/2016,3748609,612.56,SANCTUARY HOME CARE LIMITED
Adults Services,Adult Social Care,Support with Memory and Cognition - adults (18-64),Generic Care Packages NW Team -PS,Social Care - Homecare,21/09/2016,3748630,623.70,Soma Healthcare Ltd
Adults Services,Adult Social Care,Support with Memory and Cognition - adults (18-64),Generic Care Packages NW Team -PS,Social Care - Homecare,21/09/2016,3748639,512.33,Soma Healthcare Ltd
Adults Services,Adult Social Care,Support with Memory and Cognition - adults (18-64),Generic Care Packages NW Team -PS,Social Care - Homecare,21/09/2016,3748652,512.33,Soma Healthcare Ltd
Adults Services,Adult Social Care,Support with Memory and Cognition - adults (18-64),Generic Care Packages NW Team -PS,Social Care - Homecare,21/09/2016,3748686,"1,692.90",Soma Healthcare Ltd
Adults Services,Adult Social Care,Support with Memory and Cognition - adults (18-64),Generic Care Packages NW Team -PS,Social Care - Homecare,21/09/2016,3748702,542.00,Soma Healthcare Ltd
Adults Services,Adult Social Care,Support with Memory and Cognition - adults (18-64),Generic Care Packages NW Team -PS,Social Care - Homecare,21/09/2016,3748704,"1,733.74",Soma Healthcare Ltd
Adults Services,Adult Social Care,Support with Memory and Cognition - adults (18-64),Generic Care Packages NW Team -PS,Social Care - Homecare,23/09/2016,3749428,612.84,Excelcare (Home Care Division) LTD
Adults Services,Adult Social Care,Support with Memory and Cognition - adults (18-64),Generic Care Packages NW Team -PS,Social Care - Homecare,23/09/2016,3749449,705.48,Excelcare (Home Care Division) LTD
Adults Services,Adult Social Care,Support with Memory and Cognition - adults (18-64),Generic Care Packages NW Team -PS,Social Care - Homecare,23/09/2016,3749461,"2,265.81",Excelcare (Home Care Division) LTD
Adults Services,Adult Social Care,Support with Memory and Cognition - adults (18-64),Generic Care Packages NW Team -PS,Social Care - Homecare,23/09/2016,3749484,573.59,Excelcare (Home Care Division) LTD
Adults Services,Adult Social Care,Support with Memory and Cognition - adults (18-64),Generic Care Packages NW Team -PS,Social Care - Homecare,23/09/2016,3749538,"1,297.74",FOCUS CARE LINK LTD
Adults Services,Adult Social Care,Support with Memory and Cognition - adults (18-64),Generic Care Packages NW Team -PS,Social Care - Homecare,23/09/2016,3750883,"1,188.20",Excelcare (Home Care Division) LTD
Adults Services,Adult Social Care,Support with Memory and Cognition - adults (18-64),Generic Care Packages NW Team -PS,Social Care - Homecare,23/09/2016,3751023,815.40,St Hilda's East Community Centre
Adults Services,Adult Social Care,Support with Memory and Cognition - adults (18-64),Generic Care Packages NW Team -PS,Social Care - Homecare,23/09/2016,3751083,"1,283.50",St Hilda's East Community Centre
Adults Services,Adult Social Care,Support with Memory and Cognition - adults (18-64),Generic Care Packages NW Team -PS,Social Care - Homecare,28/09/2016,3752213,623.40,Carewatch Newham Ltd
Adults Services,Adult Social Care,Support with Memory and Cognition - adults (18-64),Generic Care Packages NW Team -PS,Social Care - Homecare,28/09/2016,3752254,"1,003.10",Carewatch Newham Ltd
Adults Services,Adult Social Care,Support with Memory and Cognition - adults (18-64),Generic Care Packages NW Team -PS,Social Care - Homecare,28/09/2016,3752271,902.86,Carewatch Newham Ltd
Adults Services,Adult Social Care,Support with Memory and Cognition - adults (18-64),Generic Care Packages NW Team -PS,Social Care - Homecare,28/09/2016,3752279,623.40,Carewatch Newham Ltd
Adults Services,Adult Social Care,Support with Memory and Cognition - adults (18-64),Generic Care Packages NW Team -PS,Social Care - Homecare,28/09/2016,3752791,528.50,SEVACARE UK LTD
Adults Services,Adult Social Care,Support with Memory and Cognition - adults (18-64),Generic Care Packages NW Team -PS,Social Care - Homecare,28/09/2016,3752880,638.40,COMMUNITY CARE CONSORTIUM
Adults Services,Adult Social Care,Support with Memory and Cognition - adults (18-64),Generic Care Packages NW Team -PS,Social Care - Homecare,28/09/2016,3752882,623.20,COMMUNITY CARE CONSORTIUM
Adults Services,Adult Social Care,Support with Memory and Cognition - adults (18-64),Generic Care Packages NW Team -PS,Social Care - Homecare,28/09/2016,3752889,547.20,COMMUNITY CARE CONSORTIUM
Adults Services,Adult Social Care,Support with Memory and Cognition - adults (18-64),Generic Care Packages NW Team -PS,Social Care - Homecare,28/09/2016,3752954,"5,635.39",MiHOMECARE LIMITED
Adults Services,Adult Social Care,Support with Memory and Cognition - adults (18-64),Generic Care Packages NW Team -PS,Social Care - Homecare,28/09/2016,3753133,596.46,SANCTUARY HOME CARE LIMITED
Adults Services,Adult Social Care,Support with Memory and Cognition - adults (18-64),Generic Care Packages NW Team -PS,Social Care - Homecare,28/09/2016,3753169,"1,015.56",SANCTUARY HOME CARE LIMITED
Adults Services,Adult Social Care,Support with Memory and Cognition - adults (18-64),Generic Care Packages NW Team -PS,Social Care - Homecare,28/09/2016,3753179,"3,836.56",SANCTUARY HOME CARE LIMITED
Adults Services,Adult Social Care,Support with Memory and Cognition - adults (18-64),Generic Care Packages NW Team -PS,Social Care - Homecare,28/09/2016,3753183,548.08,SANCTUARY HOME CARE LIMITED
Adults Services,Adult Social Care,Support with Memory and Cognition - adults (18-64),Generic Care Packages NW Team -PS,Social Care - Homecare,28/09/2016,3753210,540.02,SANCTUARY HOME CARE LIMITED
Adults Services,Adult Social Care,Support with Memory and Cognition - adults (18-64),Generic Care Packages NW Team -PS,Social Care - Homecare,28/09/2016,3753213,515.84,SANCTUARY HOME CARE LIMITED
Adults Services,Adult Social Care,Support with Memory and Cognition - adults (18-64),Generic Care Packages NW Team -PS,Social Care - Homecare,30/09/2016,3754828,937.65,Oasis Care & Training Agency
Adults Services,Adult Social Care,Support with Memory and Cognition - adults (18-64),Generic Care Packages NW Team -PS,Social Care - Homecare,30/09/2016,3754921,"1,084.88",REDSPOT HOMECARE (CONTRACTS) LTD
Adults Services,Adult Social Care,Support with Memory and Cognition - adults (18-64),Generic Care Packages NW Team -PS,Social Care - Homecare,30/09/2016,3754950,623.20,COMMUNITY CARE CONSORTIUM
Adults Services,Adult Social Care,Support with Memory and Cognition - adults (18-64),Generic Care Packages NW Team -PS,Social Care - Homecare,30/09/2016,3754956,532.00,COMMUNITY CARE CONSORTIUM
Adults Services,Adult Social Care,Support with Memory and Cognition - adults (18-64),Generic Care Packages NW Team -PS,Social Care - Homecare,30/09/2016,3755016,813.03,MiHOMECARE LIMITED
Adults Services,Adult Social Care,Support with Memory and Cognition - adults (18-64),Generic Care Packages NW Team -PS,Social Care - Homecare,30/09/2016,3755041,739.14,MiHOMECARE LIMITED
Adults Services,Adult Social Care,Support with Memory and Cognition - adults (18-64),Generic Care Packages NW Team -PS,Social Care - Homecare,30/09/2016,3755067,617.07,MiHOMECARE LIMITED
Adults Services,Adult Social Care,Support with Memory and Cognition - adults (18-64),Generic Care Packages NW Team -PS,Social Care - Homecare,30/09/2016,3755068,"1,130.67",MiHOMECARE LIMITED
Adults Services,Adult Social Care,Support with Memory and Cognition - adults (18-64),Generic Care Packages NW Team -PS,Social Care - Homecare,30/09/2016,3755075,628.22,MiHOMECARE LIMITED
Adults Services,Adult Social Care,Support with Memory and Cognition - adults (18-64),Generic Care Packages NW Team -PS,Social Care - Homecare,30/09/2016,3755091,"3,836.56",SANCTUARY HOME CARE LIMITED
Adults Services,Adult Social Care,Support with Memory and Cognition - adults (18-64),Generic Care Packages NW Team -PS,Social Care - Homecare,30/09/2016,3755095,"3,836.56",SANCTUARY HOME CARE LIMITED
Adults Services,Adult Social Care,Support with Memory and Cognition - adults (18-64),Generic Care Packages NW Team -PS,Social Care - Homecare,30/09/2016,3755104,"1,579.80",SANCTUARY HOME CARE LIMITED
Adults Services,Adult Social Care,Support with Memory and Cognition - adults (18-64),Generic Care Packages NW Team -PS,Social Care - Homecare,30/09/2016,3755107,"3,836.56",SANCTUARY HOME CARE LIMITED
Adults Services,Adult Social Care,Support with Memory and Cognition - adults (18-64),Generic Care Packages NW Team -PS,Social Care - Homecare,30/09/2016,3755108,"3,836.56",SANCTUARY HOME CARE LIMITED
Adults Services,Adult Social Care,Support with Memory and Cognition - adults (18-64),Generic Care Packages NW Team -PS,Social Care - Homecare,30/09/2016,3755110,"3,836.56",SANCTUARY HOME CARE LIMITED
Adults Services,Adult Social Care,Support with Memory and Cognition - adults (18-64),Generic Care Packages NW Team -PS,Social Care - Homecare,30/09/2016,3755111,"3,836.56",SANCTUARY HOME CARE LIMITED
Adults Services,Adult Social Care,Support with Memory and Cognition - adults (18-64),Generic Care Packages NW Team -PS,Social Care - Homecare,30/09/2016,3755112,"3,836.56",SANCTUARY HOME CARE LIMITED
Adults Services,Adult Social Care,Support with Memory and Cognition - adults (18-64),Generic Care Packages NW Team -PS,Social Care - Homecare,30/09/2016,3755113,"3,836.56",SANCTUARY HOME CARE LIMITED
Adults Services,Adult Social Care,Support with Memory and Cognition - adults (18-64),Generic Care Packages NW Team -PS,Social Care - Homecare,30/09/2016,3755115,"3,836.56",SANCTUARY HOME CARE LIMITED
Adults Services,Adult Social Care,Support with Memory and Cognition - adults (18-64),Generic Care Packages NW Team -PS,Social Care - Homecare,30/09/2016,3755117,"3,844.62",SANCTUARY HOME CARE LIMITED
Adults Services,Adult Social Care,Support with Memory and Cognition - adults (18-64),Generic Care Packages NW Team -PS,Social Care - Homecare,30/09/2016,3755119,"3,836.56",SANCTUARY HOME CARE LIMITED
Adults Services,Adult Social Care,Support with Memory and Cognition - adults (18-64),Generic Care Packages NW Team -PS,Social Care - Homecare,30/09/2016,3755122,"3,836.56",SANCTUARY HOME CARE LIMITED
Adults Services,Adult Social Care,Support with Memory and Cognition - adults (18-64),Generic Care Packages NW Team -PS,Social Care - Homecare,30/09/2016,3755124,"3,836.56",SANCTUARY HOME CARE LIMITED
Adults Services,Adult Social Care,Support with Memory and Cognition - adults (18-64),Generic Care Packages NW Team -PS,Social Care - Homecare,30/09/2016,3755127,"3,836.56",SANCTUARY HOME CARE LIMITED
Adults Services,Adult Social Care,Support with Memory and Cognition - adults (18-64),Generic Care Packages NW Team -PS,Social Care - Homecare,30/09/2016,3755130,"3,836.56",SANCTUARY HOME CARE LIMITED
Adults Services,Adult Social Care,Support with Memory and Cognition - adults (18-64),Generic Care Packages NW Team -PS,Social Care - Homecare,30/09/2016,3755133,"3,836.56",SANCTUARY HOME CARE LIMITED
Adults Services,Adult Social Care,Support with Memory and Cognition - adults (18-64),Generic Care Packages NW Team -PS,Social Care - Homecare,30/09/2016,3755135,"3,836.56",SANCTUARY HOME CARE LIMITED
Adults Services,Adult Social Care,Support with Memory and Cognition - adults (18-64),Generic Care Packages NW Team -PS,Social Care - Homecare,30/09/2016,3755142,601.26,SANCTUARY HOME CARE LIMITED
Adults Services,Adult Social Care,Support with Memory and Cognition - adults (18-64),Generic Care Packages NW Team -PS,Social Care - Homecare,30/09/2016,3755149,822.12,SANCTUARY HOME CARE LIMITED
Adults Services,Adult Social Care,Support with Memory and Cognition - adults (18-64),Generic Care Packages NW Team -PS,Social Care - Homecare,30/09/2016,3755183,"1,579.76",SANCTUARY HOME CARE LIMITED
Adults Services,Adult Social Care,Support with Memory and Cognition - adults (18-64),Generic Care Packages NW Team -PS,Social Care - Prevention & Support,02/09/2016,3731743,"1,550.00",Alma Attic Ltd T/A Glorydale Inn
Adults Services,Adult Social Care,Support with Memory and Cognition - adults (18-64),Generic Care Packages NW Team -PS,Social Care - Prevention & Support,28/09/2016,3737157,"1,705.00",McCreadie Hotel
Adults Services,Adult Social Care,Support with Memory and Cognition - adults (18-64),Generic Care Packages NW Team -PS,Social Care - Direct Payments,02/09/2016,3731647,-500.00,DAVID HOWARD LTD CLIENT ACCOUNT
Adults Services,Adult Social Care,Support with Memory and Cognition - adults (18-64),Generic Care Packages NW Team -PS,Social Care - Direct Payments,09/09/2016,3735398,"27,654.00",DAVID HOWARD LTD CLIENT ACCOUNT
Adults Services,Adult Social Care,Support with Memory and Cognition - adults (18-64),Generic Care Packages NW Team -PS,Social Care - Direct Payments,14/09/2016,3737217,"4,056.85",DAVID HOWARD LTD CLIENT ACCOUNT
Adults Services,Adult Social Care,Support with Memory and Cognition - adults (18-64),Generic Care Packages NW Team -PS,Social Care - Direct Payments,14/09/2016,3737239,-787.20,D D PAYROLL SERVICES
Adults Services,Adult Social Care,Support with Memory and Cognition - adults (18-64),Generic Care Packages NW Team -PS,Social Care - Direct Payments,14/09/2016,3737240,847.20,D D PAYROLL SERVICES
Adults Services,Adult Social Care,Support with Memory and Cognition - adults (18-64),Generic Care Packages NW Team -PS,Social Care - Direct Payments,21/09/2016,3747860,"-2,865.06",D D PAYROLL SERVICES
Adults Services,Adult Social Care,Support with Memory and Cognition - adults (18-64),Generic Care Packages NW Team -PS,Social Care - Direct Payments,21/09/2016,3747863,"3,630.76",D D PAYROLL SERVICES
Adults Services,Adult Social Care,Support with Memory and Cognition - adults (18-64),Generic Care Packages NW Team -PS,Social Care - Direct Payments,21/09/2016,3747911,692.81,D D PAYROLL SERVICES
Adults Services,Adult Social Care,Support with Memory and Cognition - adults (18-64),Generic Care Packages NW Team -PS,Social Care - Direct Payments,21/09/2016,3747914,"1,018.97",DAVID HOWARD LTD CLIENT ACCOUNT
Adults Services,Adult Social Care,Support with Memory and Cognition - adults (18-64),Generic Care Packages NW Team -PS,Social Care - Direct Payments,21/09/2016,3747934,852.19,DAVID HOWARD LTD CLIENT ACCOUNT
Adults Services,Adult Social Care,Support with Memory and Cognition - adults (18-64),Generic Care Packages NW Team -PS,Social Care - Direct Payments,21/09/2016,3747953,"1,492.92",D D PAYROLL SERVICES
Adults Services,Adult Social Care,Support with Memory and Cognition - adults (18-64),Generic Care Packages NW Team -PS,Social Care - Direct Payments,21/09/2016,3747958,746.13,DAVID HOWARD LTD CLIENT ACCOUNT
Adults Services,Adult Social Care,Support with Memory and Cognition - adults (18-64),Generic Care Packages NW Team -PS,Social Care - Direct Payments,21/09/2016,3747964,"1,053.56",DAVID HOWARD LTD CLIENT ACCOUNT
Adults Services,Adult Social Care,Support with Memory and Cognition - adults (18-64),Generic Care Packages NW Team -PS,Social Care - Direct Payments,21/09/2016,3747984,"4,247.62",DAVID HOWARD LTD CLIENT ACCOUNT
Adults Services,Adult Social Care,Support with Memory and Cognition - adults (18-64),Generic Care Packages NW Team -PS,Social Care - Direct Payments,21/09/2016,3747988,607.73,DAVID HOWARD LTD CLIENT ACCOUNT
Adults Services,Adult Social Care,Support with Memory and Cognition - adults (18-64),Generic Care Packages NW Team -PS,Social Care - Direct Payments,21/09/2016,3747993,538.65,DAVID HOWARD LTD CLIENT ACCOUNT
Adults Services,Adult Social Care,Support with Memory and Cognition - adults (18-64),Generic Care Packages NW Team -PS,Social Care - Direct Payments,21/09/2016,3748006,"1,169.01",DAVID HOWARD LTD CLIENT ACCOUNT
Adults Services,Adult Social Care,Support with Memory and Cognition - adults (18-64),Generic Care Packages NW Team -PS,Social Care - Direct Payments,21/09/2016,3748016,"7,827.28",DAVID HOWARD LTD CLIENT ACCOUNT
Adults Services,Adult Social Care,Support with Memory and Cognition - adults (18-64),Generic Care Packages NW Team -PS,Social Care - Direct Payments,21/09/2016,3748034,873.09,DAVID HOWARD LTD CLIENT ACCOUNT
Adults Services,Adult Social Care,Support with Memory and Cognition - adults (18-64),Generic Care Packages NW Team -PS,Social Care - Direct Payments,21/09/2016,3748044,"1,413.38",DAVID HOWARD LTD CLIENT ACCOUNT
Adults Services,Adult Social Care,Support with Memory and Cognition - adults (18-64),Generic Care Packages NW Team -PS,Social Care - Direct Payments,21/09/2016,3748049,"4,112.37",D D PAYROLL SERVICES
Adults Services,Adult Social Care,Support with Memory and Cognition - adults (18-64),Generic Care Packages NW Team -PS,Social Care - Direct Payments,21/09/2016,3748090,824.69,DAVID HOWARD LTD CLIENT ACCOUNT
Adults Services,Adult Social Care,Support with Memory and Cognition - adults (18-64),Generic Care Packages NW Team -PS,Social Care - Direct Payments,21/09/2016,3748093,"2,895.09",D D PAYROLL SERVICES
Adults Services,Adult Social Care,Support with Memory and Cognition - adults (18-64),Generic Care Packages NW Team -PS,Social Care - Direct Payments,21/09/2016,3748095,"2,362.78",DAVID HOWARD LTD CLIENT ACCOUNT
Adults Services,Adult Social Care,Support with Memory and Cognition - adults (18-64),Generic Care Packages NW Team -PS,Social Care - Direct Payments,21/09/2016,3748106,905.91,DAVID HOWARD LTD CLIENT ACCOUNT
Adults Services,Adult Social Care,Support with Memory and Cognition - adults (18-64),Generic Care Packages NW Team -PS,Social Care - Direct Payments,21/09/2016,3748115,543.08,DAVID HOWARD LTD CLIENT ACCOUNT
Adults Services,Adult Social Care,Support with Memory and Cognition - adults (18-64),Generic Care Packages NW Team -PS,Social Care - Direct Payments,21/09/2016,3748122,508.62,DAVID HOWARD LTD CLIENT ACCOUNT
Adults Services,Adult Social Care,Support with Memory and Cognition - adults (18-64),Generic Care Packages NW Team -PS,Social Care - Direct Payments,21/09/2016,3748125,649.45,D D PAYROLL SERVICES
Adults Services,Adult Social Care,Support with Memory and Cognition - adults (18-64),Generic Care Packages NW Team -PS,Social Care - Direct Payments,21/09/2016,3748155,"1,168.92",DAVID HOWARD LTD CLIENT ACCOUNT
Adults Services,Adult Social Care,Support with Memory and Cognition - adults (18-64),Generic Care Packages NW Team -PS,Social Care - Direct Payments,21/09/2016,3748176,"1,084.11",DAVID HOWARD LTD CLIENT ACCOUNT
Adults Services,Adult Social Care,Support with Memory and Cognition - adults (18-64),Generic Care Packages NW Team -PS,Social Care - Direct Payments,21/09/2016,3748206,628.02,DAVID HOWARD LTD CLIENT ACCOUNT
Adults Services,Adult Social Care,Support with Memory and Cognition - adults (18-64),Generic Care Packages NW Team -PS,Social Care - Direct Payments,21/09/2016,3748215,927.70,DAVID HOWARD LTD CLIENT ACCOUNT
Adults Services,Adult Social Care,Support with Memory and Cognition - adults (18-64),Generic Care Packages NW Team -PS,Social Care - Direct Payments,21/09/2016,3748217,849.27,DAVID HOWARD LTD CLIENT ACCOUNT
Adults Services,Adult Social Care,Support with Memory and Cognition - adults (18-64),Generic Care Packages NW Team -PS,Social Care - Direct Payments,21/09/2016,3748227,"1,023.00",DAVID HOWARD LTD CLIENT ACCOUNT
Adults Services,Adult Social Care,Support with Memory and Cognition - adults (18-64),Generic Care Packages NW Team -PS,Social Care - Direct Payments,21/09/2016,3748230,726.95,DAVID HOWARD LTD CLIENT ACCOUNT
Adults Services,Adult Social Care,Support with Memory and Cognition - adults (18-64),Generic Care Packages NW Team -PS,Social Care - Direct Payments,21/09/2016,3748233,"1,184.78",D D PAYROLL SERVICES
Adults Services,Adult Social Care,Support with Memory and Cognition - adults (18-64),Generic Care Packages NW Team -PS,Social Care - Direct Payments,21/09/2016,3748237,"4,720.20",D D PAYROLL SERVICES
Adults Services,Adult Social Care,Support with Memory and Cognition - adults (18-64),Generic Care Packages NW Team -PS,Social Care - Direct Payments,21/09/2016,3748266,694.00,Soma Healthcare Ltd
Adults Services,Adult Social Care,Support with Memory and Cognition - adults (18-64),Generic Care Packages NW Team -PS,Social Care - Direct Payments,21/09/2016,3748287,"6,603.00",D D PAYROLL SERVICES
Adults Services,Adult Social Care,Support with Memory and Cognition - adults (18-64),Generic Care Packages NW Team -PS,Social Care - Direct Payments,21/09/2016,3748301,"1,736.00",DAVID HOWARD LTD CLIENT ACCOUNT
Adults Services,Adult Social Care,Support with Memory and Cognition - adults (18-64),Generic Care Packages NW Team -PS,Social Care - Direct Payments,21/09/2016,3748314,648.34,DAVID HOWARD LTD CLIENT ACCOUNT
Adults Services,Adult Social Care,Support with Memory and Cognition - adults (18-64),Generic Care Packages NW Team -PS,Social Care - Direct Payments,21/09/2016,3748373,580.85,DAVID HOWARD LTD CLIENT ACCOUNT
Adults Services,Adult Social Care,Support with Memory and Cognition - adults (18-64),Generic Care Packages NW Team -PS,Social Care - Direct Payments,21/09/2016,3748398,"6,691.35",D D PAYROLL SERVICES
Adults Services,Adult Social Care,Support with Memory and Cognition - adults (18-64),Generic Care Packages NW Team -PS,Social Care - Direct Payments,21/09/2016,3748403,554.59,DAVID HOWARD LTD CLIENT ACCOUNT
Adults Services,Adult Social Care,Support with Memory and Cognition - adults (18-64),Generic Care Packages NW Team -PS,Social Care - Direct Payments,21/09/2016,3748415,659.06,DAVID HOWARD LTD CLIENT ACCOUNT
Adults Services,Adult Social Care,Support with Memory and Cognition - adults (18-64),Generic Care Packages NW Team -PS,Social Care - Direct Payments,21/09/2016,3748433,663.40,DAVID HOWARD LTD CLIENT ACCOUNT
Adults Services,Adult Social Care,Support with Memory and Cognition - adults (18-64),Generic Care Packages NW Team -PS,Social Care - Direct Payments,21/09/2016,3748446,656.58,D D PAYROLL SERVICES
Adults Services,Adult Social Care,Support with Memory and Cognition - adults (18-64),Generic Care Packages NW Team -PS,Social Care - Direct Payments,28/09/2016,3752399,"1,705.82",DAVID HOWARD LTD CLIENT ACCOUNT
Adults Services,Adult Social Care,Support with Memory and Cognition - adults (18-64),Generic Care Packages NW Team -PS,Social Care - Residential Care - Block,28/09/2016,3752552,"2,400.00",GATEWAY HOUSING ASSOCIATION
Adults Services,Adult Social Care,Support with Memory and Cognition - adults (18-64),Generic Care Packages NW Team -PS,Social Care - Home Care (Short Term),02/09/2016,3731643,769.59,FOCUS CARE LINK LTD
Adults Services,Adult Social Care,Support with Memory and Cognition - adults (18-64),Generic Care Packages NW Team -PS,Social Care - Home Care (Short Term),02/09/2016,3731883,588.38,SANCTUARY HOME CARE LIMITED
Adults Services,Adult Social Care,Support with Memory and Cognition - adults (18-64),Generic Care Packages NW Team -PS,Social Care - Home Care (Short Term),07/09/2016,3733457,"1,751.60",SEVACARE UK LTD
Adults Services,Adult Social Care,Support with Memory and Cognition - adults (18-64),Generic Care Packages NW Team -PS,Social Care - Home Care (Short Term),07/09/2016,3733806,588.38,SANCTUARY HOME CARE LIMITED
Adults Services,Adult Social Care,Support with Memory and Cognition - adults (18-64),Generic Care Packages NW Team -PS,Social Care - Home Care (Short Term),07/09/2016,3733979,"1,009.80",Soma Healthcare Ltd
Adults Services,Adult Social Care,Support with Memory and Cognition - adults (18-64),Generic Care Packages NW Team -PS,Social Care - Home Care (Short Term),09/09/2016,3735747,588.38,SANCTUARY HOME CARE LIMITED
Adults Services,Adult Social Care,Support with Memory and Cognition - adults (18-64),Generic Care Packages NW Team -PS,Social Care - Home Care (Short Term),21/09/2016,3748628,"1,381.05",Soma Healthcare Ltd
Adults Services,Adult Social Care,Support with Memory and Cognition - adults (18-64),Generic Care Packages NW Team -PS,Social Care - Home Care (Short Term),23/09/2016,3749551,764.76,FOCUS CARE LINK LTD
Adults Services,Adult Social Care,Support with Memory and Cognition - adults (18-64),Generic Care Packages NW Team -PS,Social Care - Home Care (Short Term),23/09/2016,3750847,604.00,SEVACARE UK LTD
Adults Services,Adult Social Care,Support with Memory and Cognition - adults (18-64),Generic Care Packages NW Team -PS,Social Care - Home Care (Short Term),28/09/2016,3752238,544.62,Carewatch Newham Ltd
Adults Services,Adult Social Care,Support with Memory and Cognition - adults (18-64),Generic Care Packages NW Team -PS,Social Care - Home Care (Short Term),28/09/2016,3752372,768.53,FOCUS CARE LINK LTD
Adults Services,Adult Social Care,Support with Memory and Cognition - adults (18-64),Generic Care Packages NW Team -PS,Social Care - Home Care (Short Term),30/09/2016,3754843,"1,751.60",SEVACARE UK LTD
Adults Services,Adult Social Care,Support with Memory and Cognition - adults (18-64),Generic Care Packages NW Team -SP,Social Care - Nursing Care,28/09/2016,3752452,"-1,554.87",SANCTUARY CARE LTD
Adults Services,Adult Social Care,Support with Memory and Cognition - adults (18-64),Generic Care Packages NW Team -SP,Social Care - Nursing Care,28/09/2016,3752584,"3,330.00",SANCTUARY CARE LTD
Adults Services,Adult Social Care,Support with Memory and Cognition - adults (18-64),Generic Care Packages NW Team -SP,Social Care - Homecare,21/09/2016,3747738,"1,126.10",Excelcare (Home Care Division) LTD
Adults Services,Adult Social Care,Support with Memory and Cognition - adults (18-64),Generic Care Packages NW Team -SP,Social Care - Homecare,23/09/2016,3749434,"1,126.10",Excelcare (Home Care Division) LTD
Adults Services,Adult Social Care,Support with Memory and Cognition - adults (18-64),Generic Care Packages NW Team -SP,Social Care - Direct Payments,21/09/2016,3748080,544.32,DAVID HOWARD LTD CLIENT ACCOUNT
Adults Services,Adult Social Care,Support with Memory and Cognition - adults (18-64),Generic Care Packages NW Team-SMC,Social Care - Nursing Care,14/09/2016,3737162,"4,843.75",Loughton Care Centre
Adults Services,Adult Social Care,Support with Memory and Cognition - adults (18-64),Generic Care Packages NW Team-SMC,Social Care - Nursing Care,14/09/2016,3737164,"4,843.75",Loughton Care Centre
Adults Services,Adult Social Care,Support with Memory and Cognition - adults (18-64),Generic Care Packages NW Team-SMC,Social Care - Nursing Care,28/09/2016,3752565,"2,716.07",SANCTUARY CARE LTD
Adults Services,Adult Social Care,Support with Memory and Cognition - adults (18-64),Generic Care Packages NW Team-SMC,Social Care - Nursing Care,28/09/2016,3752571,"3,385.72",SANCTUARY CARE LTD
Adults Services,Adult Social Care,Support with Memory and Cognition - adults (18-64),Generic Care Packages NW Team-SMC,Social Care - Nursing Care,30/09/2016,3754449,"2,230.90",BARCHESTER HEALTHCARE
Adults Services,Adult Social Care,Support with Memory and Cognition - adults (18-64),Generic Care Packages NW Team-SMC,Social Care - Nursing Care,30/09/2016,3754457,"2,158.93",BARCHESTER HEALTHCARE
Adults Services,Adult Social Care,Support with Memory and Cognition - adults (18-64),Generic Care Packages NW Team-SMC,Social Care - Residential Care,16/09/2016,3739819,"2,258.57",SUMMERDALE COURT CARE CENTRE
Adults Services,Adult Social Care,Support with Memory and Cognition - adults (18-64),Generic Care Packages NW Team-SMC,Social Care - Residential Care,28/09/2016,3752488,"2,357.15",GATEWAY HOUSING ASSOCIATION
Adults Services,Adult Social Care,Support with Memory and Cognition - adults (18-64),Generic Care Packages NW Team-SMC,Social Care - Residential Care,28/09/2016,3752495,"2,357.15",GATEWAY HOUSING ASSOCIATION
Adults Services,Adult Social Care,Support with Memory and Cognition - adults (18-64),Generic Care Packages NW Team-SMC,Social Care - Residential Care,28/09/2016,3752507,"2,357.15",GATEWAY HOUSING ASSOCIATION
Adults Services,Adult Social Care,Support with Memory and Cognition - adults (18-64),Generic Care Packages NW Team-SMC,Social Care - Residential Care,28/09/2016,3752611,"2,507.15",EXCELCARE HOLDING PLC
Adults Services,Adult Social Care,Support with Memory and Cognition - adults (18-64),Generic Care Packages NW Team-SMC,Social Care - Residential Care,28/09/2016,3752667,"4,025.70",LAROSA RESIDENTIAL CARE HOME
Adults Services,Adult Social Care,Support with Memory and Cognition - adults (18-64),Generic Care Packages NW Team-SMC,Social Care - Residential Care,28/09/2016,3752695,"3,497.48",SHANTI HEALTHCARE LTD
Adults Services,Adult Social Care,Support with Memory and Cognition - adults (18-64),Generic Care Packages NW Team-SMC,Social Care - Residential Care,28/09/2016,3752736,"3,214.28",ST MICHAELS LODGE T/A SHAKTHI HEALTHCARE LIMITED
Adults Services,Adult Social Care,Support with Memory and Cognition - adults (18-64),Generic Care Packages NW Team-SMC,Social Care - Residential Care,28/09/2016,3752745,"2,357.15",GATEWAY HOUSING ASSOCIATION
Adults Services,Adult Social Care,Support with Memory and Cognition - adults (18-64),Generic Care Packages NW Team-SMC,Social Care - Day Care,28/09/2016,3733698,638.86,Peabody Trust
Adults Services,Adult Social Care,Support with Memory and Cognition - adults (18-64),Generic Care Packages NW Team-SMC,Social Care - Homecare,09/09/2016,3735458,524.76,MiHOMECARE LIMITED
Adults Services,Adult Social Care,Support with Memory and Cognition - adults (18-64),Generic Care Packages NW Team-SMC,Social Care - Homecare,09/09/2016,3735555,854.40,APASENTH
Adults Services,Adult Social Care,Support with Memory and Cognition - adults (18-64),Generic Care Packages NW Team -SI,Social Care - Residential Care,28/09/2016,3752594,"2,610.00",SANCTUARY CARE LTD
Adults Services,Adult Social Care,Support with Memory and Cognition - adults (18-64),Generic Care Packages NW Team -SI,Social Care - Residential Care,28/09/2016,3752655,"3,248.18",ST MUNGO ASSOCIATION
Adults Services,Adult Social Care,Support with Memory and Cognition - adults (18-64),Generic Care Packages NW Team -SI,Social Care - Prevention & Support,28/09/2016,3737156,"1,085.00",McCreadie Hotel
Adults Services,Adult Social Care,Support with Memory and Cognition - adults (18-64),Generic Care Packages SE Team -PS,Social Care - Extra Care Sheltered Housing,14/09/2016,3737197,"26,997.26",Creative Support
Adults Services,Adult Social Care,Support with Memory and Cognition - adults (18-64),Generic Care Packages SE Team -PS,Social Care - Extra Care Sheltered Housing,14/09/2016,3737198,"26,997.26",Creative Support
Adults Services,Adult Social Care,Support with Memory and Cognition - adults (18-64),Generic Care Packages SE Team -PS,Social Care - Extra Care Sheltered Housing,14/09/2016,3737199,"26,997.26",Creative Support
Adults Services,Adult Social Care,Support with Memory and Cognition - adults (18-64),Generic Care Packages SE Team -PS,Social Care - Extra Care Sheltered Housing,14/09/2016,3737200,"26,997.26",Creative Support
Adults Services,Adult Social Care,Support with Memory and Cognition - adults (18-64),Generic Care Packages SE Team -PS,Social Care - Extra Care Sheltered Housing,14/09/2016,3737201,"27,487.04",Creative Support
Adults Services,Adult Social Care,Support with Memory and Cognition - adults (18-64),Generic Care Packages SE Team -PS,Social Care - Extra Care Sheltered Housing,14/09/2016,3737202,"27,487.04",Creative Support
Adults Services,Adult Social Care,Support with Memory and Cognition - adults (18-64),Generic Care Packages SE Team -PS,Social Care - Extra Care Sheltered Housing,14/09/2016,3737203,"27,487.04",Creative Support
Adults Services,Adult Social Care,Support with Memory and Cognition - adults (18-64),Generic Care Packages SE Team -PS,Social Care - Extra Care Sheltered Housing,14/09/2016,3737204,"27,487.04",Creative Support
Adults Services,Adult Social Care,Support with Memory and Cognition - adults (18-64),Generic Care Packages SE Team -PS,Social Care - Extra Care Sheltered Housing,14/09/2016,3737205,"1,520.40",Creative Support
Adults Services,Adult Social Care,Support with Memory and Cognition - adults (18-64),Generic Care Packages SE Team -PS,Social Care - Extra Care Sheltered Housing,14/09/2016,3737206,"1,711.25",Creative Support
Adults Services,Adult Social Care,Support with Memory and Cognition - adults (18-64),Generic Care Packages SE Team -PS,Social Care - Extra Care Sheltered Housing,21/09/2016,3747868,"1,042.56",Creative Support
Adults Services,Adult Social Care,Support with Memory and Cognition - adults (18-64),Generic Care Packages SE Team -PS,Social Care - Extra Care Sheltered Housing,21/09/2016,3747869,"3,948.41",Creative Support
Adults Services,Adult Social Care,Support with Memory and Cognition - adults (18-64),Generic Care Packages SE Team -PS,Social Care - Extra Care Sheltered Housing,21/09/2016,3747870,535.76,Creative Support
Adults Services,Adult Social Care,Support with Memory and Cognition - adults (18-64),Generic Care Packages SE Team -PS,Social Care - Nursing Care,02/09/2016,3731564,"3,018.00",Barron Kirk Quality Care Ltd
Adults Services,Adult Social Care,Support with Memory and Cognition - adults (18-64),Generic Care Packages SE Team -PS,Social Care - Nursing Care,02/09/2016,3731656,"1,758.85",JEWISH CARE
Adults Services,Adult Social Care,Support with Memory and Cognition - adults (18-64),Generic Care Packages SE Team -PS,Social Care - Nursing Care,07/09/2016,3732991,"3,195.00",Barron Kirk Quality Care Ltd
Adults Services,Adult Social Care,Support with Memory and Cognition - adults (18-64),Generic Care Packages SE Team -PS,Social Care - Nursing Care,09/09/2016,3735440,"3,736.61",Coxwell Homes Ltd
Adults Services,Adult Social Care,Support with Memory and Cognition - adults (18-64),Generic Care Packages SE Team -PS,Social Care - Nursing Care,14/09/2016,3737211,"2,062.57",BUPA CARE HOMES LTD
Adults Services,Adult Social Care,Support with Memory and Cognition - adults (18-64),Generic Care Packages SE Team -PS,Social Care - Nursing Care,14/09/2016,3737244,"2,188.20",Bennetts Castlle Care Home
Adults Services,Adult Social Care,Support with Memory and Cognition - adults (18-64),Generic Care Packages SE Team -PS,Social Care - Nursing Care,14/09/2016,3737248,"2,188.20",Bennetts Castlle Care Home
Adults Services,Adult Social Care,Support with Memory and Cognition - adults (18-64),Generic Care Packages SE Team -PS,Social Care - Nursing Care,23/09/2016,3750966,"3,401.79",Heathlands Care Home
Adults Services,Adult Social Care,Support with Memory and Cognition - adults (18-64),Generic Care Packages SE Team -PS,Social Care - Nursing Care,23/09/2016,3750968,"3,515.18",Heathlands Care Home
Adults Services,Adult Social Care,Support with Memory and Cognition - adults (18-64),Generic Care Packages SE Team -PS,Social Care - Nursing Care,23/09/2016,3750970,"3,401.79",Heathlands Care Home
Adults Services,Adult Social Care,Support with Memory and Cognition - adults (18-64),Generic Care Packages SE Team -PS,Social Care - Nursing Care,23/09/2016,3750972,"3,515.18",Heathlands Care Home
Adults Services,Adult Social Care,Support with Memory and Cognition - adults (18-64),Generic Care Packages SE Team -PS,Social Care - Nursing Care,23/09/2016,3750974,"3,515.18",Heathlands Care Home
Adults Services,Adult Social Care,Support with Memory and Cognition - adults (18-64),Generic Care Packages SE Team -PS,Social Care - Nursing Care,28/09/2016,3752539,-669.65,SANCTUARY CARE LTD
Adults Services,Adult Social Care,Support with Memory and Cognition - adults (18-64),Generic Care Packages SE Team -PS,Social Care - Nursing Care,28/09/2016,3752541,-669.65,SANCTUARY CARE LTD
Adults Services,Adult Social Care,Support with Memory and Cognition - adults (18-64),Generic Care Packages SE Team -PS,Social Care - Nursing Care,28/09/2016,3752560,"2,660.35",SANCTUARY CARE LTD
Adults Services,Adult Social Care,Support with Memory and Cognition - adults (18-64),Generic Care Packages SE Team -PS,Social Care - Nursing Care,28/09/2016,3752566,"3,385.72",SANCTUARY CARE LTD
Adults Services,Adult Social Care,Support with Memory and Cognition - adults (18-64),Generic Care Packages SE Team -PS,Social Care - Nursing Care,28/09/2016,3752570,"3,385.72",SANCTUARY CARE LTD
Adults Services,Adult Social Care,Support with Memory and Cognition - adults (18-64),Generic Care Packages SE Team -PS,Social Care - Nursing Care,28/09/2016,3752577,"3,385.72",SANCTUARY CARE LTD
Adults Services,Adult Social Care,Support with Memory and Cognition - adults (18-64),Generic Care Packages SE Team -PS,Social Care - Nursing Care,28/09/2016,3752602,"3,330.00",SANCTUARY CARE LTD
Adults Services,Adult Social Care,Support with Memory and Cognition - adults (18-64),Generic Care Packages SE Team -PS,Social Care - Nursing Care,28/09/2016,3752603,"4,907.15",SANCTUARY CARE LTD
Adults Services,Adult Social Care,Support with Memory and Cognition - adults (18-64),Generic Care Packages SE Team -PS,Social Care - Nursing Care,28/09/2016,3752654,"4,774.02",SANCTUARY CARE LTD
Adults Services,Adult Social Care,Support with Memory and Cognition - adults (18-64),Generic Care Packages SE Team -PS,Social Care - Nursing Care,28/09/2016,3752661,"2,690.32",BUPA CARE HOMES LTD
Adults Services,Adult Social Care,Support with Memory and Cognition - adults (18-64),Generic Care Packages SE Team -PS,Social Care - Nursing Care,30/09/2016,3752820,"1,702.11",JEWISH CARE
Adults Services,Adult Social Care,Support with Memory and Cognition - adults (18-64),Generic Care Packages SE Team -PS,Social Care - Nursing Care,30/09/2016,3752935,"3,616.07",Coxwell Homes Ltd
Adults Services,Adult Social Care,Support with Memory and Cognition - adults (18-64),Generic Care Packages SE Team -PS,Social Care - Nursing Care,30/09/2016,3754451,"2,518.75",BARCHESTER HEALTHCARE
Adults Services,Adult Social Care,Support with Memory and Cognition - adults (18-64),Generic Care Packages SE Team -PS,Social Care - Nursing Care,30/09/2016,3754452,"3,072.33",BARCHESTER HEALTHCARE
Adults Services,Adult Social Care,Support with Memory and Cognition - adults (18-64),Generic Care Packages SE Team -PS,Social Care - Nursing Care,30/09/2016,3754455,"2,518.75",BARCHESTER HEALTHCARE
Adults Services,Adult Social Care,Support with Memory and Cognition - adults (18-64),Generic Care Packages SE Team -PS,Social Care - Nursing Care,30/09/2016,3754456,"3,072.33",BARCHESTER HEALTHCARE
Adults Services,Adult Social Care,Support with Memory and Cognition - adults (18-64),Generic Care Packages SE Team -PS,Social Care - Nursing Care,30/09/2016,3754459,"2,437.50",BARCHESTER HEALTHCARE
Adults Services,Adult Social Care,Support with Memory and Cognition - adults (18-64),Generic Care Packages SE Team -PS,Social Care - Nursing Care,30/09/2016,3754460,"2,973.22",BARCHESTER HEALTHCARE
Adults Services,Adult Social Care,Support with Memory and Cognition - adults (18-64),Generic Care Packages SE Team -PS,Social Care - Nursing Care,30/09/2016,3754774,"3,857.60",HAVERING COURT NURSING HOME
Adults Services,Adult Social Care,Support with Memory and Cognition - adults (18-64),Generic Care Packages SE Team -PS,Social Care - Nursing Care,30/09/2016,3754778,"2,878.28",BUPA CARE HOMES
Adults Services,Adult Social Care,Support with Memory and Cognition - adults (18-64),Generic Care Packages SE Team -PS,Social Care - Residential Care,07/09/2016,3733526,"5,956.47",HEALTH & HOME LTD (ALEXANDER HOUSE)
Adults Services,Adult Social Care,Support with Memory and Cognition - adults (18-64),Generic Care Packages SE Team -PS,Social Care - Residential Care,07/09/2016,3733724,"1,968.19",RUNWOOD HOMES PLC
Adults Services,Adult Social Care,Support with Memory and Cognition - adults (18-64),Generic Care Packages SE Team -PS,Social Care - Residential Care,30/09/2016,3739747,"1,287.20",LEONARD CHESHIRE FOUNDATION
Adults Services,Adult Social Care,Support with Memory and Cognition - adults (18-64),Generic Care Packages SE Team -PS,Social Care - Residential Care,30/09/2016,3739748,"-1,287.20",LEONARD CHESHIRE FOUNDATION
Adults Services,Adult Social Care,Support with Memory and Cognition - adults (18-64),Generic Care Packages SE Team -PS,Social Care - Residential Care,16/09/2016,3739811,"1,518.45",H-C ONE
Adults Services,Adult Social Care,Support with Memory and Cognition - adults (18-64),Generic Care Packages SE Team -PS,Social Care - Residential Care,16/09/2016,3739812,"3,036.91",H-C ONE
Adults Services,Adult Social Care,Support with Memory and Cognition - adults (18-64),Generic Care Packages SE Team -PS,Social Care - Residential Care,21/09/2016,3748564,"3,766.36",RUNWOOD HOMES PLC
Adults Services,Adult Social Care,Support with Memory and Cognition - adults (18-64),Generic Care Packages SE Team -PS,Social Care - Residential Care,30/09/2016,3752170,"2,507.14",BARCHESTER HEALTHCARE
Adults Services,Adult Social Care,Support with Memory and Cognition - adults (18-64),Generic Care Packages SE Team -PS,Social Care - Residential Care,30/09/2016,3752175,"1,516.67",Millard House Care Ltd
Adults Services,Adult Social Care,Support with Memory and Cognition - adults (18-64),Generic Care Packages SE Team -PS,Social Care - Residential Care,28/09/2016,3752427,"1,919.02",ATTWOODS MANOR RETIREMENT HOME
Adults Services,Adult Social Care,Support with Memory and Cognition - adults (18-64),Generic Care Packages SE Team -PS,Social Care - Residential Care,28/09/2016,3752447,"1,133.57",ROBERTA HOUSE & ELIZABETH HOUSE
Adults Services,Adult Social Care,Support with Memory and Cognition - adults (18-64),Generic Care Packages SE Team -PS,Social Care - Residential Care,28/09/2016,3752470,"2,225.57",LITTLEDENE HOUSE
Adults Services,Adult Social Care,Support with Memory and Cognition - adults (18-64),Generic Care Packages SE Team -PS,Social Care - Residential Care,28/09/2016,3752472,"2,342.35",ANCHOR TRUST HOMES ACCOUNT
Adults Services,Adult Social Care,Support with Memory and Cognition - adults (18-64),Generic Care Packages SE Team -PS,Social Care - Residential Care,28/09/2016,3752475,"2,357.15",GATEWAY HOUSING ASSOCIATION
Adults Services,Adult Social Care,Support with Memory and Cognition - adults (18-64),Generic Care Packages SE Team -PS,Social Care - Residential Care,28/09/2016,3752506,"2,344.28",ANCHOR TRUST HOMES ACCOUNT
Adults Services,Adult Social Care,Support with Memory and Cognition - adults (18-64),Generic Care Packages SE Team -PS,Social Care - Residential Care,28/09/2016,3752546,"2,635.72",GATEWAY HOUSING ASSOCIATION
Adults Services,Adult Social Care,Support with Memory and Cognition - adults (18-64),Generic Care Packages SE Team -PS,Social Care - Residential Care,28/09/2016,3752554,"2,400.00",GATEWAY HOUSING ASSOCIATION
Adults Services,Adult Social Care,Support with Memory and Cognition - adults (18-64),Generic Care Packages SE Team -PS,Social Care - Residential Care,28/09/2016,3752592,"2,610.00",SANCTUARY CARE LTD
Adults Services,Adult Social Care,Support with Memory and Cognition - adults (18-64),Generic Care Packages SE Team -PS,Social Care - Residential Care,28/09/2016,3752606,"2,507.15",EXCELCARE HOLDING PLC
Adults Services,Adult Social Care,Support with Memory and Cognition - adults (18-64),Generic Care Packages SE Team -PS,Social Care - Residential Care,28/09/2016,3752610,"2,507.15",EXCELCARE HOLDING PLC
Adults Services,Adult Social Care,Support with Memory and Cognition - adults (18-64),Generic Care Packages SE Team -PS,Social Care - Residential Care,28/09/2016,3752625,"2,528.57",EXCELCARE HOLDING PLC
Adults Services,Adult Social Care,Support with Memory and Cognition - adults (18-64),Generic Care Packages SE Team -PS,Social Care - Residential Care,28/09/2016,3752637,"2,610.00",SANCTUARY CARE LTD
Adults Services,Adult Social Care,Support with Memory and Cognition - adults (18-64),Generic Care Packages SE Team -PS,Social Care - Residential Care,28/09/2016,3752645,"2,378.65",ANCHOR TRUST HOMES ACCOUNT
Adults Services,Adult Social Care,Support with Memory and Cognition - adults (18-64),Generic Care Packages SE Team -PS,Social Care - Residential Care,30/09/2016,3754791,"4,270.20",LEONARD CHESHIRE FOUNDATION
Adults Services,Adult Social Care,Support with Memory and Cognition - adults (18-64),Generic Care Packages SE Team -PS,Social Care - Respite Care,28/09/2016,3750975,"1,482.86",SANCTUARY CARE LTD
Adults Services,Adult Social Care,Support with Memory and Cognition - adults (18-64),Generic Care Packages SE Team -PS,Social Care - Respite Care,28/09/2016,3752826,"1,538.00",Abbey Care Complex
Adults Services,Adult Social Care,Support with Memory and Cognition - adults (18-64),Generic Care Packages SE Team -PS,Social Care - Day Care,14/09/2016,3737332,613.34,Tower Project
Adults Services,Adult Social Care,Support with Memory and Cognition - adults (18-64),Generic Care Packages SE Team -PS,Social Care - Homecare,02/09/2016,3731570,"1,117.88",Carewatch Newham Ltd
Adults Services,Adult Social Care,Support with Memory and Cognition - adults (18-64),Generic Care Packages SE Team -PS,Social Care - Homecare,02/09/2016,3731571,981.68,Carewatch Newham Ltd
Adults Services,Adult Social Care,Support with Memory and Cognition - adults (18-64),Generic Care Packages SE Team -PS,Social Care - Homecare,02/09/2016,3731615,"1,003.49",FOCUS CARE LINK LTD
Adults Services,Adult Social Care,Support with Memory and Cognition - adults (18-64),Generic Care Packages SE Team -PS,Social Care - Homecare,02/09/2016,3731623,"1,690.08",FOCUS CARE LINK LTD
Adults Services,Adult Social Care,Support with Memory and Cognition - adults (18-64),Generic Care Packages SE Team -PS,Social Care - Homecare,02/09/2016,3731806,540.02,SANCTUARY HOME CARE LIMITED
Adults Services,Adult Social Care,Support with Memory and Cognition - adults (18-64),Generic Care Packages SE Team -PS,Social Care - Homecare,02/09/2016,3731893,515.84,SANCTUARY HOME CARE LIMITED
Adults Services,Adult Social Care,Support with Memory and Cognition - adults (18-64),Generic Care Packages SE Team -PS,Social Care - Homecare,02/09/2016,3731909,"1,572.92",Soma Healthcare Ltd
Adults Services,Adult Social Care,Support with Memory and Cognition - adults (18-64),Generic Care Packages SE Team -PS,Social Care - Homecare,02/09/2016,3731913,616.59,SANCTUARY HOME CARE LIMITED
Adults Services,Adult Social Care,Support with Memory and Cognition - adults (18-64),Generic Care Packages SE Team -PS,Social Care - Homecare,07/09/2016,3732978,714.00,Mantra Recruitment
Adults Services,Adult Social Care,Support with Memory and Cognition - adults (18-64),Generic Care Packages SE Team -PS,Social Care - Homecare,07/09/2016,3733081,"1,225.34",ATHLONE CARE LTD
Adults Services,Adult Social Care,Support with Memory and Cognition - adults (18-64),Generic Care Packages SE Team -PS,Social Care - Homecare,07/09/2016,3733093,"1,327.65",ATHLONE CARE LTD
Adults Services,Adult Social Care,Support with Memory and Cognition - adults (18-64),Generic Care Packages SE Team -PS,Social Care - Homecare,07/09/2016,3733134,673.58,Carewatch Newham Ltd
Adults Services,Adult Social Care,Support with Memory and Cognition - adults (18-64),Generic Care Packages SE Team -PS,Social Care - Homecare,07/09/2016,3733173,714.00,Mantra Recruitment
Adults Services,Adult Social Care,Support with Memory and Cognition - adults (18-64),Generic Care Packages SE Team -PS,Social Care - Homecare,07/09/2016,3733252,522.75,Mantra Recruitment
Adults Services,Adult Social Care,Support with Memory and Cognition - adults (18-64),Generic Care Packages SE Team -PS,Social Care - Homecare,07/09/2016,3733342,529.13,Mantra Recruitment
Adults Services,Adult Social Care,Support with Memory and Cognition - adults (18-64),Generic Care Packages SE Team -PS,Social Care - Homecare,07/09/2016,3733353,815.90,Excelcare (Home Care Division) LTD
Adults Services,Adult Social Care,Support with Memory and Cognition - adults (18-64),Generic Care Packages SE Team -PS,Social Care - Homecare,07/09/2016,3733410,558.33,FOCUS CARE LINK LTD
Adults Services,Adult Social Care,Support with Memory and Cognition - adults (18-64),Generic Care Packages SE Team -PS,Social Care - Homecare,07/09/2016,3733450,951.30,SEVACARE UK LTD
Adults Services,Adult Social Care,Support with Memory and Cognition - adults (18-64),Generic Care Packages SE Team -PS,Social Care - Homecare,07/09/2016,3733538,906.00,St Hilda's East Community Centre
Adults Services,Adult Social Care,Support with Memory and Cognition - adults (18-64),Generic Care Packages SE Team -PS,Social Care - Homecare,07/09/2016,3733547,709.70,St Hilda's East Community Centre
Adults Services,Adult Social Care,Support with Memory and Cognition - adults (18-64),Generic Care Packages SE Team -PS,Social Care - Homecare,07/09/2016,3733560,551.15,St Hilda's East Community Centre
Adults Services,Adult Social Care,Support with Memory and Cognition - adults (18-64),Generic Care Packages SE Team -PS,Social Care - Homecare,07/09/2016,3733586,513.40,St Hilda's East Community Centre
Adults Services,Adult Social Care,Support with Memory and Cognition - adults (18-64),Generic Care Packages SE Team -PS,Social Care - Homecare,07/09/2016,3733595,906.00,St Hilda's East Community Centre
Adults Services,Adult Social Care,Support with Memory and Cognition - adults (18-64),Generic Care Packages SE Team -PS,Social Care - Homecare,07/09/2016,3733604,709.70,St Hilda's East Community Centre
Adults Services,Adult Social Care,Support with Memory and Cognition - adults (18-64),Generic Care Packages SE Team -PS,Social Care - Homecare,07/09/2016,3733617,551.15,St Hilda's East Community Centre
Adults Services,Adult Social Care,Support with Memory and Cognition - adults (18-64),Generic Care Packages SE Team -PS,Social Care - Homecare,07/09/2016,3733642,513.40,St Hilda's East Community Centre
Adults Services,Adult Social Care,Support with Memory and Cognition - adults (18-64),Generic Care Packages SE Team -PS,Social Care - Homecare,07/09/2016,3733649,906.00,St Hilda's East Community Centre
Adults Services,Adult Social Care,Support with Memory and Cognition - adults (18-64),Generic Care Packages SE Team -PS,Social Care - Homecare,07/09/2016,3733654,709.70,St Hilda's East Community Centre
Adults Services,Adult Social Care,Support with Memory and Cognition - adults (18-64),Generic Care Packages SE Team -PS,Social Care - Homecare,07/09/2016,3733662,551.15,St Hilda's East Community Centre
Adults Services,Adult Social Care,Support with Memory and Cognition - adults (18-64),Generic Care Packages SE Team -PS,Social Care - Homecare,07/09/2016,3733676,513.40,St Hilda's East Community Centre
Adults Services,Adult Social Care,Support with Memory and Cognition - adults (18-64),Generic Care Packages SE Team -PS,Social Care - Homecare,07/09/2016,3733741,515.84,SANCTUARY HOME CARE LIMITED
Adults Services,Adult Social Care,Support with Memory and Cognition - adults (18-64),Generic Care Packages SE Team -PS,Social Care - Homecare,07/09/2016,3733767,668.98,SANCTUARY HOME CARE LIMITED
Adults Services,Adult Social Care,Support with Memory and Cognition - adults (18-64),Generic Care Packages SE Team -PS,Social Care - Homecare,07/09/2016,3733879,515.84,SANCTUARY HOME CARE LIMITED
Adults Services,Adult Social Care,Support with Memory and Cognition - adults (18-64),Generic Care Packages SE Team -PS,Social Care - Homecare,07/09/2016,3733987,504.90,Soma Healthcare Ltd
Adults Services,Adult Social Care,Support with Memory and Cognition - adults (18-64),Generic Care Packages SE Team -PS,Social Care - Homecare,07/09/2016,3734027,516.04,Soma Healthcare Ltd
Adults Services,Adult Social Care,Support with Memory and Cognition - adults (18-64),Generic Care Packages SE Team -PS,Social Care - Homecare,07/09/2016,3734041,"1,425.60",Soma Healthcare Ltd
Adults Services,Adult Social Care,Support with Memory and Cognition - adults (18-64),Generic Care Packages SE Team -PS,Social Care - Homecare,07/09/2016,3734044,527.18,Soma Healthcare Ltd
Adults Services,Adult Social Care,Support with Memory and Cognition - adults (18-64),Generic Care Packages SE Team -PS,Social Care - Homecare,07/09/2016,3734045,697.95,Soma Healthcare Ltd
Adults Services,Adult Social Care,Support with Memory and Cognition - adults (18-64),Generic Care Packages SE Team -PS,Social Care - Homecare,07/09/2016,3734060,"1,907.10",Soma Healthcare Ltd
Adults Services,Adult Social Care,Support with Memory and Cognition - adults (18-64),Generic Care Packages SE Team -PS,Social Care - Homecare,07/09/2016,3734066,653.40,Soma Healthcare Ltd
Adults Services,Adult Social Care,Support with Memory and Cognition - adults (18-64),Generic Care Packages SE Team -PS,Social Care - Homecare,07/09/2016,3734108,527.18,Soma Healthcare Ltd
Adults Services,Adult Social Care,Support with Memory and Cognition - adults (18-64),Generic Care Packages SE Team -PS,Social Care - Homecare,07/09/2016,3734116,"1,715.18",Soma Healthcare Ltd
Adults Services,Adult Social Care,Support with Memory and Cognition - adults (18-64),Generic Care Packages SE Team -PS,Social Care - Homecare,09/09/2016,3735364,595.00,Excelcare (Home Care Division) LTD
Adults Services,Adult Social Care,Support with Memory and Cognition - adults (18-64),Generic Care Packages SE Team -PS,Social Care - Homecare,09/09/2016,3735365,593.27,Excelcare (Home Care Division) LTD
Adults Services,Adult Social Care,Support with Memory and Cognition - adults (18-64),Generic Care Packages SE Team -PS,Social Care - Homecare,09/09/2016,3735366,605.80,Excelcare (Home Care Division) LTD
Adults Services,Adult Social Care,Support with Memory and Cognition - adults (18-64),Generic Care Packages SE Team -PS,Social Care - Homecare,09/09/2016,3735367,605.80,Excelcare (Home Care Division) LTD
Adults Services,Adult Social Care,Support with Memory and Cognition - adults (18-64),Generic Care Packages SE Team -PS,Social Care - Homecare,09/09/2016,3735368,584.42,Excelcare (Home Care Division) LTD
Adults Services,Adult Social Care,Support with Memory and Cognition - adults (18-64),Generic Care Packages SE Team -PS,Social Care - Homecare,09/09/2016,3735369,664.60,Excelcare (Home Care Division) LTD
Adults Services,Adult Social Care,Support with Memory and Cognition - adults (18-64),Generic Care Packages SE Team -PS,Social Care - Homecare,09/09/2016,3735370,591.55,Excelcare (Home Care Division) LTD
Adults Services,Adult Social Care,Support with Memory and Cognition - adults (18-64),Generic Care Packages SE Team -PS,Social Care - Homecare,09/09/2016,3735371,605.80,Excelcare (Home Care Division) LTD
Adults Services,Adult Social Care,Support with Memory and Cognition - adults (18-64),Generic Care Packages SE Team -PS,Social Care - Homecare,09/09/2016,3735372,605.80,Excelcare (Home Care Division) LTD
Adults Services,Adult Social Care,Support with Memory and Cognition - adults (18-64),Generic Care Packages SE Team -PS,Social Care - Homecare,09/09/2016,3735373,605.80,Excelcare (Home Care Division) LTD
Adults Services,Adult Social Care,Support with Memory and Cognition - adults (18-64),Generic Care Packages SE Team -PS,Social Care - Homecare,09/09/2016,3735374,605.80,Excelcare (Home Care Division) LTD
Adults Services,Adult Social Care,Support with Memory and Cognition - adults (18-64),Generic Care Packages SE Team -PS,Social Care - Homecare,09/09/2016,3735375,625.40,Excelcare (Home Care Division) LTD
Adults Services,Adult Social Care,Support with Memory and Cognition - adults (18-64),Generic Care Packages SE Team -PS,Social Care - Homecare,09/09/2016,3735376,625.40,Excelcare (Home Care Division) LTD
Adults Services,Adult Social Care,Support with Memory and Cognition - adults (18-64),Generic Care Packages SE Team -PS,Social Care - Homecare,09/09/2016,3735377,605.80,Excelcare (Home Care Division) LTD
Adults Services,Adult Social Care,Support with Memory and Cognition - adults (18-64),Generic Care Packages SE Team -PS,Social Care - Homecare,09/09/2016,3735378,625.40,Excelcare (Home Care Division) LTD
Adults Services,Adult Social Care,Support with Memory and Cognition - adults (18-64),Generic Care Packages SE Team -PS,Social Care - Homecare,09/09/2016,3735379,605.80,Excelcare (Home Care Division) LTD
Adults Services,Adult Social Care,Support with Memory and Cognition - adults (18-64),Generic Care Packages SE Team -PS,Social Care - Homecare,09/09/2016,3735380,625.40,Excelcare (Home Care Division) LTD
Adults Services,Adult Social Care,Support with Memory and Cognition - adults (18-64),Generic Care Packages SE Team -PS,Social Care - Homecare,09/09/2016,3735381,605.80,Excelcare (Home Care Division) LTD
Adults Services,Adult Social Care,Support with Memory and Cognition - adults (18-64),Generic Care Packages SE Team -PS,Social Care - Homecare,09/09/2016,3735382,605.81,Excelcare (Home Care Division) LTD
Adults Services,Adult Social Care,Support with Memory and Cognition - adults (18-64),Generic Care Packages SE Team -PS,Social Care - Homecare,09/09/2016,3735424,"1,162.70",SEVACARE UK LTD
Adults Services,Adult Social Care,Support with Memory and Cognition - adults (18-64),Generic Care Packages SE Team -PS,Social Care - Homecare,09/09/2016,3735684,644.80,SANCTUARY HOME CARE LIMITED
Adults Services,Adult Social Care,Support with Memory and Cognition - adults (18-64),Generic Care Packages SE Team -PS,Social Care - Homecare,09/09/2016,3735694,668.98,SANCTUARY HOME CARE LIMITED
Adults Services,Adult Social Care,Support with Memory and Cognition - adults (18-64),Generic Care Packages SE Team -PS,Social Care - Homecare,09/09/2016,3735760,540.02,SANCTUARY HOME CARE LIMITED
Adults Services,Adult Social Care,Support with Memory and Cognition - adults (18-64),Generic Care Packages SE Team -PS,Social Care - Homecare,09/09/2016,3735778,515.84,SANCTUARY HOME CARE LIMITED
Adults Services,Adult Social Care,Support with Memory and Cognition - adults (18-64),Generic Care Packages SE Team -PS,Social Care - Homecare,14/09/2016,3736907,714.00,Mantra Recruitment
Adults Services,Adult Social Care,Support with Memory and Cognition - adults (18-64),Generic Care Packages SE Team -PS,Social Care - Homecare,14/09/2016,3736986,714.00,Mantra Recruitment
Adults Services,Adult Social Care,Support with Memory and Cognition - adults (18-64),Generic Care Packages SE Team -PS,Social Care - Homecare,14/09/2016,3737062,714.00,Mantra Recruitment
Adults Services,Adult Social Care,Support with Memory and Cognition - adults (18-64),Generic Care Packages SE Team -PS,Social Care - Homecare,14/09/2016,3737120,563.36,ATHLONE CARE LTD
Adults Services,Adult Social Care,Support with Memory and Cognition - adults (18-64),Generic Care Packages SE Team -PS,Social Care - Homecare,14/09/2016,3737184,798.00,Excelcare (Home Care Division) LTD
Adults Services,Adult Social Care,Support with Memory and Cognition - adults (18-64),Generic Care Packages SE Team -PS,Social Care - Homecare,14/09/2016,3737187,826.52,Excelcare (Home Care Division) LTD
Adults Services,Adult Social Care,Support with Memory and Cognition - adults (18-64),Generic Care Packages SE Team -PS,Social Care - Homecare,14/09/2016,3737193,798.00,Excelcare (Home Care Division) LTD
Adults Services,Adult Social Care,Support with Memory and Cognition - adults (18-64),Generic Care Packages SE Team -PS,Social Care - Homecare,14/09/2016,3737194,798.00,Excelcare (Home Care Division) LTD
Adults Services,Adult Social Care,Support with Memory and Cognition - adults (18-64),Generic Care Packages SE Team -PS,Social Care - Homecare,14/09/2016,3737459,"1,429.26",SANCTUARY HOME CARE LIMITED
Adults Services,Adult Social Care,Support with Memory and Cognition - adults (18-64),Generic Care Packages SE Team -PS,Social Care - Homecare,16/09/2016,3739712,969.49,Excelcare (Home Care Division) LTD
Adults Services,Adult Social Care,Support with Memory and Cognition - adults (18-64),Generic Care Packages SE Team -PS,Social Care - Homecare,16/09/2016,3739791,546.86,MiHOMECARE LIMITED
Adults Services,Adult Social Care,Support with Memory and Cognition - adults (18-64),Generic Care Packages SE Team -PS,Social Care - Homecare,16/09/2016,3739824,868.59,SUPREME HOME CARE AGENCY
Adults Services,Adult Social Care,Support with Memory and Cognition - adults (18-64),Generic Care Packages SE Team -PS,Social Care - Homecare,21/09/2016,3747566,701.25,Mantra Recruitment
Adults Services,Adult Social Care,Support with Memory and Cognition - adults (18-64),Generic Care Packages SE Team -PS,Social Care - Homecare,21/09/2016,3747626,"1,225.34",ATHLONE CARE LTD
Adults Services,Adult Social Care,Support with Memory and Cognition - adults (18-64),Generic Care Packages SE Team -PS,Social Care - Homecare,21/09/2016,3747639,"1,324.12",ATHLONE CARE LTD
Adults Services,Adult Social Care,Support with Memory and Cognition - adults (18-64),Generic Care Packages SE Team -PS,Social Care - Homecare,21/09/2016,3747656,"1,117.88",Carewatch Newham Ltd
Adults Services,Adult Social Care,Support with Memory and Cognition - adults (18-64),Generic Care Packages SE Team -PS,Social Care - Homecare,21/09/2016,3747668,902.86,Carewatch Newham Ltd
Adults Services,Adult Social Care,Support with Memory and Cognition - adults (18-64),Generic Care Packages SE Team -PS,Social Care - Homecare,21/09/2016,3747691,673.58,Carewatch Newham Ltd
Adults Services,Adult Social Care,Support with Memory and Cognition - adults (18-64),Generic Care Packages SE Team -PS,Social Care - Homecare,21/09/2016,3747695,981.75,Excelcare (Home Care Division) LTD
Adults Services,Adult Social Care,Support with Memory and Cognition - adults (18-64),Generic Care Packages SE Team -PS,Social Care - Homecare,21/09/2016,3747696,990.88,Excelcare (Home Care Division) LTD
Adults Services,Adult Social Care,Support with Memory and Cognition - adults (18-64),Generic Care Packages SE Team -PS,Social Care - Homecare,21/09/2016,3747714,"1,097.75",Excelcare (Home Care Division) LTD
Adults Services,Adult Social Care,Support with Memory and Cognition - adults (18-64),Generic Care Packages SE Team -PS,Social Care - Homecare,21/09/2016,3747716,"1,022.94",Excelcare (Home Care Division) LTD
Adults Services,Adult Social Care,Support with Memory and Cognition - adults (18-64),Generic Care Packages SE Team -PS,Social Care - Homecare,21/09/2016,3747734,798.00,Excelcare (Home Care Division) LTD
Adults Services,Adult Social Care,Support with Memory and Cognition - adults (18-64),Generic Care Packages SE Team -PS,Social Care - Homecare,21/09/2016,3747737,541.72,Excelcare (Home Care Division) LTD
Adults Services,Adult Social Care,Support with Memory and Cognition - adults (18-64),Generic Care Packages SE Team -PS,Social Care - Homecare,21/09/2016,3747744,783.82,Excelcare (Home Care Division) LTD
Adults Services,Adult Social Care,Support with Memory and Cognition - adults (18-64),Generic Care Packages SE Team -PS,Social Care - Homecare,21/09/2016,3747753,605.80,Excelcare (Home Care Division) LTD
Adults Services,Adult Social Care,Support with Memory and Cognition - adults (18-64),Generic Care Packages SE Team -PS,Social Care - Homecare,21/09/2016,3747759,584.34,Excelcare (Home Care Division) LTD
Adults Services,Adult Social Care,Support with Memory and Cognition - adults (18-64),Generic Care Packages SE Team -PS,Social Care - Homecare,21/09/2016,3747776,"4,088.00",Excelcare (Home Care Division) LTD
Adults Services,Adult Social Care,Support with Memory and Cognition - adults (18-64),Generic Care Packages SE Team -PS,Social Care - Homecare,21/09/2016,3747822,"1,350.56",FOCUS CARE LINK LTD
Adults Services,Adult Social Care,Support with Memory and Cognition - adults (18-64),Generic Care Packages SE Team -PS,Social Care - Homecare,21/09/2016,3747831,"1,652.36",FOCUS CARE LINK LTD
Adults Services,Adult Social Care,Support with Memory and Cognition - adults (18-64),Generic Care Packages SE Team -PS,Social Care - Homecare,21/09/2016,3748606,"1,579.78",SANCTUARY HOME CARE LIMITED
Adults Services,Adult Social Care,Support with Memory and Cognition - adults (18-64),Generic Care Packages SE Team -PS,Social Care - Homecare,21/09/2016,3748636,504.90,Soma Healthcare Ltd
Adults Services,Adult Social Care,Support with Memory and Cognition - adults (18-64),Generic Care Packages SE Team -PS,Social Care - Homecare,21/09/2016,3748662,"1,700.33",Soma Healthcare Ltd
Adults Services,Adult Social Care,Support with Memory and Cognition - adults (18-64),Generic Care Packages SE Team -PS,Social Care - Homecare,21/09/2016,3748678,527.18,Soma Healthcare Ltd
Adults Services,Adult Social Care,Support with Memory and Cognition - adults (18-64),Generic Care Packages SE Team -PS,Social Care - Homecare,21/09/2016,3748691,"1,425.60",Soma Healthcare Ltd
Adults Services,Adult Social Care,Support with Memory and Cognition - adults (18-64),Generic Care Packages SE Team -PS,Social Care - Homecare,21/09/2016,3748693,564.30,Soma Healthcare Ltd
Adults Services,Adult Social Care,Support with Memory and Cognition - adults (18-64),Generic Care Packages SE Team -PS,Social Care - Homecare,21/09/2016,3748694,679.39,Soma Healthcare Ltd
Adults Services,Adult Social Care,Support with Memory and Cognition - adults (18-64),Generic Care Packages SE Team -PS,Social Care - Homecare,21/09/2016,3748717,683.10,Soma Healthcare Ltd
Adults Services,Adult Social Care,Support with Memory and Cognition - adults (18-64),Generic Care Packages SE Team -PS,Social Care - Homecare,21/09/2016,3748766,954.60,AQUAFLO CARE LTD
Adults Services,Adult Social Care,Support with Memory and Cognition - adults (18-64),Generic Care Packages SE Team -PS,Social Care - Homecare,21/09/2016,3748767,954.60,AQUAFLO CARE LTD
Adults Services,Adult Social Care,Support with Memory and Cognition - adults (18-64),Generic Care Packages SE Team -PS,Social Care - Homecare,23/09/2016,3749429,798.00,Excelcare (Home Care Division) LTD
Adults Services,Adult Social Care,Support with Memory and Cognition - adults (18-64),Generic Care Packages SE Team -PS,Social Care - Homecare,23/09/2016,3749433,541.72,Excelcare (Home Care Division) LTD
Adults Services,Adult Social Care,Support with Memory and Cognition - adults (18-64),Generic Care Packages SE Team -PS,Social Care - Homecare,23/09/2016,3749440,783.82,Excelcare (Home Care Division) LTD
Adults Services,Adult Social Care,Support with Memory and Cognition - adults (18-64),Generic Care Packages SE Team -PS,Social Care - Homecare,23/09/2016,3749458,605.80,Excelcare (Home Care Division) LTD
Adults Services,Adult Social Care,Support with Memory and Cognition - adults (18-64),Generic Care Packages SE Team -PS,Social Care - Homecare,23/09/2016,3749506,990.88,Excelcare (Home Care Division) LTD
Adults Services,Adult Social Care,Support with Memory and Cognition - adults (18-64),Generic Care Packages SE Team -PS,Social Care - Homecare,23/09/2016,3749567,558.33,FOCUS CARE LINK LTD
Adults Services,Adult Social Care,Support with Memory and Cognition - adults (18-64),Generic Care Packages SE Team -PS,Social Care - Homecare,23/09/2016,3750884,951.82,Excelcare (Home Care Division) LTD
Adults Services,Adult Social Care,Support with Memory and Cognition - adults (18-64),Generic Care Packages SE Team -PS,Social Care - Homecare,23/09/2016,3751015,709.70,St Hilda's East Community Centre
Adults Services,Adult Social Care,Support with Memory and Cognition - adults (18-64),Generic Care Packages SE Team -PS,Social Care - Homecare,23/09/2016,3751028,551.15,St Hilda's East Community Centre
Adults Services,Adult Social Care,Support with Memory and Cognition - adults (18-64),Generic Care Packages SE Team -PS,Social Care - Homecare,23/09/2016,3751068,"1,273.73",Soma Healthcare Ltd
Adults Services,Adult Social Care,Support with Memory and Cognition - adults (18-64),Generic Care Packages SE Team -PS,Social Care - Homecare,23/09/2016,3751080,906.00,St Hilda's East Community Centre
Adults Services,Adult Social Care,Support with Memory and Cognition - adults (18-64),Generic Care Packages SE Team -PS,Social Care - Homecare,28/09/2016,3752176,500.40,AGE UK EAST LONDON
Adults Services,Adult Social Care,Support with Memory and Cognition - adults (18-64),Generic Care Packages SE Team -PS,Social Care - Homecare,28/09/2016,3752201,601.34,FOCUS CARE LINK LTD
Adults Services,Adult Social Care,Support with Memory and Cognition - adults (18-64),Generic Care Packages SE Team -PS,Social Care - Homecare,28/09/2016,3752210,859.80,Carewatch Newham Ltd
Adults Services,Adult Social Care,Support with Memory and Cognition - adults (18-64),Generic Care Packages SE Team -PS,Social Care - Homecare,28/09/2016,3752229,"1,117.88",Carewatch Newham Ltd
Adults Services,Adult Social Care,Support with Memory and Cognition - adults (18-64),Generic Care Packages SE Team -PS,Social Care - Homecare,28/09/2016,3752231,573.20,Carewatch Newham Ltd
Adults Services,Adult Social Care,Support with Memory and Cognition - adults (18-64),Generic Care Packages SE Team -PS,Social Care - Homecare,28/09/2016,3752240,902.86,Carewatch Newham Ltd
Adults Services,Adult Social Care,Support with Memory and Cognition - adults (18-64),Generic Care Packages SE Team -PS,Social Care - Homecare,28/09/2016,3752266,673.58,Carewatch Newham Ltd
Adults Services,Adult Social Care,Support with Memory and Cognition - adults (18-64),Generic Care Packages SE Team -PS,Social Care - Homecare,28/09/2016,3752274,859.80,Carewatch Newham Ltd
Adults Services,Adult Social Care,Support with Memory and Cognition - adults (18-64),Generic Care Packages SE Team -PS,Social Care - Homecare,28/09/2016,3752333,"1,524.09",FOCUS CARE LINK LTD
Adults Services,Adult Social Care,Support with Memory and Cognition - adults (18-64),Generic Care Packages SE Team -PS,Social Care - Homecare,28/09/2016,3752343,"1,588.22",FOCUS CARE LINK LTD
Adults Services,Adult Social Care,Support with Memory and Cognition - adults (18-64),Generic Care Packages SE Team -PS,Social Care - Homecare,28/09/2016,3752389,558.33,FOCUS CARE LINK LTD
Adults Services,Adult Social Care,Support with Memory and Cognition - adults (18-64),Generic Care Packages SE Team -PS,Social Care - Homecare,28/09/2016,3752772,536.05,SEVACARE UK LTD
Adults Services,Adult Social Care,Support with Memory and Cognition - adults (18-64),Generic Care Packages SE Team -PS,Social Care - Homecare,28/09/2016,3752846,532.58,REDSPOT HOMECARE (CONTRACTS) LTD
Adults Services,Adult Social Care,Support with Memory and Cognition - adults (18-64),Generic Care Packages SE Team -PS,Social Care - Homecare,28/09/2016,3752854,"2,209.20",REDSPOT HOMECARE (CONTRACTS) LTD
Adults Services,Adult Social Care,Support with Memory and Cognition - adults (18-64),Generic Care Packages SE Team -PS,Social Care - Homecare,28/09/2016,3752869,"1,611.20",COMMUNITY CARE CONSORTIUM
Adults Services,Adult Social Care,Support with Memory and Cognition - adults (18-64),Generic Care Packages SE Team -PS,Social Care - Homecare,28/09/2016,3752875,813.20,COMMUNITY CARE CONSORTIUM
Adults Services,Adult Social Care,Support with Memory and Cognition - adults (18-64),Generic Care Packages SE Team -PS,Social Care - Homecare,28/09/2016,3752876,767.60,COMMUNITY CARE CONSORTIUM
Adults Services,Adult Social Care,Support with Memory and Cognition - adults (18-64),Generic Care Packages SE Team -PS,Social Care - Homecare,28/09/2016,3752879,706.80,COMMUNITY CARE CONSORTIUM
Adults Services,Adult Social Care,Support with Memory and Cognition - adults (18-64),Generic Care Packages SE Team -PS,Social Care - Homecare,28/09/2016,3752886,592.80,COMMUNITY CARE CONSORTIUM
Adults Services,Adult Social Care,Support with Memory and Cognition - adults (18-64),Generic Care Packages SE Team -PS,Social Care - Homecare,28/09/2016,3752888,566.20,COMMUNITY CARE CONSORTIUM
Adults Services,Adult Social Care,Support with Memory and Cognition - adults (18-64),Generic Care Packages SE Team -PS,Social Care - Homecare,28/09/2016,3752967,561.72,MiHOMECARE LIMITED
Adults Services,Adult Social Care,Support with Memory and Cognition - adults (18-64),Generic Care Packages SE Team -PS,Social Care - Homecare,28/09/2016,3753111,644.82,SANCTUARY HOME CARE LIMITED
Adults Services,Adult Social Care,Support with Memory and Cognition - adults (18-64),Generic Care Packages SE Team -PS,Social Care - Homecare,28/09/2016,3753188,515.84,SANCTUARY HOME CARE LIMITED
Adults Services,Adult Social Care,Support with Memory and Cognition - adults (18-64),Generic Care Packages SE Team -PS,Social Care - Homecare,28/09/2016,3753212,515.84,SANCTUARY HOME CARE LIMITED
Adults Services,Adult Social Care,Support with Memory and Cognition - adults (18-64),Generic Care Packages SE Team -PS,Social Care - Homecare,28/09/2016,3753228,994.00,Soma Healthcare Ltd
Adults Services,Adult Social Care,Support with Memory and Cognition - adults (18-64),Generic Care Packages SE Team -PS,Social Care - Homecare,30/09/2016,3754805,924.82,Excelcare (Home Care Division) LTD
Adults Services,Adult Social Care,Support with Memory and Cognition - adults (18-64),Generic Care Packages SE Team -PS,Social Care - Homecare,30/09/2016,3754878,588.90,SEVACARE UK LTD
Adults Services,Adult Social Care,Support with Memory and Cognition - adults (18-64),Generic Care Packages SE Team -PS,Social Care - Homecare,30/09/2016,3754887,"1,041.90",SEVACARE UK LTD
Adults Services,Adult Social Care,Support with Memory and Cognition - adults (18-64),Generic Care Packages SE Team -PS,Social Care - Homecare,30/09/2016,3754910,532.58,REDSPOT HOMECARE (CONTRACTS) LTD
Adults Services,Adult Social Care,Support with Memory and Cognition - adults (18-64),Generic Care Packages SE Team -PS,Social Care - Homecare,30/09/2016,3754918,"2,209.20",REDSPOT HOMECARE (CONTRACTS) LTD
Adults Services,Adult Social Care,Support with Memory and Cognition - adults (18-64),Generic Care Packages SE Team -PS,Social Care - Homecare,30/09/2016,3754938,"1,611.20",COMMUNITY CARE CONSORTIUM
Adults Services,Adult Social Care,Support with Memory and Cognition - adults (18-64),Generic Care Packages SE Team -PS,Social Care - Homecare,30/09/2016,3754943,813.20,COMMUNITY CARE CONSORTIUM
Adults Services,Adult Social Care,Support with Memory and Cognition - adults (18-64),Generic Care Packages SE Team -PS,Social Care - Homecare,30/09/2016,3754944,767.60,COMMUNITY CARE CONSORTIUM
Adults Services,Adult Social Care,Support with Memory and Cognition - adults (18-64),Generic Care Packages SE Team -PS,Social Care - Homecare,30/09/2016,3754947,706.80,COMMUNITY CARE CONSORTIUM
Adults Services,Adult Social Care,Support with Memory and Cognition - adults (18-64),Generic Care Packages SE Team -PS,Social Care - Homecare,30/09/2016,3754955,532.00,COMMUNITY CARE CONSORTIUM
Adults Services,Adult Social Care,Support with Memory and Cognition - adults (18-64),Generic Care Packages SE Team -PS,Social Care - Homecare,30/09/2016,3755049,539.47,MiHOMECARE LIMITED
Adults Services,Adult Social Care,Support with Memory and Cognition - adults (18-64),Generic Care Packages SE Team -PS,Social Care - Homecare,30/09/2016,3755174,540.02,SANCTUARY HOME CARE LIMITED
Adults Services,Adult Social Care,Support with Memory and Cognition - adults (18-64),Generic Care Packages SE Team -PS,Social Care - Direct Payments,14/09/2016,3735394,"-3,631.42",D D PAYROLL SERVICES
Adults Services,Adult Social Care,Support with Memory and Cognition - adults (18-64),Generic Care Packages SE Team -PS,Social Care - Direct Payments,14/09/2016,3735400,"3,634.04",D D PAYROLL SERVICES
Adults Services,Adult Social Care,Support with Memory and Cognition - adults (18-64),Generic Care Packages SE Team -PS,Social Care - Direct Payments,14/09/2016,3737214,"-3,375.24",DAVID HOWARD LTD CLIENT ACCOUNT
Adults Services,Adult Social Care,Support with Memory and Cognition - adults (18-64),Generic Care Packages SE Team -PS,Social Care - Direct Payments,16/09/2016,3739738,"-3,227.09",DAVID HOWARD LTD CLIENT ACCOUNT
Adults Services,Adult Social Care,Support with Memory and Cognition - adults (18-64),Generic Care Packages SE Team -PS,Social Care - Direct Payments,21/09/2016,3747864,"2,255.31",DAVID HOWARD LTD CLIENT ACCOUNT
Adults Services,Adult Social Care,Support with Memory and Cognition - adults (18-64),Generic Care Packages SE Team -PS,Social Care - Direct Payments,21/09/2016,3747892,"13,733.31",DAVID HOWARD LTD CLIENT ACCOUNT
Adults Services,Adult Social Care,Support with Memory and Cognition - adults (18-64),Generic Care Packages SE Team -PS,Social Care - Direct Payments,21/09/2016,3747902,"1,095.58",DAVID HOWARD LTD CLIENT ACCOUNT
Adults Services,Adult Social Care,Support with Memory and Cognition - adults (18-64),Generic Care Packages SE Team -PS,Social Care - Direct Payments,21/09/2016,3747903,"1,024.68",DAVID HOWARD LTD CLIENT ACCOUNT
Adults Services,Adult Social Care,Support with Memory and Cognition - adults (18-64),Generic Care Packages SE Team -PS,Social Care - Direct Payments,21/09/2016,3747913,"1,330.96",D D PAYROLL SERVICES
Adults Services,Adult Social Care,Support with Memory and Cognition - adults (18-64),Generic Care Packages SE Team -PS,Social Care - Direct Payments,21/09/2016,3747922,888.37,D D PAYROLL SERVICES
Adults Services,Adult Social Care,Support with Memory and Cognition - adults (18-64),Generic Care Packages SE Team -PS,Social Care - Direct Payments,21/09/2016,3747933,776.20,DAVID HOWARD LTD CLIENT ACCOUNT
Adults Services,Adult Social Care,Support with Memory and Cognition - adults (18-64),Generic Care Packages SE Team -PS,Social Care - Direct Payments,21/09/2016,3747943,"1,493.89",DAVID HOWARD LTD CLIENT ACCOUNT
Adults Services,Adult Social Care,Support with Memory and Cognition - adults (18-64),Generic Care Packages SE Team -PS,Social Care - Direct Payments,21/09/2016,3747949,"1,038.01",D D PAYROLL SERVICES
Adults Services,Adult Social Care,Support with Memory and Cognition - adults (18-64),Generic Care Packages SE Team -PS,Social Care - Direct Payments,21/09/2016,3747954,617.25,D D PAYROLL SERVICES
Adults Services,Adult Social Care,Support with Memory and Cognition - adults (18-64),Generic Care Packages SE Team -PS,Social Care - Direct Payments,21/09/2016,3747969,"1,103.78",DAVID HOWARD LTD CLIENT ACCOUNT
Adults Services,Adult Social Care,Support with Memory and Cognition - adults (18-64),Generic Care Packages SE Team -PS,Social Care - Direct Payments,21/09/2016,3747994,556.67,D D PAYROLL SERVICES
Adults Services,Adult Social Care,Support with Memory and Cognition - adults (18-64),Generic Care Packages SE Team -PS,Social Care - Direct Payments,21/09/2016,3748011,"1,266.31",DAVID HOWARD LTD CLIENT ACCOUNT
Adults Services,Adult Social Care,Support with Memory and Cognition - adults (18-64),Generic Care Packages SE Team -PS,Social Care - Direct Payments,21/09/2016,3748043,"1,047.27",DAVID HOWARD LTD CLIENT ACCOUNT
Adults Services,Adult Social Care,Support with Memory and Cognition - adults (18-64),Generic Care Packages SE Team -PS,Social Care - Direct Payments,21/09/2016,3748045,786.56,D D PAYROLL SERVICES
Adults Services,Adult Social Care,Support with Memory and Cognition - adults (18-64),Generic Care Packages SE Team -PS,Social Care - Direct Payments,21/09/2016,3748046,925.84,DAVID HOWARD LTD CLIENT ACCOUNT
Adults Services,Adult Social Care,Support with Memory and Cognition - adults (18-64),Generic Care Packages SE Team -PS,Social Care - Direct Payments,21/09/2016,3748048,607.64,DAVID HOWARD LTD CLIENT ACCOUNT
Adults Services,Adult Social Care,Support with Memory and Cognition - adults (18-64),Generic Care Packages SE Team -PS,Social Care - Direct Payments,21/09/2016,3748054,"1,460.41",DAVID HOWARD LTD CLIENT ACCOUNT
Adults Services,Adult Social Care,Support with Memory and Cognition - adults (18-64),Generic Care Packages SE Team -PS,Social Care - Direct Payments,21/09/2016,3748067,"2,809.93",Personal Data
Adults Services,Adult Social Care,Support with Memory and Cognition - adults (18-64),Generic Care Packages SE Team -PS,Social Care - Direct Payments,21/09/2016,3748097,"3,011.21",DAVID HOWARD LTD CLIENT ACCOUNT
Adults Services,Adult Social Care,Support with Memory and Cognition - adults (18-64),Generic Care Packages SE Team -PS,Social Care - Direct Payments,21/09/2016,3748119,615.53,DAVID HOWARD LTD CLIENT ACCOUNT
Adults Services,Adult Social Care,Support with Memory and Cognition - adults (18-64),Generic Care Packages SE Team -PS,Social Care - Direct Payments,21/09/2016,3748123,816.32,DAVID HOWARD LTD CLIENT ACCOUNT
Adults Services,Adult Social Care,Support with Memory and Cognition - adults (18-64),Generic Care Packages SE Team -PS,Social Care - Direct Payments,21/09/2016,3748124,"1,055.77",D D PAYROLL SERVICES
Adults Services,Adult Social Care,Support with Memory and Cognition - adults (18-64),Generic Care Packages SE Team -PS,Social Care - Direct Payments,21/09/2016,3748134,650.25,DAVID HOWARD LTD CLIENT ACCOUNT
Adults Services,Adult Social Care,Support with Memory and Cognition - adults (18-64),Generic Care Packages SE Team -PS,Social Care - Direct Payments,21/09/2016,3748186,"1,831.21",DAVID HOWARD LTD CLIENT ACCOUNT
Adults Services,Adult Social Care,Support with Memory and Cognition - adults (18-64),Generic Care Packages SE Team -PS,Social Care - Direct Payments,21/09/2016,3748194,"6,998.74",DAVID HOWARD LTD CLIENT ACCOUNT
Adults Services,Adult Social Care,Support with Memory and Cognition - adults (18-64),Generic Care Packages SE Team -PS,Social Care - Direct Payments,21/09/2016,3748196,858.52,DAVID HOWARD LTD CLIENT ACCOUNT
Adults Services,Adult Social Care,Support with Memory and Cognition - adults (18-64),Generic Care Packages SE Team -PS,Social Care - Direct Payments,21/09/2016,3748207,"1,005.95",DAVID HOWARD LTD CLIENT ACCOUNT
Adults Services,Adult Social Care,Support with Memory and Cognition - adults (18-64),Generic Care Packages SE Team -PS,Social Care - Direct Payments,21/09/2016,3748220,"2,880.25",D D PAYROLL SERVICES
Adults Services,Adult Social Care,Support with Memory and Cognition - adults (18-64),Generic Care Packages SE Team -PS,Social Care - Direct Payments,21/09/2016,3748229,923.40,D D PAYROLL SERVICES
Adults Services,Adult Social Care,Support with Memory and Cognition - adults (18-64),Generic Care Packages SE Team -PS,Social Care - Direct Payments,21/09/2016,3748234,635.59,DAVID HOWARD LTD CLIENT ACCOUNT
Adults Services,Adult Social Care,Support with Memory and Cognition - adults (18-64),Generic Care Packages SE Team -PS,Social Care - Direct Payments,21/09/2016,3748238,"3,312.13",DAVID HOWARD LTD CLIENT ACCOUNT
Adults Services,Adult Social Care,Support with Memory and Cognition - adults (18-64),Generic Care Packages SE Team -PS,Social Care - Direct Payments,21/09/2016,3748264,"-14,334.99",DAVID HOWARD LTD CLIENT ACCOUNT
Adults Services,Adult Social Care,Support with Memory and Cognition - adults (18-64),Generic Care Packages SE Team -PS,Social Care - Direct Payments,21/09/2016,3748302,"1,423.21",DAVID HOWARD LTD CLIENT ACCOUNT
Adults Services,Adult Social Care,Support with Memory and Cognition - adults (18-64),Generic Care Packages SE Team -PS,Social Care - Direct Payments,21/09/2016,3748320,"1,014.94",DAVID HOWARD LTD CLIENT ACCOUNT
Adults Services,Adult Social Care,Support with Memory and Cognition - adults (18-64),Generic Care Packages SE Team -PS,Social Care - Direct Payments,21/09/2016,3748325,535.77,D D PAYROLL SERVICES
Adults Services,Adult Social Care,Support with Memory and Cognition - adults (18-64),Generic Care Packages SE Team -PS,Social Care - Direct Payments,21/09/2016,3748327,584.17,DAVID HOWARD LTD CLIENT ACCOUNT
Adults Services,Adult Social Care,Support with Memory and Cognition - adults (18-64),Generic Care Packages SE Team -PS,Social Care - Direct Payments,21/09/2016,3748348,808.39,DAVID HOWARD LTD CLIENT ACCOUNT
Adults Services,Adult Social Care,Support with Memory and Cognition - adults (18-64),Generic Care Packages SE Team -PS,Social Care - Direct Payments,21/09/2016,3748352,851.13,DAVID HOWARD LTD CLIENT ACCOUNT
Adults Services,Adult Social Care,Support with Memory and Cognition - adults (18-64),Generic Care Packages SE Team -PS,Social Care - Direct Payments,21/09/2016,3748365,612.60,DAVID HOWARD LTD CLIENT ACCOUNT
Adults Services,Adult Social Care,Support with Memory and Cognition - adults (18-64),Generic Care Packages SE Team -PS,Social Care - Direct Payments,21/09/2016,3748368,642.36,DAVID HOWARD LTD CLIENT ACCOUNT
Adults Services,Adult Social Care,Support with Memory and Cognition - adults (18-64),Generic Care Packages SE Team -PS,Social Care - Direct Payments,21/09/2016,3748369,"1,183.27",DAVID HOWARD LTD CLIENT ACCOUNT
Adults Services,Adult Social Care,Support with Memory and Cognition - adults (18-64),Generic Care Packages SE Team -PS,Social Care - Direct Payments,21/09/2016,3748371,755.16,D D PAYROLL SERVICES
Adults Services,Adult Social Care,Support with Memory and Cognition - adults (18-64),Generic Care Packages SE Team -PS,Social Care - Direct Payments,21/09/2016,3748377,517.08,D D PAYROLL SERVICES
Adults Services,Adult Social Care,Support with Memory and Cognition - adults (18-64),Generic Care Packages SE Team -PS,Social Care - Direct Payments,21/09/2016,3748379,-706.68,D D PAYROLL SERVICES
Adults Services,Adult Social Care,Support with Memory and Cognition - adults (18-64),Generic Care Packages SE Team -PS,Social Care - Direct Payments,21/09/2016,3748384,"1,770.72",DAVID HOWARD LTD CLIENT ACCOUNT
Adults Services,Adult Social Care,Support with Memory and Cognition - adults (18-64),Generic Care Packages SE Team -PS,Social Care - Direct Payments,21/09/2016,3748394,"1,060.78",DAVID HOWARD LTD CLIENT ACCOUNT
Adults Services,Adult Social Care,Support with Memory and Cognition - adults (18-64),Generic Care Packages SE Team -PS,Social Care - Direct Payments,21/09/2016,3748399,896.65,DAVID HOWARD LTD CLIENT ACCOUNT
Adults Services,Adult Social Care,Support with Memory and Cognition - adults (18-64),Generic Care Packages SE Team -PS,Social Care - Direct Payments,21/09/2016,3748401,922.91,DAVID HOWARD LTD CLIENT ACCOUNT
Adults Services,Adult Social Care,Support with Memory and Cognition - adults (18-64),Generic Care Packages SE Team -PS,Social Care - Direct Payments,21/09/2016,3748408,697.99,D D PAYROLL SERVICES
Adults Services,Adult Social Care,Support with Memory and Cognition - adults (18-64),Generic Care Packages SE Team -PS,Social Care - Direct Payments,21/09/2016,3748413,883.68,DAVID HOWARD LTD CLIENT ACCOUNT
Adults Services,Adult Social Care,Support with Memory and Cognition - adults (18-64),Generic Care Packages SE Team -PS,Social Care - Direct Payments,21/09/2016,3748424,"2,340.32",DAVID HOWARD LTD CLIENT ACCOUNT
Adults Services,Adult Social Care,Support with Memory and Cognition - adults (18-64),Generic Care Packages SE Team -PS,Social Care - Direct Payments,21/09/2016,3748428,790.63,DAVID HOWARD LTD CLIENT ACCOUNT
Adults Services,Adult Social Care,Support with Memory and Cognition - adults (18-64),Generic Care Packages SE Team -PS,Social Care - Direct Payments,21/09/2016,3748434,"1,154.31",DAVID HOWARD LTD CLIENT ACCOUNT
Adults Services,Adult Social Care,Support with Memory and Cognition - adults (18-64),Generic Care Packages SE Team -PS,Social Care - Direct Payments,21/09/2016,3748435,"1,007.15",DAVID HOWARD LTD CLIENT ACCOUNT
Adults Services,Adult Social Care,Support with Memory and Cognition - adults (18-64),Generic Care Packages SE Team -PS,Social Care - Direct Payments,21/09/2016,3748453,"2,173.53",D D PAYROLL SERVICES
Adults Services,Adult Social Care,Support with Memory and Cognition - adults (18-64),Generic Care Packages SE Team -PS,Social Care - Direct Payments,21/09/2016,3748456,"20,980.25",DAVID HOWARD LTD CLIENT ACCOUNT
Adults Services,Adult Social Care,Support with Memory and Cognition - adults (18-64),Generic Care Packages SE Team -PS,Social Care - Direct Payments,28/09/2016,3752409,"-94,804.14",DAVID HOWARD LTD CLIENT ACCOUNT
Adults Services,Adult Social Care,Support with Memory and Cognition - adults (18-64),Generic Care Packages SE Team -PS,Social Care - Direct Payments,28/09/2016,3752412,"90,829.86",DAVID HOWARD LTD CLIENT ACCOUNT
Adults Services,Adult Social Care,Support with Memory and Cognition - adults (18-64),Generic Care Packages SE Team -PS,Social Care - Direct Payments,28/09/2016,3752418,765.00,DAVID HOWARD LTD CLIENT ACCOUNT
Adults Services,Adult Social Care,Support with Memory and Cognition - adults (18-64),Generic Care Packages SE Team -PS,Social Care - Nursing Care - Block,16/09/2016,3739723,"10,705.89",H-C ONE
Adults Services,Adult Social Care,Support with Memory and Cognition - adults (18-64),Generic Care Packages SE Team -PS,Social Care - Nursing Care - Block,28/09/2016,3752408,"53,695.97",H-C ONE
Adults Services,Adult Social Care,Support with Memory and Cognition - adults (18-64),Generic Care Packages SE Team -PS,Social Care - Residential Care - Block,28/09/2016,3752408,"81,711.25",H-C ONE
Adults Services,Adult Social Care,Support with Memory and Cognition - adults (18-64),Generic Care Packages SE Team -PS,Social Care - Residential Care - Block,28/09/2016,3752559,"2,400.00",GATEWAY HOUSING ASSOCIATION
Adults Services,Adult Social Care,Support with Memory and Cognition - adults (18-64),Generic Care Packages SE Team -PS,Social Care - Home Care (Short Term),02/09/2016,3731787,588.38,SANCTUARY HOME CARE LIMITED
Adults Services,Adult Social Care,Support with Memory and Cognition - adults (18-64),Generic Care Packages SE Team -PS,Social Care - Home Care (Short Term),02/09/2016,3731888,588.38,SANCTUARY HOME CARE LIMITED
Adults Services,Adult Social Care,Support with Memory and Cognition - adults (18-64),Generic Care Packages SE Team -PS,Social Care - Home Care (Short Term),07/09/2016,3733158,530.42,Carewatch Newham Ltd
Adults Services,Adult Social Care,Support with Memory and Cognition - adults (18-64),Generic Care Packages SE Team -PS,Social Care - Home Care (Short Term),07/09/2016,3733383,"1,478.82",FOCUS CARE LINK LTD
Adults Services,Adult Social Care,Support with Memory and Cognition - adults (18-64),Generic Care Packages SE Team -PS,Social Care - Home Care (Short Term),07/09/2016,3733868,507.78,SANCTUARY HOME CARE LIMITED
Adults Services,Adult Social Care,Support with Memory and Cognition - adults (18-64),Generic Care Packages SE Team -PS,Social Care - Home Care (Short Term),07/09/2016,3733943,507.78,SANCTUARY HOME CARE LIMITED
Adults Services,Adult Social Care,Support with Memory and Cognition - adults (18-64),Generic Care Packages SE Team -PS,Social Care - Home Care (Short Term),09/09/2016,3735754,588.38,SANCTUARY HOME CARE LIMITED
Adults Services,Adult Social Care,Support with Memory and Cognition - adults (18-64),Generic Care Packages SE Team -PS,Social Care - Home Care (Short Term),14/09/2016,3737261,"1,268.40",SEVACARE UK LTD
Adults Services,Adult Social Care,Support with Memory and Cognition - adults (18-64),Generic Care Packages SE Team -PS,Social Care - Home Care (Short Term),16/09/2016,3739701,819.50,Excelcare (Home Care Division) LTD
Adults Services,Adult Social Care,Support with Memory and Cognition - adults (18-64),Generic Care Packages SE Team -PS,Social Care - Home Care (Short Term),21/09/2016,3747837,510.49,FOCUS CARE LINK LTD
Adults Services,Adult Social Care,Support with Memory and Cognition - adults (18-64),Generic Care Packages SE Team -PS,Social Care - Home Care (Short Term),21/09/2016,3747855,"1,478.82",FOCUS CARE LINK LTD
Adults Services,Adult Social Care,Support with Memory and Cognition - adults (18-64),Generic Care Packages SE Team -PS,Social Care - Home Care (Short Term),21/09/2016,3748493,508.88,SEVACARE UK LTD
Adults Services,Adult Social Care,Support with Memory and Cognition - adults (18-64),Generic Care Packages SE Team -PS,Social Care - Home Care (Short Term),23/09/2016,3749579,"1,478.82",FOCUS CARE LINK LTD
Adults Services,Adult Social Care,Support with Memory and Cognition - adults (18-64),Generic Care Packages SE Team -PS,Social Care - Home Care (Short Term),23/09/2016,3750915,"2,227.82",Excelcare (Home Care Division) LTD
Adults Services,Adult Social Care,Support with Memory and Cognition - adults (18-64),Generic Care Packages SE Team -PS,Social Care - Home Care (Short Term),28/09/2016,3752225,530.42,Carewatch Newham Ltd
Adults Services,Adult Social Care,Support with Memory and Cognition - adults (18-64),Generic Care Packages SE Team -PS,Social Care - Home Care (Short Term),28/09/2016,3752296,530.42,Carewatch Newham Ltd
Adults Services,Adult Social Care,Support with Memory and Cognition - adults (18-64),Generic Care Packages SE Team -PS,Social Care - Home Care (Short Term),28/09/2016,3752807,951.30,SEVACARE UK LTD
Adults Services,Adult Social Care,Support with Memory and Cognition - adults (18-64),Generic Care Packages SE Team -PS,Social Care - Home Care (Short Term),28/09/2016,3752809,"1,268.40",SEVACARE UK LTD
Adults Services,Adult Social Care,Support with Memory and Cognition - adults (18-64),Generic Care Packages SE Team -PS,Social Care - Home Care (Short Term),30/09/2016,3754876,"1,102.30",SEVACARE UK LTD
Adults Services,Adult Social Care,Support with Memory and Cognition - adults (18-64),Generic Care Packages SE Team -SP,Non Staff Transport Costs - Client Transport Costs,07/09/2016,3726291,600.00,Abacus Ambulance Service
Adults Services,Adult Social Care,Support with Memory and Cognition - adults (18-64),Generic Care Packages SE Team -SP,Non Staff Transport Costs - Client Transport Costs,14/09/2016,3726292,600.00,Abacus Ambulance Service
Adults Services,Adult Social Care,Support with Memory and Cognition - adults (18-64),Generic Care Packages SE Team -SP,Non Staff Transport Costs - Client Transport Costs,28/09/2016,3733727,600.00,Abacus Ambulance Service
Adults Services,Adult Social Care,Support with Memory and Cognition - adults (18-64),Generic Care Packages SE Team -SP,Social Care - Nursing Care,28/09/2016,3752547,"3,943.97",SANCTUARY CARE LTD
Adults Services,Adult Social Care,Support with Memory and Cognition - adults (18-64),Generic Care Packages SE Team -SP,Social Care - Residential Care,28/09/2016,3752471,"2,400.00",GATEWAY HOUSING ASSOCIATION
Adults Services,Adult Social Care,Support with Memory and Cognition - adults (18-64),Generic Care Packages SE Team -SP,Social Care - Direct Payments,21/09/2016,3748322,709.63,DAVID HOWARD LTD CLIENT ACCOUNT
Adults Services,Adult Social Care,Support with Memory and Cognition - adults (18-64),Generic Care Packages SE Team-SMC,Social Care - Nursing Care,02/09/2016,3731563,"3,435.25",PARK VIEW CARE HOME
Adults Services,Adult Social Care,Support with Memory and Cognition - adults (18-64),Generic Care Packages SE Team-SMC,Social Care - Residential Care,30/09/2016,3735362,"3,764.29",HEALTH & HOME LTD (ALEXANDER HOUSE)
Adults Services,Adult Social Care,Support with Memory and Cognition - adults (18-64),Generic Care Packages SE Team-SMC,Social Care - Residential Care,30/09/2016,3735363,"3,764.29",HEALTH & HOME LTD (ALEXANDER HOUSE)
Adults Services,Adult Social Care,Support with Memory and Cognition - adults (18-64),Generic Care Packages SE Team-SMC,Social Care - Residential Care,14/09/2016,3737454,"1,629.32",RUNWOOD HOMES PLC
Adults Services,Adult Social Care,Support with Memory and Cognition - adults (18-64),Generic Care Packages SE Team-SMC,Social Care - Residential Care,30/09/2016,3752202,"3,642.86",HEALTH & HOME LTD (ALEXANDER HOUSE)
Adults Services,Adult Social Care,Support with Memory and Cognition - adults (18-64),Generic Care Packages SE Team-SMC,Social Care - Residential Care,28/09/2016,3752440,"2,550.00",EXCELCARE HOLDING PLC
Adults Services,Adult Social Care,Support with Memory and Cognition - adults (18-64),Generic Care Packages SE Team-SMC,Social Care - Residential Care,28/09/2016,3752501,"2,056.28",ST MICHAELS LODGE T/A SHAKTHI HEALTHCARE LIMITED
Adults Services,Adult Social Care,Support with Memory and Cognition - adults (18-64),Generic Care Packages SE Team-SMC,Social Care - Residential Care,28/09/2016,3752535,"2,400.00",GATEWAY HOUSING ASSOCIATION
Adults Services,Adult Social Care,Support with Memory and Cognition - adults (18-64),Generic Care Packages SE Team-SMC,Social Care - Residential Care,28/09/2016,3752652,"2,610.00",SANCTUARY CARE LTD
Adults Services,Adult Social Care,Support with Memory and Cognition - adults (18-64),Generic Care Packages SE Team-SMC,Social Care - Residential Care,28/09/2016,3752722,"4,071.43",THE GROVE RESIDENTIAL HOME
Adults Services,Adult Social Care,Support with Memory and Cognition - adults (18-64),Generic Care Packages SE Team-SMC,Social Care - Residential Care,28/09/2016,3752990,"2,317.64",H-C ONE
Adults Services,Adult Social Care,Support with Memory and Cognition - adults (18-64),Generic Care Packages SE Team-SMC,Social Care - Residential Care,30/09/2016,3754482,"2,138.57",Oakdene Rest Home
Adults Services,Adult Social Care,Support with Memory and Cognition - adults (18-64),Generic Care Packages SE Team-SMC,Social Care - Homecare,07/09/2016,3733912,531.96,SANCTUARY HOME CARE LIMITED
Adults Services,Adult Social Care,Support with Memory and Cognition - adults (18-64),Generic Care Packages SE Team-SMC,Social Care - Homecare,07/09/2016,3733970,531.96,SANCTUARY HOME CARE LIMITED
Adults Services,Adult Social Care,Support with Memory and Cognition - adults (18-64),Generic Care Packages SE Team-SMC,Social Care - Homecare,16/09/2016,3739689,"1,268.46",Excelcare (Home Care Division) LTD
Adults Services,Adult Social Care,Support with Memory and Cognition - adults (18-64),Generic Care Packages SE Team-SMC,Social Care - Homecare,23/09/2016,3749422,"1,268.46",Excelcare (Home Care Division) LTD
Adults Services,Adult Social Care,Support with Memory and Cognition - adults (18-64),Generic Care Packages SE Team-SMC,Social Care - Homecare,23/09/2016,3750830,"2,114.00",SEVACARE UK LTD
Adults Services,Adult Social Care,Support with Memory and Cognition - adults (18-64),Generic Care Packages SE Team-SMC,Social Care - Homecare,28/09/2016,3753161,"1,571.70",SANCTUARY HOME CARE LIMITED
Adults Services,Adult Social Care,Support with Memory and Cognition - adults (18-64),Generic Care Packages SE Team-SMC,Social Care - Homecare,30/09/2016,3754468,873.30,AGE UK EAST LONDON
Adults Services,Adult Social Care,Support with Memory and Cognition - adults (18-64),Generic Care Packages SE Team-SMC,Social Care - Homecare,30/09/2016,3754860,520.95,SEVACARE UK LTD
Adults Services,Adult Social Care,Support with Memory and Cognition - adults (18-64),Generic Care Packages SE Team-SMC,Social Care - Homecare,30/09/2016,3755210,531.96,SANCTUARY HOME CARE LIMITED
Adults Services,Adult Social Care,Support with Memory and Cognition - adults (18-64),Generic Care Packages SE Team-SMC,Social Care - Direct Payments,21/09/2016,3748051,"13,832.29",D D PAYROLL SERVICES
Adults Services,Adult Social Care,Support with Memory and Cognition - adults (18-64),Generic Care Packages SE Team-SMC,Social Care - Direct Payments,21/09/2016,3748347,"1,211.48",DAVID HOWARD LTD CLIENT ACCOUNT
Adults Services,Adult Social Care,Support with Memory and Cognition - adults (18-64),Generic Care Packages SE Team-SMC,Social Care - Direct Payments,21/09/2016,3748388,702.24,DAVID HOWARD LTD CLIENT ACCOUNT
Adults Services,Adult Social Care,Support with Memory and Cognition - adults (18-64),Generic Care Packages SE Team-SMC,Social Care - Home Care (Short Term),02/09/2016,3731855,"1,305.72",SANCTUARY HOME CARE LIMITED
Adults Services,Adult Social Care,Support with Memory and Cognition - adults (18-64),Generic Care Packages SE Team-SMC,Social Care - Home Care (Short Term),28/09/2016,3753180,"1,305.72",SANCTUARY HOME CARE LIMITED
Adults Services,Adult Social Care,Support with Memory and Cognition - adults (18-64),Generic Care Packages SE Team -AS,Social Care - Prevention & Support,28/09/2016,3752208,"1,960.00",City Inn Express Limited
Adults Services,Adult Social Care,Support with Memory and Cognition - adults (18-64),Generic Care Packages SE Team -SM,Social Care - Residential Care,28/09/2016,3752619,"2,507.15",EXCELCARE HOLDING PLC
Adults Services,Adult Social Care,Support with Memory and Cognition - adults (18-64),Generic Care Packages SE Team -SM,Social Care - Prevention & Support,21/09/2016,3748562,"1,400.00",Plaza London Hotel
Adults Services,Adult Social Care,Support with Memory and Cognition - adults (18-64),Generic Care Packages SE Team -SI,Social Care - Nursing Care,28/09/2016,3752454,"2,067.12",SUMMERDALE COURT CARE CENTRE
Adults Services,Adult Social Care,Support with Memory and Cognition - adults (18-64),Generic Care Packages SE Team -SI,Social Care - Homecare,07/09/2016,3734062,586.58,Soma Healthcare Ltd
